Transaction Date,Local Authority Department,Beneficiary,Purpose of Expenditure,Amount (excluding VAT),Non Recoverable VAT,Merchant Category
 01-06-2023,Adults,Matrix SCM Ltd,Consultancy Fees,3519.96,0.00,COMMERCIAL SUPPLIER 
 01-06-2023,Adults,Marlow,Residential Placements - Private Contractors Payment,2089.12,0.00,COMMERCIAL SUPPLIER 
 01-06-2023,Adults,Marlow,Residential Placements - Private Contractors Payment,2089.12,0.00,COMMERCIAL SUPPLIER 
 01-06-2023,Adults,Marlow,Residential Placements - Private Contractors Payment,2089.12,0.00,COMMERCIAL SUPPLIER 
 01-06-2023,Adults,Marlow,Residential Placements - Private Contractors Payment,2089.12,0.00,COMMERCIAL SUPPLIER 
 01-06-2023,Adults,Marlow,Residential Placements - Private Contractors Payment,2089.12,0.00,COMMERCIAL SUPPLIER 
 01-06-2023,Adults,Marlow,Residential Placements - Private Contractors Payment,2089.12,0.00,COMMERCIAL SUPPLIER 
 01-06-2023,Adults,Marlow,Residential Placements - Private Contractors Payment,969.95,0.00,COMMERCIAL SUPPLIER 
 01-06-2023,Adults,Marlow,Residential Placements - Private Contractors Payment,7109.84,0.00,COMMERCIAL SUPPLIER 
 01-06-2023,Adults,Marlow,Residential Placements - Private Contractors Payment,2175.66,0.00,COMMERCIAL SUPPLIER 
 01-06-2023,Adults,Marlow,Residential Placements - Private Contractors Payment,2256.24,0.00,COMMERCIAL SUPPLIER 
 01-06-2023,Adults,Marlow,Residential Placements - Private Contractors Payment,2256.24,0.00,COMMERCIAL SUPPLIER 
 01-06-2023,Adults,Jamats Academy Ltd,Daycare - Private Contractors Payment,505.50,0.00,COMMERCIAL SUPPLIER 
 01-06-2023,Adults,Care-Away Ltd T/A Care Support,Home Care - Private Contractors Payment,1027.04,0.00,COMMERCIAL SUPPLIER 
 01-06-2023,Adults,Care-Away Ltd T/A Care Support,Home Care - Private Contractors Payment,577.71,0.00,COMMERCIAL SUPPLIER 
 01-06-2023,Adults,Care-Away Ltd T/A Care Support,Home Care - Private Contractors Payment,2567.60,0.00,COMMERCIAL SUPPLIER 
 01-06-2023,Adults,Care-Away Ltd T/A Care Support,Home Care - Private Contractors Payment,3081.12,0.00,COMMERCIAL SUPPLIER 
 01-06-2023,Adults,Care-Away Ltd T/A Care Support,Home Care - Private Contractors Payment,2017.40,0.00,COMMERCIAL SUPPLIER 
 01-06-2023,Adults,Care-Away Ltd T/A Care Support,Home Care - Private Contractors Payment,1251.71,0.00,COMMERCIAL SUPPLIER 
 01-06-2023,Adults,Care-Away Ltd T/A Care Support,Home Care - Private Contractors Payment,1027.04,0.00,COMMERCIAL SUPPLIER 
 01-06-2023,Adults,Care-Away Ltd T/A Care Support,Home Care - Private Contractors Payment,1027.04,0.00,COMMERCIAL SUPPLIER 
 01-06-2023,Adults,Care-Away Ltd T/A Care Support,Home Care - Private Contractors Payment,1412.18,0.00,COMMERCIAL SUPPLIER 
 01-06-2023,Adults,Care-Away Ltd T/A Care Support,Home Care - Private Contractors Payment,1540.56,0.00,COMMERCIAL SUPPLIER 
 01-06-2023,Adults,Care-Away Ltd T/A Care Support,Home Care - Private Contractors Payment,1155.42,0.00,COMMERCIAL SUPPLIER 
 01-06-2023,Adults,Care-Away Ltd T/A Care Support,Home Care - Private Contractors Payment,1027.04,0.00,COMMERCIAL SUPPLIER 
 01-06-2023,Adults,Care-Away Ltd T/A Care Support,Home Care - Private Contractors Payment,513.52,0.00,COMMERCIAL SUPPLIER 
 01-06-2023,Adults,Care-Away Ltd T/A Care Support,Home Care - Private Contractors Payment,770.28,0.00,COMMERCIAL SUPPLIER 
 01-06-2023,Adults,Care-Away Ltd T/A Care Support,Home Care - Private Contractors Payment,1256.29,0.00,COMMERCIAL SUPPLIER 
 01-06-2023,Adults,Care-Away Ltd T/A Care Support,Home Care - Private Contractors Payment,586.88,0.00,COMMERCIAL SUPPLIER 
 01-06-2023,Adults,Care-Away Ltd T/A Care Support,Home Care - Private Contractors Payment,2824.36,0.00,COMMERCIAL SUPPLIER 
 01-06-2023,Adults,Care-Away Ltd T/A Care Support,Home Care - Private Contractors Payment,504.35,0.00,COMMERCIAL SUPPLIER 
 01-06-2023,Adults,Care-Away Ltd T/A Care Support,Home Care - Private Contractors Payment,1155.42,0.00,COMMERCIAL SUPPLIER 
 01-06-2023,Adults,Care-Away Ltd T/A Care Support,Home Care - Private Contractors Payment,1283.80,0.00,COMMERCIAL SUPPLIER 
 01-06-2023,Adults,Care-Away Ltd T/A Care Support,Home Care - Private Contractors Payment,628.15,0.00,COMMERCIAL SUPPLIER 
 01-06-2023,Adults,Care-Away Ltd T/A Care Support,Home Care - Private Contractors Payment,2310.84,0.00,COMMERCIAL SUPPLIER 
 01-06-2023,Adults,Care-Away Ltd T/A Care Support,Home Care - Private Contractors Payment,513.52,0.00,COMMERCIAL SUPPLIER 
 01-06-2023,Adults,Care-Away Ltd T/A Care Support,Home Care - Private Contractors Payment,1412.18,0.00,COMMERCIAL SUPPLIER 
 01-06-2023,Adults,Care-Away Ltd T/A Care Support,Home Care - Private Contractors Payment,660.24,0.00,COMMERCIAL SUPPLIER 
 01-06-2023,Adults,Care-Away Ltd T/A Care Support,Home Care - Private Contractors Payment,1091.23,0.00,COMMERCIAL SUPPLIER 
 01-06-2023,Adults,Care-Away Ltd T/A Care Support,Private Contractors Payment - Other,20828.31,0.00,COMMERCIAL SUPPLIER 
 01-06-2023,Adults,Potton Services Ltd,Home Care - Private Contractors Payment,781.87,0.00,COMMERCIAL SUPPLIER 
 01-06-2023,Adults,Potton Services Ltd,Home Care - Private Contractors Payment,1256.35,0.00,COMMERCIAL SUPPLIER 
 01-06-2023,Adults,Potton Services Ltd,Home Care - Private Contractors Payment,1804.00,0.00,COMMERCIAL SUPPLIER 
 01-06-2023,Adults,Cera Care Operations Ltd,Home Care - Private Contractors Payment,1279.14,0.00,COMMERCIAL SUPPLIER 
 01-06-2023,Adults,Cera Care Operations Ltd,Home Care - Private Contractors Payment,1698.11,0.00,COMMERCIAL SUPPLIER 
 01-06-2023,Adults,Cera Care Operations Ltd,Home Care - Private Contractors Payment,1496.08,0.00,COMMERCIAL SUPPLIER 
 01-06-2023,Adults,Cera Care Operations Ltd,Home Care - Private Contractors Payment,624.28,0.00,COMMERCIAL SUPPLIER 
 01-06-2023,Adults,Cera Care Operations Ltd,Home Care - Private Contractors Payment,1269.68,0.00,COMMERCIAL SUPPLIER 
 01-06-2023,Adults,Cera Care Operations Ltd,Home Care - Private Contractors Payment,1004.68,0.00,COMMERCIAL SUPPLIER 
 01-06-2023,Adults,Cera Care Operations Ltd,Home Care - Private Contractors Payment,1226.00,0.00,COMMERCIAL SUPPLIER 
 01-06-2023,Adults,Cera Care Operations Ltd,Home Care - Private Contractors Payment,511.07,0.00,COMMERCIAL SUPPLIER 
 01-06-2023,Adults,Cera Care Operations Ltd,Home Care - Private Contractors Payment,2139.27,0.00,COMMERCIAL SUPPLIER 
 01-06-2023,Adults,Cera Care Operations Ltd,Home Care - Private Contractors Payment,1396.35,0.00,COMMERCIAL SUPPLIER 
 01-06-2023,Adults,Cera Care Operations Ltd,Home Care - Private Contractors Payment,1237.64,0.00,COMMERCIAL SUPPLIER 
 01-06-2023,Adults,Cera Care Operations Ltd,Home Care - Private Contractors Payment,1366.14,0.00,COMMERCIAL SUPPLIER 
 01-06-2023,Adults,Cera Care Operations Ltd,Home Care - Private Contractors Payment,1386.16,0.00,COMMERCIAL SUPPLIER 
 01-06-2023,Adults,Cera Care Operations Ltd,Home Care - Private Contractors Payment,924.23,0.00,COMMERCIAL SUPPLIER 
 01-06-2023,Adults,Cera Care Operations Ltd,Home Care - Private Contractors Payment,1223.81,0.00,COMMERCIAL SUPPLIER 
 01-06-2023,Adults,Cera Care Operations Ltd,Home Care - Private Contractors Payment,1227.45,0.00,COMMERCIAL SUPPLIER 
 01-06-2023,Adults,Cera Care Operations Ltd,Home Care - Private Contractors Payment,622.46,0.00,COMMERCIAL SUPPLIER 
 01-06-2023,Adults,Cera Care Operations Ltd,Home Care - Private Contractors Payment,1255.84,0.00,COMMERCIAL SUPPLIER 
 01-06-2023,Adults,Cera Care Operations Ltd,Home Care - Private Contractors Payment,1263.85,0.00,COMMERCIAL SUPPLIER 
 01-06-2023,Adults,Cera Care Operations Ltd,Home Care - Private Contractors Payment,1253.30,0.00,COMMERCIAL SUPPLIER 
 01-06-2023,Adults,Cera Care Operations Ltd,Home Care - Private Contractors Payment,1256.94,0.00,COMMERCIAL SUPPLIER 
 01-06-2023,Adults,Cera Care Operations Ltd,Home Care - Private Contractors Payment,589.70,0.00,COMMERCIAL SUPPLIER 
 01-06-2023,Adults,Cera Care Operations Ltd,Home Care - Private Contractors Payment,687.99,0.00,COMMERCIAL SUPPLIER 
 01-06-2023,Adults,Cera Care Operations Ltd,Home Care - Private Contractors Payment,1243.83,0.00,COMMERCIAL SUPPLIER 
 01-06-2023,Adults,Cera Care Operations Ltd,Home Care - Private Contractors Payment,1055.64,0.00,COMMERCIAL SUPPLIER 
 01-06-2023,Adults,Cera Care Operations Ltd,Home Care - Private Contractors Payment,635.93,0.00,COMMERCIAL SUPPLIER 
 01-06-2023,Adults,Cera Care Operations Ltd,Home Care - Private Contractors Payment,1216.17,0.00,COMMERCIAL SUPPLIER 
 01-06-2023,Adults,Cera Care Operations Ltd,Home Care - Private Contractors Payment,614.09,0.00,COMMERCIAL SUPPLIER 
 01-06-2023,Adults,Cera Care Operations Ltd,Home Care - Private Contractors Payment,873.27,0.00,COMMERCIAL SUPPLIER 
 01-06-2023,Adults,Cera Care Operations Ltd,Home Care - Private Contractors Payment,749.50,0.00,COMMERCIAL SUPPLIER 
 01-06-2023,Adults,Cera Care Operations Ltd,Home Care - Private Contractors Payment,6572.80,0.00,COMMERCIAL SUPPLIER 
 01-06-2023,Adults,Cera Care Operations Ltd,Home Care - Private Contractors Payment,917.68,0.00,COMMERCIAL SUPPLIER 
 01-06-2023,Adults,Cera Care Operations Ltd,Home Care - Private Contractors Payment,622.46,0.00,COMMERCIAL SUPPLIER 
 01-06-2023,Adults,Cera Care Operations Ltd,Home Care - Private Contractors Payment,622.46,0.00,COMMERCIAL SUPPLIER 
 01-06-2023,Adults,Cera Care Operations Ltd,Home Care - Private Contractors Payment,1223.08,0.00,COMMERCIAL SUPPLIER 
 01-06-2023,Adults,Cera Care Operations Ltd,Home Care - Private Contractors Payment,1271.13,0.00,COMMERCIAL SUPPLIER 
 01-06-2023,Adults,Cera Care Operations Ltd,Home Care - Private Contractors Payment,833.95,0.00,COMMERCIAL SUPPLIER 
 01-06-2023,Adults,Cera Care Operations Ltd,Home Care - Private Contractors Payment,834.32,0.00,COMMERCIAL SUPPLIER 
 01-06-2023,Adults,Cera Care Operations Ltd,Home Care - Private Contractors Payment,686.16,0.00,COMMERCIAL SUPPLIER 
 01-06-2023,Adults,Cera Care Operations Ltd,Home Care - Private Contractors Payment,924.23,0.00,COMMERCIAL SUPPLIER 
 01-06-2023,Adults,Cera Care Operations Ltd,Home Care - Private Contractors Payment,928.23,0.00,COMMERCIAL SUPPLIER 
 01-06-2023,Adults,Cera Care Operations Ltd,Home Care - Private Contractors Payment,1191.38,0.00,COMMERCIAL SUPPLIER 
 01-06-2023,Adults,Cera Care Operations Ltd,Home Care - Private Contractors Payment,1103.69,0.00,COMMERCIAL SUPPLIER 
 01-06-2023,Adults,Cera Care Operations Ltd,Home Care - Private Contractors Payment,993.76,0.00,COMMERCIAL SUPPLIER 
 01-06-2023,Adults,Cera Care Operations Ltd,Home Care - Private Contractors Payment,812.48,0.00,COMMERCIAL SUPPLIER 
 01-06-2023,Adults,Cera Care Operations Ltd,Home Care - Private Contractors Payment,886.74,0.00,COMMERCIAL SUPPLIER 
 02-06-2023,Adults,Amachyck Care Solution Ltd.,Home Care - Private Contractors Payment,1135.70,0.00,COMMERCIAL SUPPLIER 
 02-06-2023,Adults,Lodge Group Care UK Ltd,Home Care - Private Contractors Payment,1770.91,0.00,COMMERCIAL SUPPLIER 
 02-06-2023,Adults,Lodge Group Care UK Ltd,Home Care - Private Contractors Payment,1264.94,0.00,COMMERCIAL SUPPLIER 
 02-06-2023,Adults,Lodge Group Care UK Ltd,Home Care - Private Contractors Payment,1748.34,0.00,COMMERCIAL SUPPLIER 
 02-06-2023,Adults,Lodge Group Care UK Ltd,Home Care - Private Contractors Payment,554.39,0.00,COMMERCIAL SUPPLIER 
 02-06-2023,Adults,Lodge Group Care UK Ltd,Home Care - Private Contractors Payment,918.41,0.00,COMMERCIAL SUPPLIER 
 02-06-2023,Adults,Lodge Group Care UK Ltd,Home Care - Private Contractors Payment,518.35,0.00,COMMERCIAL SUPPLIER 
 02-06-2023,Adults,Lodge Group Care UK Ltd,Home Care - Private Contractors Payment,617.73,0.00,COMMERCIAL SUPPLIER 
 02-06-2023,Adults,Lodge Group Care UK Ltd,Home Care - Private Contractors Payment,611.18,0.00,COMMERCIAL SUPPLIER 
 02-06-2023,Adults,Lodge Group Care UK Ltd,Home Care - Private Contractors Payment,614.09,0.00,COMMERCIAL SUPPLIER 
 02-06-2023,Adults,Lodge Group Care UK Ltd,Home Care - Private Contractors Payment,544.20,0.00,COMMERCIAL SUPPLIER 
 02-06-2023,Adults,Lodge Group Care UK Ltd,Home Care - Private Contractors Payment,1231.09,0.00,COMMERCIAL SUPPLIER 
 02-06-2023,Adults,Lodge Group Care UK Ltd,Home Care - Private Contractors Payment,1351.58,0.00,COMMERCIAL SUPPLIER 
 02-06-2023,Adults,Lodge Group Care UK Ltd,Home Care - Private Contractors Payment,727.66,0.00,COMMERCIAL SUPPLIER 
 02-06-2023,Adults,Lodge Group Care UK Ltd,Home Care - Private Contractors Payment,1269.68,0.00,COMMERCIAL SUPPLIER 
 02-06-2023,Adults,Lodge Group Care UK Ltd,Home Care - Private Contractors Payment,1216.90,0.00,COMMERCIAL SUPPLIER 
 02-06-2023,Adults,Lodge Group Care UK Ltd,Home Care - Private Contractors Payment,1223.08,0.00,COMMERCIAL SUPPLIER 
 02-06-2023,Adults,Lodge Group Care UK Ltd,Home Care - Private Contractors Payment,1203.43,0.00,COMMERCIAL SUPPLIER 
 02-06-2023,Adults,Lodge Group Care UK Ltd,Home Care - Private Contractors Payment,745.50,0.00,COMMERCIAL SUPPLIER 
 02-06-2023,Adults,Lodge Group Care UK Ltd,Home Care - Private Contractors Payment,745.50,0.00,COMMERCIAL SUPPLIER 
 02-06-2023,Adults,Lodge Group Care UK Ltd,Home Care - Private Contractors Payment,1223.08,0.00,COMMERCIAL SUPPLIER 
 02-06-2023,Adults,Lodge Group Care UK Ltd,Home Care - Private Contractors Payment,1224.54,0.00,COMMERCIAL SUPPLIER 
 02-06-2023,Adults,Lodge Group Care UK Ltd,Home Care - Private Contractors Payment,1296.98,0.00,COMMERCIAL SUPPLIER 
 02-06-2023,Adults,Lodge Group Care UK Ltd,Home Care - Private Contractors Payment,1201.61,0.00,COMMERCIAL SUPPLIER 
 02-06-2023,Adults,Lodge Group Care UK Ltd,Home Care - Private Contractors Payment,614.45,0.00,COMMERCIAL SUPPLIER 
 02-06-2023,Adults,Lodge Group Care UK Ltd,Home Care - Private Contractors Payment,1229.27,0.00,COMMERCIAL SUPPLIER 
 02-06-2023,Adults,Lodge Group Care UK Ltd,Home Care - Private Contractors Payment,948.95,0.00,COMMERCIAL SUPPLIER 
 02-06-2023,Adults,Lodge Group Care UK Ltd,Home Care - Private Contractors Payment,1214.35,0.00,COMMERCIAL SUPPLIER 
 02-06-2023,Adults,Lodge Group Care UK Ltd,Home Care - Private Contractors Payment,1244.56,0.00,COMMERCIAL SUPPLIER 
 02-06-2023,Adults,Lodge Group Care UK Ltd,Home Care - Private Contractors Payment,1234.37,0.00,COMMERCIAL SUPPLIER 
 02-06-2023,Adults,Lodge Group Care UK Ltd,Home Care - Private Contractors Payment,1235.82,0.00,COMMERCIAL SUPPLIER 
 02-06-2023,Adults,Lodge Group Care UK Ltd,Home Care - Private Contractors Payment,1223.08,0.00,COMMERCIAL SUPPLIER 
 02-06-2023,Adults,Lodge Group Care UK Ltd,Home Care - Private Contractors Payment,1227.82,0.00,COMMERCIAL SUPPLIER 
 02-06-2023,Adults,Lodge Group Care UK Ltd,Home Care - Private Contractors Payment,611.54,0.00,COMMERCIAL SUPPLIER 
 02-06-2023,Adults,Lodge Group Care UK Ltd,Home Care - Private Contractors Payment,546.38,0.00,COMMERCIAL SUPPLIER 
 02-06-2023,Adults,Lodge Group Care UK Ltd,Home Care - Private Contractors Payment,1274.41,0.00,COMMERCIAL SUPPLIER 
 02-06-2023,Adults,Lodge Group Care UK Ltd,Home Care - Private Contractors Payment,611.54,0.00,COMMERCIAL SUPPLIER 
 02-06-2023,Adults,Lodge Group Care UK Ltd,Home Care - Private Contractors Payment,611.54,0.00,COMMERCIAL SUPPLIER 
 02-06-2023,Adults,Lodge Group Care UK Ltd,Home Care - Private Contractors Payment,1868.10,0.00,COMMERCIAL SUPPLIER 
 02-06-2023,Adults,Lodge Group Care UK Ltd,Home Care - Private Contractors Payment,1223.08,0.00,COMMERCIAL SUPPLIER 
 02-06-2023,Adults,Lodge Group Care UK Ltd,Home Care - Private Contractors Payment,1226.36,0.00,COMMERCIAL SUPPLIER 
 02-06-2023,Adults,Lodge Group Care UK Ltd,Home Care - Private Contractors Payment,950.43,0.00,COMMERCIAL SUPPLIER 
 02-06-2023,Adults,Lodge Group Care UK Ltd,Home Care - Private Contractors Payment,1373.42,0.00,COMMERCIAL SUPPLIER 
 02-06-2023,Adults,Lodge Group Care UK Ltd,Home Care - Private Contractors Payment,1378.88,0.00,COMMERCIAL SUPPLIER 
 02-06-2023,Adults,Lodge Group Care UK Ltd,Home Care - Private Contractors Payment,917.31,0.00,COMMERCIAL SUPPLIER 
 02-06-2023,Adults,Lodge Group Care UK Ltd,Home Care - Private Contractors Payment,926.05,0.00,COMMERCIAL SUPPLIER 
 02-06-2023,Adults,Lodge Group Care UK Ltd,Home Care - Private Contractors Payment,926.05,0.00,COMMERCIAL SUPPLIER 
 02-06-2023,Adults,Lodge Group Care UK Ltd,Home Care - Private Contractors Payment,611.54,0.00,COMMERCIAL SUPPLIER 
 02-06-2023,Adults,Lodge Group Care UK Ltd,Home Care - Private Contractors Payment,611.54,0.00,COMMERCIAL SUPPLIER 
 02-06-2023,Adults,Lodge Group Care UK Ltd,Home Care - Private Contractors Payment,923.50,0.00,COMMERCIAL SUPPLIER 
 02-06-2023,Adults,Lodge Group Care UK Ltd,Home Care - Private Contractors Payment,917.31,0.00,COMMERCIAL SUPPLIER 
 02-06-2023,Adults,Lodge Group Care UK Ltd,Home Care - Private Contractors Payment,1223.08,0.00,COMMERCIAL SUPPLIER 
 02-06-2023,Adults,Lodge Group Care UK Ltd,Home Care - Private Contractors Payment,1223.08,0.00,COMMERCIAL SUPPLIER 
 02-06-2023,Adults,Lodge Group Care UK Ltd,Home Care - Private Contractors Payment,1245.65,0.00,COMMERCIAL SUPPLIER 
 02-06-2023,Adults,Lodge Group Care UK Ltd,Home Care - Private Contractors Payment,1592.91,0.00,COMMERCIAL SUPPLIER 
 02-06-2023,Adults,Lodge Group Care UK Ltd,Home Care - Private Contractors Payment,943.89,0.00,COMMERCIAL SUPPLIER 
 02-06-2023,Adults,Lodge Group Care UK Ltd,Home Care - Private Contractors Payment,876.18,0.00,COMMERCIAL SUPPLIER 
 02-06-2023,Adults,Lodge Group Care UK Ltd,Home Care - Private Contractors Payment,690.53,0.00,COMMERCIAL SUPPLIER 
 02-06-2023,Adults,Lodge Group Care UK Ltd,Home Care - Private Contractors Payment,1157.56,0.00,COMMERCIAL SUPPLIER 
 02-06-2023,Adults,Lodge Group Care UK Ltd,Home Care - Private Contractors Payment,1507.74,0.00,COMMERCIAL SUPPLIER 
 02-06-2023,Adults,Lodge Group Care UK Ltd,Home Care - Private Contractors Payment,820.48,0.00,COMMERCIAL SUPPLIER 
 02-06-2023,Adults,Lodge Group Care UK Ltd,Home Care - Private Contractors Payment,812.84,0.00,COMMERCIAL SUPPLIER 
 02-06-2023,Adults,Lodge Group Care UK Ltd,Home Care - Private Contractors Payment,815.75,0.00,COMMERCIAL SUPPLIER 
 02-06-2023,Adults,Lodge Group Care UK Ltd,Home Care - Private Contractors Payment,1034.52,0.00,COMMERCIAL SUPPLIER 
 02-06-2023,Adults,Lodge Group Care UK Ltd,Home Care - Private Contractors Payment,930.42,0.00,COMMERCIAL SUPPLIER 
 02-06-2023,Adults,Lodge Group Care UK Ltd,Home Care - Private Contractors Payment,930.42,0.00,COMMERCIAL SUPPLIER 
 02-06-2023,Adults,Lodge Group Care UK Ltd,Home Care - Private Contractors Payment,924.59,0.00,COMMERCIAL SUPPLIER 
 02-06-2023,Adults,Lodge Group Care UK Ltd,Home Care - Private Contractors Payment,671.60,0.00,COMMERCIAL SUPPLIER 
 02-06-2023,Adults,Lodge Group Care UK Ltd,Home Care - Private Contractors Payment,673.42,0.00,COMMERCIAL SUPPLIER 
 02-06-2023,Adults,Lodge Group Care UK Ltd,Home Care - Private Contractors Payment,1561.61,0.00,COMMERCIAL SUPPLIER 
 02-06-2023,Adults,Lodge Group Care UK Ltd,Home Care - Private Contractors Payment,1160.84,0.00,COMMERCIAL SUPPLIER 
 02-06-2023,Adults,Lodge Group Care UK Ltd,Home Care - Private Contractors Payment,1274.77,0.00,COMMERCIAL SUPPLIER 
 02-06-2023,Adults,Lodge Group Care UK Ltd,Home Care - Private Contractors Payment,857.25,0.00,COMMERCIAL SUPPLIER 
 02-06-2023,Adults,Lodge Group Care UK Ltd,Home Care - Private Contractors Payment,1232.91,0.00,COMMERCIAL SUPPLIER 
 02-06-2023,Adults,Lodge Group Care UK Ltd,Home Care - Private Contractors Payment,1231.46,0.00,COMMERCIAL SUPPLIER 
 02-06-2023,Adults,Lodge Group Care UK Ltd,Home Care - Private Contractors Payment,1238.74,0.00,COMMERCIAL SUPPLIER 
 02-06-2023,Adults,Lodge Group Care UK Ltd,Home Care - Private Contractors Payment,917.31,0.00,COMMERCIAL SUPPLIER 
 02-06-2023,Adults,Lodge Group Care UK Ltd,Home Care - Private Contractors Payment,1223.45,0.00,COMMERCIAL SUPPLIER 
 02-06-2023,Adults,Lodge Group Care UK Ltd,Home Care - Private Contractors Payment,1585.27,0.00,COMMERCIAL SUPPLIER 
 02-06-2023,Adults,Lodge Group Care UK Ltd,Home Care - Private Contractors Payment,611.54,0.00,COMMERCIAL SUPPLIER 
 02-06-2023,Adults,Lodge Group Care UK Ltd,Home Care - Private Contractors Payment,980.28,0.00,COMMERCIAL SUPPLIER 
 02-06-2023,Adults,Lodge Group Care UK Ltd,Home Care - Private Contractors Payment,556.94,0.00,COMMERCIAL SUPPLIER 
 02-06-2023,Adults,Lodge Group Care UK Ltd,Home Care - Private Contractors Payment,924.59,0.00,COMMERCIAL SUPPLIER 
 02-06-2023,Adults,Lodge Group Care UK Ltd,Home Care - Private Contractors Payment,926.05,0.00,COMMERCIAL SUPPLIER 
 02-06-2023,Adults,Lodge Group Care UK Ltd,Home Care - Private Contractors Payment,873.63,0.00,COMMERCIAL SUPPLIER 
 02-06-2023,Adults,Lodge Group Care UK Ltd,Home Care - Private Contractors Payment,873.63,0.00,COMMERCIAL SUPPLIER 
 02-06-2023,Adults,Lodge Group Care UK Ltd,Home Care - Private Contractors Payment,1223.08,0.00,COMMERCIAL SUPPLIER 
 02-06-2023,Adults,Lodge Group Care UK Ltd,Home Care - Private Contractors Payment,1597.26,0.00,COMMERCIAL SUPPLIER 
 02-06-2023,Adults,Lodge Group Care UK Ltd,Home Care - Private Contractors Payment,626.83,0.00,COMMERCIAL SUPPLIER 
 02-06-2023,Adults,Lodge Group Care UK Ltd,Home Care - Private Contractors Payment,1231.82,0.00,COMMERCIAL SUPPLIER 
 02-06-2023,Adults,Lodge Group Care UK Ltd,Home Care - Private Contractors Payment,538.74,0.00,COMMERCIAL SUPPLIER 
 02-06-2023,Adults,Lodge Group Care UK Ltd,Home Care - Private Contractors Payment,540.19,0.00,COMMERCIAL SUPPLIER 
 02-06-2023,Adults,Lodge Group Care UK Ltd,Home Care - Private Contractors Payment,1193.24,0.00,COMMERCIAL SUPPLIER 
 02-06-2023,Adults,Lodge Group Care UK Ltd,Home Care - Private Contractors Payment,1193.96,0.00,COMMERCIAL SUPPLIER 
 02-06-2023,Adults,Lodge Group Care UK Ltd,Home Care - Private Contractors Payment,1223.08,0.00,COMMERCIAL SUPPLIER 
 02-06-2023,Adults,Lodge Group Care UK Ltd,Home Care - Private Contractors Payment,1223.08,0.00,COMMERCIAL SUPPLIER 
 02-06-2023,Adults,Lodge Group Care UK Ltd,Home Care - Private Contractors Payment,927.14,0.00,COMMERCIAL SUPPLIER 
 02-06-2023,Adults,Lodge Group Care UK Ltd,Home Care - Private Contractors Payment,927.51,0.00,COMMERCIAL SUPPLIER 
 02-06-2023,Adults,Lodge Group Care UK Ltd,Home Care - Private Contractors Payment,1227.82,0.00,COMMERCIAL SUPPLIER 
 02-06-2023,Adults,Lodge Group Care UK Ltd,Home Care - Private Contractors Payment,1228.91,0.00,COMMERCIAL SUPPLIER 
 02-06-2023,Adults,Lodge Group Care UK Ltd,Home Care - Private Contractors Payment,664.32,0.00,COMMERCIAL SUPPLIER 
 02-06-2023,Adults,Lodge Group Care UK Ltd,Home Care - Private Contractors Payment,832.50,0.00,COMMERCIAL SUPPLIER 
 02-06-2023,Adults,Lodge Group Care UK Ltd,Home Care - Private Contractors Payment,1421.47,0.00,COMMERCIAL SUPPLIER 
 02-06-2023,Adults,Lodge Group Care UK Ltd,Home Care - Private Contractors Payment,930.41,0.00,COMMERCIAL SUPPLIER 
 02-06-2023,Adults,Lodge Group Care UK Ltd,Home Care - Private Contractors Payment,935.51,0.00,COMMERCIAL SUPPLIER 
 02-06-2023,Adults,Lodge Group Care UK Ltd,Home Care - Private Contractors Payment,1250.38,0.00,COMMERCIAL SUPPLIER 
 02-06-2023,Adults,Lodge Group Care UK Ltd,Home Care - Private Contractors Payment,1171.75,0.00,COMMERCIAL SUPPLIER 
 02-06-2023,Adults,Lodge Group Care UK Ltd,Home Care - Private Contractors Payment,1284.60,0.00,COMMERCIAL SUPPLIER 
 02-06-2023,Adults,Lodge Group Care UK Ltd,Home Care - Private Contractors Payment,1247.11,0.00,COMMERCIAL SUPPLIER 
 02-06-2023,Adults,Lodge Group Care UK Ltd,Home Care - Private Contractors Payment,1249.29,0.00,COMMERCIAL SUPPLIER 
 02-06-2023,Adults,Lodge Group Care UK Ltd,Home Care - Private Contractors Payment,588.24,0.00,COMMERCIAL SUPPLIER 
 02-06-2023,Adults,Lodge Group Care UK Ltd,Home Care - Private Contractors Payment,1250.38,0.00,COMMERCIAL SUPPLIER 
 02-06-2023,Adults,Lodge Group Care UK Ltd,Home Care - Private Contractors Payment,917.68,0.00,COMMERCIAL SUPPLIER 
 02-06-2023,Adults,Lodge Group Care UK Ltd,Home Care - Private Contractors Payment,939.52,0.00,COMMERCIAL SUPPLIER 
 02-06-2023,Adults,Lodge Group Care UK Ltd,Home Care - Private Contractors Payment,942.07,0.00,COMMERCIAL SUPPLIER 
 02-06-2023,Adults,Lodge Group Care UK Ltd,Home Care - Private Contractors Payment,1033.07,0.00,COMMERCIAL SUPPLIER 
 02-06-2023,Adults,Lodge Group Care UK Ltd,Home Care - Private Contractors Payment,644.30,0.00,COMMERCIAL SUPPLIER 
 02-06-2023,Adults,Lodge Group Care UK Ltd,Home Care - Private Contractors Payment,624.65,0.00,COMMERCIAL SUPPLIER 
 02-06-2023,Adults,Lodge Group Care UK Ltd,Home Care - Private Contractors Payment,1223.08,0.00,COMMERCIAL SUPPLIER 
 02-06-2023,Adults,Lodge Group Care UK Ltd,Home Care - Private Contractors Payment,1335.92,0.00,COMMERCIAL SUPPLIER 
 02-06-2023,Adults,Lodge Group Care UK Ltd,Home Care - Private Contractors Payment,1212.16,0.00,COMMERCIAL SUPPLIER 
 02-06-2023,Adults,Lodge Group Care UK Ltd,Home Care - Private Contractors Payment,1236.19,0.00,COMMERCIAL SUPPLIER 
 02-06-2023,Adults,Lodge Group Care UK Ltd,Home Care - Private Contractors Payment,615.18,0.00,COMMERCIAL SUPPLIER 
 02-06-2023,Adults,Lodge Group Care UK Ltd,Home Care - Private Contractors Payment,771.34,0.00,COMMERCIAL SUPPLIER 
 02-06-2023,Adults,Lodge Group Care UK Ltd,Home Care - Private Contractors Payment,773.89,0.00,COMMERCIAL SUPPLIER 
 02-06-2023,Adults,Lodge Group Care UK Ltd,Home Care - Private Contractors Payment,1161.20,0.00,COMMERCIAL SUPPLIER 
 02-06-2023,Adults,Lodge Group Care UK Ltd,Home Care - Private Contractors Payment,959.54,0.00,COMMERCIAL SUPPLIER 
 02-06-2023,Adults,Lodge Group Care UK Ltd,Home Care - Private Contractors Payment,967.55,0.00,COMMERCIAL SUPPLIER 
 02-06-2023,Adults,Lodge Group Care UK Ltd,Home Care - Private Contractors Payment,611.54,0.00,COMMERCIAL SUPPLIER 
 02-06-2023,Adults,Lodge Group Care UK Ltd,Home Care - Private Contractors Payment,1226.72,0.00,COMMERCIAL SUPPLIER 
 02-06-2023,Adults,Lodge Group Care UK Ltd,Home Care - Private Contractors Payment,543.84,0.00,COMMERCIAL SUPPLIER 
 02-06-2023,Adults,Lodge Group Care UK Ltd,Home Care - Private Contractors Payment,873.63,0.00,COMMERCIAL SUPPLIER 
 02-06-2023,Adults,Lodge Group Care UK Ltd,Home Care - Private Contractors Payment,1242.74,0.00,COMMERCIAL SUPPLIER 
 02-06-2023,Adults,Fountains Care Centre - Bondcare,Nursing Homes - Private Contractors Payment,3010.32,0.00,COMMERCIAL SUPPLIER 
 02-06-2023,Adults,Fountains Care Centre - Bondcare,Nursing Homes - Private Contractors Payment,3010.32,0.00,COMMERCIAL SUPPLIER 
 02-06-2023,Adults,Fountains Care Centre - Bondcare,Residential Placements - Private Contractors Payment,3085.80,0.00,COMMERCIAL SUPPLIER 
 02-06-2023,Adults,Fountains Care Centre - Bondcare,Nursing Homes - Private Contractors Payment,3010.32,0.00,COMMERCIAL SUPPLIER 
 02-06-2023,Adults,Fountains Care Centre - Bondcare,Nursing Homes - Private Contractors Payment,3010.32,0.00,COMMERCIAL SUPPLIER 
 02-06-2023,Adults,Fountains Care Centre - Bondcare,Nursing Homes - Private Contractors Payment,3010.32,0.00,COMMERCIAL SUPPLIER 
 02-06-2023,Adults,Fountains Care Centre - Bondcare,Nursing Homes - Private Contractors Payment,3010.32,0.00,COMMERCIAL SUPPLIER 
 02-06-2023,Adults,Fountains Care Centre - Bondcare,Nursing Homes - Private Contractors Payment,2528.00,0.00,COMMERCIAL SUPPLIER 
 02-06-2023,Adults,Fountains Care Centre - Bondcare,Nursing Homes - Private Contractors Payment,2618.29,0.00,COMMERCIAL SUPPLIER 
 02-06-2023,Adults,Fountains Care Centre - Bondcare,Nursing Homes - Private Contractors Payment,2856.64,0.00,COMMERCIAL SUPPLIER 
 02-06-2023,Adults,Fountains Care Centre - Bondcare,Nursing Homes - Private Contractors Payment,3010.32,0.00,COMMERCIAL SUPPLIER 
 02-06-2023,Adults,Fountains Care Centre - Bondcare,Nursing Homes - Private Contractors Payment,3010.32,0.00,COMMERCIAL SUPPLIER 
 02-06-2023,Adults,Fountains Care Centre - Bondcare,Nursing Homes - Private Contractors Payment,3010.32,0.00,COMMERCIAL SUPPLIER 
 02-06-2023,Adults,Fountains Care Centre - Bondcare,Nursing Homes - Private Contractors Payment,8280.00,0.00,COMMERCIAL SUPPLIER 
 02-06-2023,Adults,Fountains Care Centre - Bondcare,Nursing Homes - Private Contractors Payment,3864.00,0.00,COMMERCIAL SUPPLIER 
 02-06-2023,Adults,Fountains Care Centre - Bondcare,Nursing Homes - Private Contractors Payment,3400.00,0.00,COMMERCIAL SUPPLIER 
 02-06-2023,Adults,Fountains Care Centre - Bondcare,Nursing Homes - Private Contractors Payment,3010.32,0.00,COMMERCIAL SUPPLIER 
 02-06-2023,Adults,Fountains Care Centre - Bondcare,Residential Placements - Private Contractors Payment,3085.80,0.00,COMMERCIAL SUPPLIER 
 02-06-2023,Adults,Fountains Care Centre - Bondcare,Nursing Homes - Private Contractors Payment,6348.00,0.00,COMMERCIAL SUPPLIER 
 02-06-2023,Adults,Fountains Care Centre - Bondcare,Nursing Homes - Private Contractors Payment,1380.00,0.00,COMMERCIAL SUPPLIER 
 02-06-2023,Adults,Fountains Care Centre - Bondcare,Nursing Homes - Private Contractors Payment,3520.00,0.00,COMMERCIAL SUPPLIER 
 02-06-2023,Adults,Fountains Care Centre - Bondcare,Nursing Homes - Private Contractors Payment,2528.00,0.00,COMMERCIAL SUPPLIER 
 02-06-2023,Adults,Fountains Care Centre - Bondcare,Nursing Homes - Private Contractors Payment,3010.32,0.00,COMMERCIAL SUPPLIER 
 02-06-2023,Adults,Fountains Care Centre - Bondcare,Residential Placements - Private Contractors Payment,2802.40,0.00,COMMERCIAL SUPPLIER 
 02-06-2023,Adults,Fountains Care Centre - Bondcare,Nursing Homes - Private Contractors Payment,2528.00,0.00,COMMERCIAL SUPPLIER 
 02-06-2023,Adults,Fountains Care Centre - Bondcare,Nursing Homes - Private Contractors Payment,3010.32,0.00,COMMERCIAL SUPPLIER 
 02-06-2023,Adults,Fountains Care Centre - Bondcare,Residential Placements - Private Contractors Payment,2802.40,0.00,COMMERCIAL SUPPLIER 
 02-06-2023,Adults,Fountains Care Centre - Bondcare,Nursing Homes - Private Contractors Payment,3010.32,0.00,COMMERCIAL SUPPLIER 
 02-06-2023,Adults,Fountains Care Centre - Bondcare,Nursing Homes - Private Contractors Payment,2528.00,0.00,COMMERCIAL SUPPLIER 
 02-06-2023,Adults,Fountains Care Centre - Bondcare,Nursing Homes - Private Contractors Payment,2856.64,0.00,COMMERCIAL SUPPLIER 
 02-06-2023,Adults,Fountains Care Centre - Bondcare,Nursing Homes - Private Contractors Payment,3685.52,0.00,COMMERCIAL SUPPLIER 
 02-06-2023,Adults,Fountains Care Centre - Bondcare,Nursing Homes - Private Contractors Payment,3010.32,0.00,COMMERCIAL SUPPLIER 
 02-06-2023,Adults,Fountains Care Centre - Bondcare,Nursing Homes - Private Contractors Payment,632.00,0.00,COMMERCIAL SUPPLIER 
 02-06-2023,Adults,Fountains Care Centre - Bondcare,Nursing Homes - Private Contractors Payment,2528.00,0.00,COMMERCIAL SUPPLIER 
 02-06-2023,Adults,Fountains Care Centre - Bondcare,Nursing Homes - Private Contractors Payment,3010.32,0.00,COMMERCIAL SUPPLIER 
 02-06-2023,Adults,Fountains Care Centre - Bondcare,Nursing Homes - Private Contractors Payment,2856.64,0.00,COMMERCIAL SUPPLIER 
 02-06-2023,Adults,Fountains Care Centre - Bondcare,Nursing Homes - Private Contractors Payment,3010.32,0.00,COMMERCIAL SUPPLIER 
 02-06-2023,Adults,Black Swan International Ltd - Belamacanda,Residential Placements - Private Contractors Payment,2859.20,0.00,COMMERCIAL SUPPLIER 
 02-06-2023,Adults,Black Swan International Ltd - Belamacanda,Residential Placements - Private Contractors Payment,3843.36,0.00,COMMERCIAL SUPPLIER 
 02-06-2023,Adults,Black Swan International Ltd - Belamacanda,Residential Placements - Private Contractors Payment,2752.28,0.00,COMMERCIAL SUPPLIER 
 02-06-2023,Adults,Leonard Cheshire Disability_a,Residential Placements - Private Contractors Payment,6754.40,0.00,COMMERCIAL SUPPLIER 
 02-06-2023,Adults,Leonard Cheshire Disability_a,Residential Placements - Private Contractors Payment,6560.32,0.00,COMMERCIAL SUPPLIER 
 02-06-2023,Adults,Voyage Ltd - Solar-Grange Liss,Nursing Homes - Private Contractors Payment,5721.12,0.00,COMMERCIAL SUPPLIER 
 02-06-2023,Adults,Havering Care Homes Ltd t/a Abbscross Nursing Home,Nursing Homes - Private Contractors Payment,3010.32,0.00,COMMERCIAL SUPPLIER 
 02-06-2023,Adults,Havering Care Homes Ltd t/a Abbscross Nursing Home,Nursing Homes - Private Contractors Payment,4069.44,0.00,COMMERCIAL SUPPLIER 
 02-06-2023,Adults,Havering Care Homes Ltd t/a Abbscross Nursing Home,Nursing Homes - Private Contractors Payment,4809.08,0.00,COMMERCIAL SUPPLIER 
 02-06-2023,Adults,Havering Care Homes Ltd t/a Abbscross Nursing Home,Nursing Homes - Private Contractors Payment,3010.32,0.00,COMMERCIAL SUPPLIER 
 02-06-2023,Adults,Havering Care Homes Ltd t/a Abbscross Nursing Home,Nursing Homes - Private Contractors Payment,4809.08,0.00,COMMERCIAL SUPPLIER 
 02-06-2023,Adults,Havering Care Homes Ltd t/a Abbscross Nursing Home,Nursing Homes - Private Contractors Payment,4134.00,0.00,COMMERCIAL SUPPLIER 
 02-06-2023,Adults,Havering Care Homes Ltd t/a Abbscross Nursing Home,Nursing Homes - Private Contractors Payment,2856.64,0.00,COMMERCIAL SUPPLIER 
 02-06-2023,Adults,Havering Care Homes Ltd t/a Abbscross Nursing Home,Nursing Homes - Private Contractors Payment,3010.32,0.00,COMMERCIAL SUPPLIER 
 02-06-2023,Adults,One Tree Estates Ltd t/a Ashbrook Nursing Home,Nursing Homes - Private Contractors Payment,3010.32,0.00,COMMERCIAL SUPPLIER 
 02-06-2023,Adults,One Tree Estates Ltd t/a Ashbrook Nursing Home,Nursing Homes - Private Contractors Payment,4800.00,0.00,COMMERCIAL SUPPLIER 
 02-06-2023,Adults,One Tree Estates Ltd t/a Ashbrook Nursing Home,Nursing Homes - Private Contractors Payment,5544.00,0.00,COMMERCIAL SUPPLIER 
 02-06-2023,Adults,One Tree Estates Ltd t/a Ashbrook Nursing Home,Nursing Homes - Private Contractors Payment,5544.00,0.00,COMMERCIAL SUPPLIER 
 02-06-2023,Adults,One Tree Estates Ltd t/a Ashbrook Nursing Home,Nursing Homes - Private Contractors Payment,3010.32,0.00,COMMERCIAL SUPPLIER 
 02-06-2023,Adults,One Tree Estates Ltd t/a Ashbrook Nursing Home,Nursing Homes - Private Contractors Payment,3125.12,0.00,COMMERCIAL SUPPLIER 
 02-06-2023,Adults,One Tree Estates Ltd t/a Ashbrook Nursing Home,Nursing Homes - Private Contractors Payment,4452.00,0.00,COMMERCIAL SUPPLIER 
 02-06-2023,Adults,One Tree Estates Ltd t/a Ashbrook Nursing Home,Nursing Homes - Private Contractors Payment,15456.00,0.00,COMMERCIAL SUPPLIER 
 02-06-2023,Adults,One Tree Estates Ltd t/a Ashbrook Nursing Home,Nursing Homes - Private Contractors Payment,5544.00,0.00,COMMERCIAL SUPPLIER 
 02-06-2023,Adults,One Tree Estates Ltd t/a Ashbrook Nursing Home,Nursing Homes - Private Contractors Payment,5742.00,0.00,COMMERCIAL SUPPLIER 
 02-06-2023,Adults,One Tree Estates Ltd t/a Ashbrook Nursing Home,Nursing Homes - Private Contractors Payment,5544.00,0.00,COMMERCIAL SUPPLIER 
 02-06-2023,Adults,One Tree Estates Ltd t/a Ashbrook Nursing Home,Nursing Care Income,605.39,0.00,COMMERCIAL SUPPLIER 
 02-06-2023,Adults,One Tree Estates Ltd t/a Ashbrook Nursing Home,Nursing Homes - Private Contractors Payment,5544.00,0.00,COMMERCIAL SUPPLIER 
 02-06-2023,Adults,One Tree Estates Ltd t/a Ashbrook Nursing Home,Nursing Homes - Private Contractors Payment,990.00,0.00,COMMERCIAL SUPPLIER 
 02-06-2023,Adults,One Tree Estates Ltd t/a Ashbrook Nursing Home,Nursing Homes - Private Contractors Payment,4800.00,0.00,COMMERCIAL SUPPLIER 
 02-06-2023,Adults,One Tree Estates Ltd t/a Ashbrook Nursing Home,Nursing Homes - Private Contractors Payment,11592.00,0.00,COMMERCIAL SUPPLIER 
 02-06-2023,Adults,One Tree Estates Ltd t/a Ashbrook Nursing Home,Nursing Homes - Private Contractors Payment,3800.00,0.00,COMMERCIAL SUPPLIER 
 02-06-2023,Adults,One Tree Estates Ltd t/a Ashbrook Nursing Home,Nursing Homes - Private Contractors Payment,3259.52,0.00,COMMERCIAL SUPPLIER 
 02-06-2023,Adults,One Tree Estates Ltd t/a Ashbrook Nursing Home,Nursing Homes - Private Contractors Payment,3010.32,0.00,COMMERCIAL SUPPLIER 
 02-06-2023,Adults,One Tree Estates Ltd t/a Ashbrook Nursing Home,Nursing Homes - Private Contractors Payment,3694.12,0.00,COMMERCIAL SUPPLIER 
 02-06-2023,Adults,One Tree Estates Ltd t/a Ashbrook Nursing Home,Nursing Homes - Private Contractors Payment,3100.52,0.00,COMMERCIAL SUPPLIER 
 02-06-2023,Adults,One Tree Estates Ltd t/a Ashbrook Nursing Home,Nursing Homes - Private Contractors Payment,3800.00,0.00,COMMERCIAL SUPPLIER 
 02-06-2023,Adults,One Tree Estates Ltd t/a Ashbrook Nursing Home,Nursing Homes - Private Contractors Payment,3800.00,0.00,COMMERCIAL SUPPLIER 
 02-06-2023,Adults,One Tree Estates Ltd t/a Ashbrook Nursing Home,Nursing Homes - Private Contractors Payment,3800.00,0.00,COMMERCIAL SUPPLIER 
 02-06-2023,Adults,One Tree Estates Ltd t/a Ashbrook Nursing Home,Nursing Homes - Private Contractors Payment,3259.52,0.00,COMMERCIAL SUPPLIER 
 02-06-2023,Adults,One Tree Estates Ltd t/a Ashbrook Nursing Home,Nursing Homes - Private Contractors Payment,4312.00,0.00,COMMERCIAL SUPPLIER 
 02-06-2023,Adults,One Tree Estates Ltd t/a Ashbrook Nursing Home,Nursing Homes - Private Contractors Payment,5649.80,0.00,COMMERCIAL SUPPLIER 
 02-06-2023,Adults,One Tree Estates Ltd t/a Ashbrook Nursing Home,Nursing Homes - Private Contractors Payment,3010.32,0.00,COMMERCIAL SUPPLIER 
 02-06-2023,Adults,One Tree Estates Ltd t/a Ashbrook Nursing Home,Nursing Homes - Private Contractors Payment,2208.00,0.00,COMMERCIAL SUPPLIER 
 02-06-2023,Adults,One Tree Estates Ltd t/a Ashbrook Nursing Home,Nursing Homes - Private Contractors Payment,3243.84,0.00,COMMERCIAL SUPPLIER 
 02-06-2023,Adults,One Tree Estates Ltd t/a Ashbrook Nursing Home,Nursing Homes - Private Contractors Payment,3604.00,0.00,COMMERCIAL SUPPLIER 
 02-06-2023,Adults,One Tree Estates Ltd t/a Ashbrook Nursing Home,Nursing Homes - Private Contractors Payment,3392.00,0.00,COMMERCIAL SUPPLIER 
 02-06-2023,Adults,One Tree Estates Ltd t/a Ashbrook Nursing Home,Nursing Homes - Private Contractors Payment,3614.29,0.00,COMMERCIAL SUPPLIER 
 02-06-2023,Adults,One Tree Estates Ltd t/a Ashbrook Nursing Home,Nursing Homes - Private Contractors Payment,4600.00,0.00,COMMERCIAL SUPPLIER 
 02-06-2023,Adults,One Tree Estates Ltd t/a Ashbrook Nursing Home,Nursing Homes - Private Contractors Payment,5512.00,0.00,COMMERCIAL SUPPLIER 
 02-06-2023,Adults,One Tree Estates Ltd t/a Ashbrook Nursing Home,Nursing Homes - Private Contractors Payment,4000.00,0.00,COMMERCIAL SUPPLIER 
 02-06-2023,Adults,One Tree Estates Ltd t/a Ashbrook Nursing Home,Nursing Homes - Private Contractors Payment,3010.32,0.00,COMMERCIAL SUPPLIER 
 02-06-2023,Adults,One Tree Estates Ltd t/a Ashbrook Nursing Home,Nursing Homes - Private Contractors Payment,4400.00,0.00,COMMERCIAL SUPPLIER 
 02-06-2023,Adults,One Tree Estates Ltd t/a Ashbrook Nursing Home,Nursing Homes - Private Contractors Payment,3816.00,0.00,COMMERCIAL SUPPLIER 
 02-06-2023,Adults,One Tree Estates Ltd t/a Ashbrook Nursing Home,Nursing Homes - Private Contractors Payment,3010.32,0.00,COMMERCIAL SUPPLIER 
 02-06-2023,Adults,One Tree Estates Ltd t/a Ashbrook Nursing Home,Nursing Homes - Private Contractors Payment,3298.72,0.00,COMMERCIAL SUPPLIER 
 02-06-2023,Adults,One Tree Estates Ltd t/a Ashbrook Nursing Home,Nursing Homes - Private Contractors Payment,3604.00,0.00,COMMERCIAL SUPPLIER 
 02-06-2023,Adults,One Tree Estates Ltd t/a Ashbrook Nursing Home,Nursing Homes - Private Contractors Payment,8624.00,0.00,COMMERCIAL SUPPLIER 
 02-06-2023,Adults,One Tree Estates Ltd t/a Ashbrook Nursing Home,Nursing Homes - Private Contractors Payment,3392.00,0.00,COMMERCIAL SUPPLIER 
 02-06-2023,Adults,One Tree Estates Ltd t/a Ashbrook Nursing Home,Nursing Homes - Private Contractors Payment,3121.43,0.00,COMMERCIAL SUPPLIER 
 02-06-2023,Adults,One Tree Estates Ltd t/a Ashbrook Nursing Home,Nursing Homes - Private Contractors Payment,12144.00,0.00,COMMERCIAL SUPPLIER 
 02-06-2023,Adults,One Tree Estates Ltd t/a Ashbrook Nursing Home,Nursing Homes - Private Contractors Payment,3257.14,0.00,COMMERCIAL SUPPLIER 
 02-06-2023,Adults,One Tree Estates Ltd t/a Ashbrook Nursing Home,Nursing Homes - Private Contractors Payment,3366.00,0.00,COMMERCIAL SUPPLIER 
 02-06-2023,Adults,Highfield Care Homes Ltd t/a Romford Grange Care Home,Nursing Homes - Private Contractors Payment,3010.32,0.00,COMMERCIAL SUPPLIER 
 02-06-2023,Adults,Highfield Care Homes Ltd t/a Romford Grange Care Home,Nursing Homes - Private Contractors Payment,2856.64,0.00,COMMERCIAL SUPPLIER 
 02-06-2023,Adults,Highfield Care Homes Ltd t/a Romford Grange Care Home,Nursing Homes - Private Contractors Payment,2856.64,0.00,COMMERCIAL SUPPLIER 
 02-06-2023,Adults,Highfield Care Homes Ltd t/a Romford Grange Care Home,Residential Placements - Private Contractors Payment,2802.40,0.00,COMMERCIAL SUPPLIER 
 02-06-2023,Adults,Highfield Care Homes Ltd t/a Romford Grange Care Home,Nursing Homes - Private Contractors Payment,3010.32,0.00,COMMERCIAL SUPPLIER 
 02-06-2023,Adults,Highfield Care Homes Ltd t/a Romford Grange Care Home,Nursing Homes - Private Contractors Payment,3010.32,0.00,COMMERCIAL SUPPLIER 
 02-06-2023,Adults,Highfield Care Homes Ltd t/a Romford Grange Care Home,Nursing Homes - Private Contractors Payment,2670.68,0.00,COMMERCIAL SUPPLIER 
 02-06-2023,Adults,Highfield Care Homes Ltd t/a Romford Grange Care Home,Nursing Homes - Private Contractors Payment,2856.64,0.00,COMMERCIAL SUPPLIER 
 02-06-2023,Adults,Highfield Care Homes Ltd t/a Romford Grange Care Home,Nursing Homes - Private Contractors Payment,3010.32,0.00,COMMERCIAL SUPPLIER 
 02-06-2023,Adults,Highfield Care Homes Ltd t/a Romford Grange Care Home,Nursing Care Income,887.11,0.00,COMMERCIAL SUPPLIER 
 02-06-2023,Adults,Highfield Care Homes Ltd t/a Romford Grange Care Home,Nursing Care Income,856.52,0.00,COMMERCIAL SUPPLIER 
 02-06-2023,Adults,Highfield Care Homes Ltd t/a Romford Grange Care Home,Nursing Care Income,856.52,0.00,COMMERCIAL SUPPLIER 
 02-06-2023,Adults,Highfield Care Homes Ltd t/a Romford Grange Care Home,Nursing Homes - Private Contractors Payment,3010.32,0.00,COMMERCIAL SUPPLIER 
 02-06-2023,Adults,Highfield Care Homes Ltd t/a Romford Grange Care Home,Residential Placements - Private Contractors Payment,3085.80,0.00,COMMERCIAL SUPPLIER 
 02-06-2023,Adults,Highfield Care Homes Ltd t/a Romford Grange Care Home,Residential Placements - Private Contractors Payment,2530.96,0.00,COMMERCIAL SUPPLIER 
 02-06-2023,Adults,Highfield Care Homes Ltd t/a Romford Grange Care Home,Nursing Homes - Private Contractors Payment,2856.64,0.00,COMMERCIAL SUPPLIER 
 02-06-2023,Adults,MNS Care Plc_a,Residential Placements - Private Contractors Payment,3782.88,0.00,COMMERCIAL SUPPLIER 
 02-06-2023,Adults,MNS Care Plc_a,Nursing Homes - Private Contractors Payment,2794.48,0.00,COMMERCIAL SUPPLIER 
 02-06-2023,Adults,MNS Care Plc_a,Nursing Homes - Private Contractors Payment,3010.32,0.00,COMMERCIAL SUPPLIER 
 02-06-2023,Adults,Bupa Care Homes (HVC) - Havering Court,Nursing Homes - Private Contractors Payment,5300.16,0.00,COMMERCIAL SUPPLIER 
 02-06-2023,Adults,Bupa Care Homes (HVC) - Havering Court,Nursing Homes - Private Contractors Payment,4201.96,0.00,COMMERCIAL SUPPLIER 
 02-06-2023,Adults,Bupa Care Homes (HVC) - Havering Court,Nursing Homes - Private Contractors Payment,3010.32,0.00,COMMERCIAL SUPPLIER 
 02-06-2023,Adults,Bupa Care Homes (HVC) - Havering Court,Nursing Homes - Private Contractors Payment,5206.80,0.00,COMMERCIAL SUPPLIER 
 02-06-2023,Adults,Bupa Care Homes (HVC) - Havering Court,Nursing Homes - Private Contractors Payment,6604.20,0.00,COMMERCIAL SUPPLIER 
 02-06-2023,Adults,Bupa Care Homes (HVC) - Havering Court,Nursing Homes - Private Contractors Payment,3874.00,0.00,COMMERCIAL SUPPLIER 
 02-06-2023,Adults,Bupa Care Homes (HVC) - Havering Court,Nursing Homes - Private Contractors Payment,3661.08,0.00,COMMERCIAL SUPPLIER 
 02-06-2023,Adults,Bupa Care Homes (HVC) - Havering Court,Nursing Homes - Private Contractors Payment,4553.88,0.00,COMMERCIAL SUPPLIER 
 02-06-2023,Adults,Bupa Care Homes (HVC) - Havering Court,Nursing Homes - Private Contractors Payment,3247.04,0.00,COMMERCIAL SUPPLIER 
 02-06-2023,Adults,Bupa Care Homes (HVC) - Havering Court,Nursing Homes - Private Contractors Payment,4260.68,0.00,COMMERCIAL SUPPLIER 
 02-06-2023,Adults,Bupa Care Homes (HVC) - Havering Court,Nursing Homes - Private Contractors Payment,4623.72,0.00,COMMERCIAL SUPPLIER 
 02-06-2023,Adults,Bupa Care Homes (HVC) - Havering Court,Nursing Homes - Private Contractors Payment,4252.44,0.00,COMMERCIAL SUPPLIER 
 02-06-2023,Adults,2 Peel Way - Outlook Care,Supported Other Accommodation - Private Contractors Payment,1041.04,0.00,NON COMMERCIAL SUPPLIER 
 02-06-2023,Adults,2 Peel Way - Outlook Care,Supported Other Accommodation - Private Contractors Payment,3298.24,0.00,NON COMMERCIAL SUPPLIER 
 02-06-2023,Adults,2 Peel Way - Outlook Care,Supported Other Accommodation - Private Contractors Payment,3106.80,0.00,NON COMMERCIAL SUPPLIER 
 02-06-2023,Adults,2 Peel Way - Outlook Care,Supported Other Accommodation - Private Contractors Payment,4255.24,0.00,NON COMMERCIAL SUPPLIER 
 02-06-2023,Adults,2 Peel Way - Outlook Care,Supported Other Accommodation - Private Contractors Payment,2532.56,0.00,NON COMMERCIAL SUPPLIER 
 02-06-2023,Adults,2 Peel Way - Outlook Care,Supported Other Accommodation - Private Contractors Payment,1858.68,0.00,NON COMMERCIAL SUPPLIER 
 02-06-2023,Adults,Outlook Care - 4 Peel Way,Supported Other Accommodation - Private Contractors Payment,1939.76,0.00,COMMERCIAL SUPPLIER 
 02-06-2023,Adults,Outlook Care - 4 Peel Way,Supported Other Accommodation - Private Contractors Payment,991.00,0.00,COMMERCIAL SUPPLIER 
 02-06-2023,Adults,Outlook Care - 4 Peel Way,Supported Other Accommodation - Private Contractors Payment,1117.88,0.00,COMMERCIAL SUPPLIER 
 02-06-2023,Adults,Outlook Care - 4 Peel Way,Supported Other Accommodation - Private Contractors Payment,3773.52,0.00,COMMERCIAL SUPPLIER 
 02-06-2023,Adults,Outlook Care - 4 Peel Way,Supported Other Accommodation - Private Contractors Payment,1857.40,0.00,COMMERCIAL SUPPLIER 
 02-06-2023,Adults,Outlook Care - 4 Peel Way,Supported Other Accommodation - Private Contractors Payment,3090.84,0.00,COMMERCIAL SUPPLIER 
 02-06-2023,Adults,Outlook Care - 4 Peel Way,Supported Other Accommodation - Private Contractors Payment,1696.48,0.00,COMMERCIAL SUPPLIER 
 02-06-2023,Adults,Outlook Care - 4 Peel Way,Supported Other Accommodation - Private Contractors Payment,3553.40,0.00,COMMERCIAL SUPPLIER 
 02-06-2023,Adults,Outlook Care - 4 Peel Way,Supported Other Accommodation - Private Contractors Payment,1939.76,0.00,COMMERCIAL SUPPLIER 
 02-06-2023,Adults,The Avenues Trust - 6 Peel Way,Residential Placements - Private Contractors Payment,6584.60,0.00,COMMERCIAL SUPPLIER 
 02-06-2023,Adults,The Avenues Trust - 6 Peel Way,Residential Placements - Private Contractors Payment,6584.60,0.00,COMMERCIAL SUPPLIER 
 02-06-2023,Adults,The Avenues Trust - 6 Peel Way,Residential Placements - Private Contractors Payment,6584.60,0.00,COMMERCIAL SUPPLIER 
 02-06-2023,Adults,The Avenues Trust - 6 Peel Way,Residential Placements - Private Contractors Payment,6584.60,0.00,COMMERCIAL SUPPLIER 
 02-06-2023,Adults,Voyage Ltd - Solar Care Melbreck,Nursing Homes - Private Contractors Payment,4536.24,0.00,COMMERCIAL SUPPLIER 
 02-06-2023,Adults,Fitzroy Support,Residential Placements - Private Contractors Payment,5746.04,0.00,COMMERCIAL SUPPLIER 
 02-06-2023,Adults,St Michaels Homes Ltd,Residential Placements - Private Contractors Payment,3085.80,0.00,COMMERCIAL SUPPLIER 
 02-06-2023,Adults,St Michaels Homes Ltd,Residential Placements - Private Contractors Payment,3085.80,0.00,COMMERCIAL SUPPLIER 
 02-06-2023,Adults,Bupa Care Homes - Hutton Village,Nursing Homes - Private Contractors Payment,3010.32,0.00,COMMERCIAL SUPPLIER 
 02-06-2023,Adults,Havering Care Homes Ltd t/a Upminster Nursing Home,Nursing Homes - Private Contractors Payment,3010.32,0.00,COMMERCIAL SUPPLIER 
 02-06-2023,Adults,Havering Care Homes Ltd t/a Upminster Nursing Home,Nursing Homes - Private Contractors Payment,2856.64,0.00,COMMERCIAL SUPPLIER 
 02-06-2023,Adults,Havering Care Homes Ltd t/a Upminster Nursing Home,Nursing Homes - Private Contractors Payment,4134.00,0.00,COMMERCIAL SUPPLIER 
 02-06-2023,Adults,Havering Care Homes Ltd t/a Upminster Nursing Home,Residential Placements - Private Contractors Payment,3085.80,0.00,COMMERCIAL SUPPLIER 
 02-06-2023,Adults,Havering Care Homes Ltd t/a Upminster Nursing Home,Nursing Homes - Private Contractors Payment,3010.32,0.00,COMMERCIAL SUPPLIER 
 02-06-2023,Adults,Havering Care Homes Ltd t/a Upminster Nursing Home,Nursing Homes - Private Contractors Payment,2856.64,0.00,COMMERCIAL SUPPLIER 
 02-06-2023,Adults,Havering Care Homes Ltd t/a Upminster Nursing Home,Nursing Homes - Private Contractors Payment,812.57,0.00,COMMERCIAL SUPPLIER 
 02-06-2023,Adults,Havering Care Homes Ltd t/a Upminster Nursing Home,Nursing Homes - Private Contractors Payment,2528.00,0.00,COMMERCIAL SUPPLIER 
 02-06-2023,Adults,Havering Care Homes Ltd t/a Upminster Nursing Home,Nursing Homes - Private Contractors Payment,2528.00,0.00,COMMERCIAL SUPPLIER 
 02-06-2023,Adults,Havering Care Homes Ltd t/a Upminster Nursing Home,Nursing Homes - Private Contractors Payment,2528.00,0.00,COMMERCIAL SUPPLIER 
 02-06-2023,Adults,Havering Care Homes Ltd t/a Upminster Nursing Home,Nursing Homes - Private Contractors Payment,2528.00,0.00,COMMERCIAL SUPPLIER 
 02-06-2023,Adults,Havering Care Homes Ltd t/a Upminster Nursing Home,Nursing Homes - Private Contractors Payment,2528.00,0.00,COMMERCIAL SUPPLIER 
 02-06-2023,Adults,Havering Care Homes Ltd t/a Upminster Nursing Home,Nursing Homes - Private Contractors Payment,2528.00,0.00,COMMERCIAL SUPPLIER 
 02-06-2023,Adults,Havering Care Homes Ltd t/a Upminster Nursing Home,Nursing Homes - Private Contractors Payment,2528.00,0.00,COMMERCIAL SUPPLIER 
 02-06-2023,Adults,Havering Care Homes Ltd t/a Upminster Nursing Home,Nursing Homes - Private Contractors Payment,2528.00,0.00,COMMERCIAL SUPPLIER 
 02-06-2023,Adults,Havering Care Homes Ltd t/a Upminster Nursing Home,Nursing Homes - Private Contractors Payment,2618.29,0.00,COMMERCIAL SUPPLIER 
 02-06-2023,Adults,Havering Care Homes Ltd t/a Upminster Nursing Home,Nursing Homes - Private Contractors Payment,2528.00,0.00,COMMERCIAL SUPPLIER 
 02-06-2023,Adults,Havering Care Homes Ltd t/a Upminster Nursing Home,Nursing Homes - Private Contractors Payment,2528.00,0.00,COMMERCIAL SUPPLIER 
 02-06-2023,Adults,Havering Care Homes Ltd t/a Upminster Nursing Home,Nursing Homes - Private Contractors Payment,2528.00,0.00,COMMERCIAL SUPPLIER 
 02-06-2023,Adults,Havering Care Homes Ltd t/a Upminster Nursing Home,Nursing Homes - Private Contractors Payment,3010.32,0.00,COMMERCIAL SUPPLIER 
 02-06-2023,Adults,Essex Care Consortium Ltd_a,Residential Placements - Private Contractors Payment,4759.24,0.00,COMMERCIAL SUPPLIER 
 02-06-2023,Adults,Mundy House,Residential Placements - Private Contractors Payment,2734.64,0.00,COMMERCIAL SUPPLIER 
 02-06-2023,Adults,Mundy House,Residential Care Income,831.02,0.00,COMMERCIAL SUPPLIER 
 02-06-2023,Adults,Mundy House,Residential Care Income,845.32,0.00,COMMERCIAL SUPPLIER 
 02-06-2023,Adults,Mundy House,Residential Care Income,865.68,0.00,COMMERCIAL SUPPLIER 
 02-06-2023,Adults,Mundy House,Residential Placements - Private Contractors Payment,3085.80,0.00,COMMERCIAL SUPPLIER 
 02-06-2023,Adults,Lukka Care Homes Ltd - Ravenscourt,Nursing Homes - Private Contractors Payment,3232.56,0.00,COMMERCIAL SUPPLIER 
 02-06-2023,Adults,Lukka Care Homes Ltd - Ravenscourt,Nursing Homes - Private Contractors Payment,3353.04,0.00,COMMERCIAL SUPPLIER 
 02-06-2023,Adults,Lukka Care Homes Ltd - Ravenscourt,Nursing Homes - Private Contractors Payment,3010.32,0.00,COMMERCIAL SUPPLIER 
 02-06-2023,Adults,Lukka Care Homes Ltd - Ravenscourt,Nursing Homes - Private Contractors Payment,5319.52,0.00,COMMERCIAL SUPPLIER 
 02-06-2023,Adults,Lukka Care Homes Ltd - Ravenscourt,Nursing Homes - Private Contractors Payment,4399.88,0.00,COMMERCIAL SUPPLIER 
 02-06-2023,Adults,Lukka Care Homes Ltd - Ravenscourt,Nursing Homes - Private Contractors Payment,3800.00,0.00,COMMERCIAL SUPPLIER 
 02-06-2023,Adults,Lukka Care Homes Ltd - Ravenscourt,Nursing Homes - Private Contractors Payment,3600.00,0.00,COMMERCIAL SUPPLIER 
 02-06-2023,Adults,Lukka Care Homes Ltd - Ravenscourt,Nursing Homes - Private Contractors Payment,4028.00,0.00,COMMERCIAL SUPPLIER 
 02-06-2023,Adults,Lukka Care Homes Ltd - Ravenscourt,Nursing Homes - Private Contractors Payment,4028.00,0.00,COMMERCIAL SUPPLIER 
 02-06-2023,Adults,Lukka Care Homes Ltd - Ravenscourt,Nursing Homes - Private Contractors Payment,3125.12,0.00,COMMERCIAL SUPPLIER 
 02-06-2023,Adults,Lukka Care Homes Ltd - Ravenscourt,Nursing Homes - Private Contractors Payment,3530.68,0.00,COMMERCIAL SUPPLIER 
 02-06-2023,Adults,Lukka Care Homes Ltd - Ravenscourt,Nursing Homes - Private Contractors Payment,4320.00,0.00,COMMERCIAL SUPPLIER 
 02-06-2023,Adults,Barchester Healthcare Ltd - Park View Care Home,Residential Placements - Private Contractors Payment,5270.32,0.00,COMMERCIAL SUPPLIER 
 02-06-2023,Adults,Barchester Healthcare Ltd - Park View Care Home,Nursing Homes - Private Contractors Payment,3125.12,0.00,COMMERCIAL SUPPLIER 
 02-06-2023,Adults,Barchester Healthcare Ltd - Park View Care Home,Nursing Homes - Private Contractors Payment,5988.96,0.00,COMMERCIAL SUPPLIER 
 02-06-2023,Adults,Barchester Healthcare Ltd - Park View Care Home,Nursing Homes - Private Contractors Payment,4527.44,0.00,COMMERCIAL SUPPLIER 
 02-06-2023,Adults,Barchester Healthcare Ltd - Park View Care Home,Nursing Homes - Private Contractors Payment,4725.88,0.00,COMMERCIAL SUPPLIER 
 02-06-2023,Adults,Barchester Healthcare Ltd - Park View Care Home,Nursing Homes - Private Contractors Payment,4482.92,0.00,COMMERCIAL SUPPLIER 
 02-06-2023,Adults,Barchester Healthcare Ltd - Park View Care Home,Nursing Homes - Private Contractors Payment,4134.00,0.00,COMMERCIAL SUPPLIER 
 02-06-2023,Adults,Barchester Healthcare Ltd - Park View Care Home,Nursing Homes - Private Contractors Payment,3921.16,0.00,COMMERCIAL SUPPLIER 
 02-06-2023,Adults,Barchester Healthcare Ltd - Park View Care Home,Nursing Homes - Private Contractors Payment,2100.62,0.00,COMMERCIAL SUPPLIER 
 02-06-2023,Adults,Barchester Healthcare Ltd - Park View Care Home,Nursing Homes - Private Contractors Payment,4527.44,0.00,COMMERCIAL SUPPLIER 
 02-06-2023,Adults,Barchester Healthcare Ltd - Park View Care Home,Nursing Homes - Private Contractors Payment,4122.00,0.00,COMMERCIAL SUPPLIER 
 02-06-2023,Adults,Barchester Healthcare Ltd - Park View Care Home,Nursing Homes - Private Contractors Payment,4060.92,0.00,COMMERCIAL SUPPLIER 
 02-06-2023,Adults,Barchester Healthcare Ltd - Park View Care Home,Residential Placements - Private Contractors Payment,3085.80,0.00,COMMERCIAL SUPPLIER 
 02-06-2023,Adults,Barchester Healthcare Ltd - Park View Care Home,Residential Placements - Private Contractors Payment,5400.00,0.00,COMMERCIAL SUPPLIER 
 02-06-2023,Adults,Mr R & Mrs V Dias,Residential Placements - Private Contractors Payment,5270.32,0.00,COMMERCIAL SUPPLIER 
 02-06-2023,Adults,Westminster Health Care Ltd Derham House,Residential Placements - Private Contractors Payment,6084.00,0.00,COMMERCIAL SUPPLIER 
 02-06-2023,Adults,Westminster Health Care Ltd Derham House,Nursing Homes - Private Contractors Payment,6499.92,0.00,COMMERCIAL SUPPLIER 
 02-06-2023,Adults,Westminster Health Care Ltd Derham House,Nursing Homes - Private Contractors Payment,2606.08,0.00,COMMERCIAL SUPPLIER 
 02-06-2023,Adults,Westminster Health Care Ltd Derham House,Nursing Homes - Private Contractors Payment,3546.68,0.00,COMMERCIAL SUPPLIER 
 02-06-2023,Adults,Westminster Health Care Ltd Derham House,Residential Placements - Private Contractors Payment,6162.64,0.00,COMMERCIAL SUPPLIER 
 02-06-2023,Adults,Westminster Health Care Ltd Derham House,Nursing Homes - Private Contractors Payment,6152.28,0.00,COMMERCIAL SUPPLIER 
 02-06-2023,Adults,Westminster Health Care Ltd Derham House,Nursing Homes - Private Contractors Payment,4198.56,0.00,COMMERCIAL SUPPLIER 
 02-06-2023,Adults,Westminster Health Care Ltd Derham House,Residential Placements - Private Contractors Payment,6360.00,0.00,COMMERCIAL SUPPLIER 
 02-06-2023,Adults,Westminster Health Care Ltd Derham House,Nursing Homes - Private Contractors Payment,6152.28,0.00,COMMERCIAL SUPPLIER 
 02-06-2023,Adults,Westminster Health Care Ltd Derham House,Nursing Homes - Private Contractors Payment,6989.04,0.00,COMMERCIAL SUPPLIER 
 02-06-2023,Adults,HC-One Oval Ltd - Chaseview,Nursing Homes - Private Contractors Payment,2667.76,0.00,COMMERCIAL SUPPLIER 
 02-06-2023,Adults,HC-One Oval Ltd - Chaseview,Residential Placements - Private Contractors Payment,2801.64,0.00,COMMERCIAL SUPPLIER 
 02-06-2023,Adults,HC-One Oval Ltd - Chaseview,Nursing Homes - Private Contractors Payment,2794.48,0.00,COMMERCIAL SUPPLIER 
 02-06-2023,Adults,HC-One Oval Ltd - Chaseview,Residential Placements - Private Contractors Payment,3085.80,0.00,COMMERCIAL SUPPLIER 
 02-06-2023,Adults,HC-One Oval Ltd - The Hornchurch Nursing Centre,Nursing Homes - Private Contractors Payment,3010.32,0.00,COMMERCIAL SUPPLIER 
 02-06-2023,Adults,HC-One Oval Ltd - The Hornchurch Nursing Centre,Residential Placements - Private Contractors Payment,3259.52,0.00,COMMERCIAL SUPPLIER 
 02-06-2023,Adults,HC-One Oval Ltd - The Hornchurch Nursing Centre,Nursing Homes - Private Contractors Payment,3010.32,0.00,COMMERCIAL SUPPLIER 
 02-06-2023,Adults,HC-One Oval Ltd - The Hornchurch Nursing Centre,Nursing Homes - Private Contractors Payment,3010.32,0.00,COMMERCIAL SUPPLIER 
 02-06-2023,Adults,HC-One Oval Ltd - The Hornchurch Nursing Centre,Nursing Homes - Private Contractors Payment,3010.32,0.00,COMMERCIAL SUPPLIER 
 02-06-2023,Adults,HC-One Oval Ltd - The Hornchurch Nursing Centre,Nursing Homes - Private Contractors Payment,860.09,0.00,COMMERCIAL SUPPLIER 
 02-06-2023,Adults,HC-One Oval Ltd - The Hornchurch Nursing Centre,Nursing Homes - Private Contractors Payment,3010.32,0.00,COMMERCIAL SUPPLIER 
 02-06-2023,Adults,HC-One Oval Ltd - The Hornchurch Nursing Centre,Residential Placements - Private Contractors Payment,3270.96,0.00,COMMERCIAL SUPPLIER 
 02-06-2023,Adults,HC-One Oval Ltd - The Hornchurch Nursing Centre,Nursing Homes - Private Contractors Payment,3010.32,0.00,COMMERCIAL SUPPLIER 
 02-06-2023,Adults,HC-One Oval Ltd - The Hornchurch Nursing Centre,Nursing Homes - Private Contractors Payment,3010.32,0.00,COMMERCIAL SUPPLIER 
 02-06-2023,Adults,HC-One Oval Ltd - The Hornchurch Nursing Centre,Nursing Homes - Private Contractors Payment,3010.32,0.00,COMMERCIAL SUPPLIER 
 02-06-2023,Adults,HC-One Oval Ltd - The Hornchurch Nursing Centre,Nursing Homes - Private Contractors Payment,3010.32,0.00,COMMERCIAL SUPPLIER 
 02-06-2023,Adults,HC-One Oval Ltd - The Hornchurch Nursing Centre,Nursing Homes - Private Contractors Payment,2856.64,0.00,COMMERCIAL SUPPLIER 
 02-06-2023,Adults,HC-One Oval Ltd - The Hornchurch Nursing Centre,Nursing Homes - Private Contractors Payment,3010.32,0.00,COMMERCIAL SUPPLIER 
 02-06-2023,Adults,HC-One Oval Ltd - The Hornchurch Nursing Centre,Respite Care - Private Contractors Payment,1371.43,0.00,COMMERCIAL SUPPLIER 
 02-06-2023,Adults,HC-One Oval Ltd - The Hornchurch Nursing Centre,Nursing Homes - Private Contractors Payment,2856.64,0.00,COMMERCIAL SUPPLIER 
 02-06-2023,Adults,HC-One Oval Ltd - The Hornchurch Nursing Centre,Nursing Homes - Private Contractors Payment,3010.32,0.00,COMMERCIAL SUPPLIER 
 02-06-2023,Adults,HC-One Oval Ltd - The Hornchurch Nursing Centre,Nursing Homes - Private Contractors Payment,3010.32,0.00,COMMERCIAL SUPPLIER 
 02-06-2023,Adults,HC-One Oval Ltd - The Hornchurch Nursing Centre,Nursing Homes - Private Contractors Payment,2856.64,0.00,COMMERCIAL SUPPLIER 
 02-06-2023,Adults,HC-One Oval Ltd - The Hornchurch Nursing Centre,Residential Placements - Private Contractors Payment,3085.80,0.00,COMMERCIAL SUPPLIER 
 02-06-2023,Adults,HC-One Oval Ltd - The Hornchurch Nursing Centre,Nursing Homes - Private Contractors Payment,2795.30,0.00,COMMERCIAL SUPPLIER 
 02-06-2023,Adults,HC-One Oval Ltd - The Hornchurch Nursing Centre,Nursing Homes - Private Contractors Payment,3010.32,0.00,COMMERCIAL SUPPLIER 
 02-06-2023,Adults,HC-One Oval Ltd - The Hornchurch Nursing Centre,Residential Placements - Private Contractors Payment,3085.80,0.00,COMMERCIAL SUPPLIER 
 02-06-2023,Adults,HC-One Oval Ltd - The Hornchurch Nursing Centre,Nursing Homes - Private Contractors Payment,3010.32,0.00,COMMERCIAL SUPPLIER 
 02-06-2023,Adults,Bramerton Care Home - Community Homes of Intensive Care and Education Ltd,Residential Placements - Private Contractors Payment,8759.00,0.00,COMMERCIAL SUPPLIER 
 02-06-2023,Adults,Stable Family Home Trust,Supported Other Accommodation - Private Contractors Payment,4392.72,0.00,COMMERCIAL SUPPLIER 
 02-06-2023,Adults,Beechcourt Care Centre - Bondcare,Nursing Homes - Private Contractors Payment,3192.00,0.00,COMMERCIAL SUPPLIER 
 02-06-2023,Adults,Beechcourt Care Centre - Bondcare,Nursing Homes - Private Contractors Payment,3192.00,0.00,COMMERCIAL SUPPLIER 
 02-06-2023,Adults,Beechcourt Care Centre - Bondcare,Nursing Homes - Private Contractors Payment,3072.00,0.00,COMMERCIAL SUPPLIER 
 02-06-2023,Adults,Beechcourt Care Centre - Bondcare,Nursing Homes - Private Contractors Payment,3745.71,0.00,COMMERCIAL SUPPLIER 
 02-06-2023,Adults,Beechcourt Care Centre - Bondcare,Nursing Homes - Private Contractors Payment,4560.00,0.00,COMMERCIAL SUPPLIER 
 02-06-2023,Adults,Beechcourt Care Centre - Bondcare,Nursing Homes - Private Contractors Payment,3192.00,0.00,COMMERCIAL SUPPLIER 
 02-06-2023,Adults,Beechcourt Care Centre - Bondcare,Nursing Homes - Private Contractors Payment,3008.00,0.00,COMMERCIAL SUPPLIER 
 02-06-2023,Adults,Beechcourt Care Centre - Bondcare,Nursing Homes - Private Contractors Payment,3192.00,0.00,COMMERCIAL SUPPLIER 
 02-06-2023,Adults,Beechcourt Care Centre - Bondcare,Nursing Homes - Private Contractors Payment,3192.00,0.00,COMMERCIAL SUPPLIER 
 02-06-2023,Adults,Beechcourt Care Centre - Bondcare,Nursing Homes - Private Contractors Payment,3192.00,0.00,COMMERCIAL SUPPLIER 
 02-06-2023,Adults,Beechcourt Care Centre - Bondcare,Nursing Homes - Private Contractors Payment,3192.00,0.00,COMMERCIAL SUPPLIER 
 02-06-2023,Adults,Beechcourt Care Centre - Bondcare,Nursing Homes - Private Contractors Payment,3192.00,0.00,COMMERCIAL SUPPLIER 
 02-06-2023,Adults,Beechcourt Care Centre - Bondcare,Nursing Homes - Private Contractors Payment,3192.00,0.00,COMMERCIAL SUPPLIER 
 02-06-2023,Adults,Beechcourt Care Centre - Bondcare,Nursing Homes - Private Contractors Payment,3008.00,0.00,COMMERCIAL SUPPLIER 
 02-06-2023,Adults,Beechcourt Care Centre - Bondcare,Nursing Homes - Private Contractors Payment,3192.00,0.00,COMMERCIAL SUPPLIER 
 02-06-2023,Adults,Beechcourt Care Centre - Bondcare,Nursing Homes - Private Contractors Payment,3192.00,0.00,COMMERCIAL SUPPLIER 
 02-06-2023,Adults,Beechcourt Care Centre - Bondcare,Nursing Homes - Private Contractors Payment,3192.00,0.00,COMMERCIAL SUPPLIER 
 02-06-2023,Adults,Beechcourt Care Centre - Bondcare,Nursing Homes - Private Contractors Payment,3192.00,0.00,COMMERCIAL SUPPLIER 
 02-06-2023,Adults,Beechcourt Care Centre - Bondcare,Nursing Homes - Private Contractors Payment,3008.00,0.00,COMMERCIAL SUPPLIER 
 02-06-2023,Adults,Beechcourt Care Centre - Bondcare,Nursing Homes - Private Contractors Payment,3192.00,0.00,COMMERCIAL SUPPLIER 
 02-06-2023,Adults,Beechcourt Care Centre - Bondcare,Residential Placements - Private Contractors Payment,2480.00,0.00,COMMERCIAL SUPPLIER 
 02-06-2023,Adults,Beechcourt Care Centre - Bondcare,Nursing Homes - Private Contractors Payment,3192.00,0.00,COMMERCIAL SUPPLIER 
 02-06-2023,Adults,Beechcourt Care Centre - Bondcare,Nursing Homes - Private Contractors Payment,3008.00,0.00,COMMERCIAL SUPPLIER 
 02-06-2023,Adults,Beechcourt Care Centre - Bondcare,Nursing Homes - Private Contractors Payment,3008.00,0.00,COMMERCIAL SUPPLIER 
 02-06-2023,Adults,Beechcourt Care Centre - Bondcare,Nursing Homes - Private Contractors Payment,2892.34,0.00,COMMERCIAL SUPPLIER 
 02-06-2023,Adults,Beechcourt Care Centre - Bondcare,Nursing Homes - Private Contractors Payment,3681.16,0.00,COMMERCIAL SUPPLIER 
 02-06-2023,Adults,Beechcourt Care Centre - Bondcare,Nursing Homes - Private Contractors Payment,3681.16,0.00,COMMERCIAL SUPPLIER 
 02-06-2023,Adults,Beechcourt Care Centre - Bondcare,Nursing Homes - Private Contractors Payment,3681.16,0.00,COMMERCIAL SUPPLIER 
 02-06-2023,Adults,Beechcourt Care Centre - Bondcare,Nursing Homes - Private Contractors Payment,3192.00,0.00,COMMERCIAL SUPPLIER 
 02-06-2023,Adults,Beechcourt Care Centre - Bondcare,Nursing Homes - Private Contractors Payment,3192.00,0.00,COMMERCIAL SUPPLIER 
 02-06-2023,Adults,Beechcourt Care Centre - Bondcare,Nursing Homes - Private Contractors Payment,3008.00,0.00,COMMERCIAL SUPPLIER 
 02-06-2023,Adults,Bondcare (London) Ltd ,Nursing Homes - Private Contractors Payment,12432.00,0.00,COMMERCIAL SUPPLIER 
 02-06-2023,Adults,Bondcare (London) Ltd ,Nursing Homes - Private Contractors Payment,3010.32,0.00,COMMERCIAL SUPPLIER 
 02-06-2023,Adults,Bondcare (London) Ltd ,Nursing Homes - Private Contractors Payment,3010.32,0.00,COMMERCIAL SUPPLIER 
 02-06-2023,Adults,Bondcare (London) Ltd ,Nursing Homes - Private Contractors Payment,3596.76,0.00,COMMERCIAL SUPPLIER 
 02-06-2023,Adults,Alexander Court Care Centre - Bondcare,Nursing Homes - Private Contractors Payment,3777.44,0.00,COMMERCIAL SUPPLIER 
 02-06-2023,Adults,Alexander Court Care Centre - Bondcare,Residential Placements - Private Contractors Payment,504.00,0.00,COMMERCIAL SUPPLIER 
 02-06-2023,Adults,Alexander Court Care Centre - Bondcare,Residential Placements - Private Contractors Payment,12600.00,0.00,COMMERCIAL SUPPLIER 
 02-06-2023,Adults,Alexander Court Care Centre - Bondcare,Residential Placements - Private Contractors Payment,9072.00,0.00,COMMERCIAL SUPPLIER 
 02-06-2023,Adults,Alexander Court Care Centre - Bondcare,Nursing Homes - Private Contractors Payment,3956.40,0.00,COMMERCIAL SUPPLIER 
 02-06-2023,Adults,Alexander Court Care Centre - Bondcare,Nursing Homes - Private Contractors Payment,3010.32,0.00,COMMERCIAL SUPPLIER 
 02-06-2023,Adults,Alexander Court Care Centre - Bondcare,Nursing Homes - Private Contractors Payment,1886.34,0.00,COMMERCIAL SUPPLIER 
 02-06-2023,Adults,Alexander Court Care Centre - Bondcare,Nursing Homes - Private Contractors Payment,3010.32,0.00,COMMERCIAL SUPPLIER 
 02-06-2023,Adults,Alexander Court Care Centre - Bondcare,Nursing Homes - Private Contractors Payment,3010.32,0.00,COMMERCIAL SUPPLIER 
 02-06-2023,Adults,Emerson Court_a,Residential Placements - Private Contractors Payment,3794.80,0.00,COMMERCIAL SUPPLIER 
 02-06-2023,Adults,Emerson Court_a,Residential Placements - Private Contractors Payment,3006.88,0.00,COMMERCIAL SUPPLIER 
 02-06-2023,Adults,Emerson Court_a,Residential Placements - Private Contractors Payment,3895.52,0.00,COMMERCIAL SUPPLIER 
 02-06-2023,Adults,DMP Healthcare (Heatherbrook) Ltd,Nursing Homes - Private Contractors Payment,5712.00,0.00,NON COMMERCIAL SUPPLIER 
 02-06-2023,Adults,DMP Healthcare (Heatherbrook) Ltd,Nursing Homes - Private Contractors Payment,2885.84,0.00,NON COMMERCIAL SUPPLIER 
 02-06-2023,Adults,DMP Healthcare (Heatherbrook) Ltd,Nursing Homes - Private Contractors Payment,3010.32,0.00,NON COMMERCIAL SUPPLIER 
 02-06-2023,Adults,DMP Healthcare (Heatherbrook) Ltd,Nursing Homes - Private Contractors Payment,3010.32,0.00,NON COMMERCIAL SUPPLIER 
 02-06-2023,Adults,DMP Healthcare (Heatherbrook) Ltd,Nursing Homes - Private Contractors Payment,3010.32,0.00,NON COMMERCIAL SUPPLIER 
 02-06-2023,Adults,DMP Healthcare (Heatherbrook) Ltd,Nursing Homes - Private Contractors Payment,3010.32,0.00,NON COMMERCIAL SUPPLIER 
 02-06-2023,Adults,DMP Healthcare (Heatherbrook) Ltd,Nursing Homes - Private Contractors Payment,3010.32,0.00,NON COMMERCIAL SUPPLIER 
 02-06-2023,Adults,DMP Healthcare (Heatherbrook) Ltd,Nursing Homes - Private Contractors Payment,2856.00,0.00,NON COMMERCIAL SUPPLIER 
 02-06-2023,Adults,DMP Healthcare (Heatherbrook) Ltd,Nursing Homes - Private Contractors Payment,2156.04,0.00,NON COMMERCIAL SUPPLIER 
 02-06-2023,Adults,DMP Healthcare (Heatherbrook) Ltd,Nursing Homes - Private Contractors Payment,4050.00,0.00,NON COMMERCIAL SUPPLIER 
 02-06-2023,Adults,DMP Healthcare (Heatherbrook) Ltd,Nursing Homes - Private Contractors Payment,3010.32,0.00,NON COMMERCIAL SUPPLIER 
 02-06-2023,Adults,DMP Healthcare (Heatherbrook) Ltd,Nursing Homes - Private Contractors Payment,4280.00,0.00,NON COMMERCIAL SUPPLIER 
 02-06-2023,Adults,DMP Healthcare (Heatherbrook) Ltd,Nursing Homes - Private Contractors Payment,2856.64,0.00,NON COMMERCIAL SUPPLIER 
 02-06-2023,Adults,DMP Healthcare (Heatherbrook) Ltd,Nursing Homes - Private Contractors Payment,3010.32,0.00,NON COMMERCIAL SUPPLIER 
 02-06-2023,Adults,DMP Healthcare (Heatherbrook) Ltd,Residential Placements - Private Contractors Payment,3085.80,0.00,NON COMMERCIAL SUPPLIER 
 02-06-2023,Adults,DMP Healthcare (Heatherbrook) Ltd,Nursing Homes - Private Contractors Payment,4240.00,0.00,NON COMMERCIAL SUPPLIER 
 02-06-2023,Adults,DMP Healthcare (Heatherbrook) Ltd,Residential Placements - Private Contractors Payment,3085.80,0.00,NON COMMERCIAL SUPPLIER 
 02-06-2023,Adults,DMP Healthcare (Heatherbrook) Ltd,Nursing Homes - Private Contractors Payment,3010.32,0.00,NON COMMERCIAL SUPPLIER 
 02-06-2023,Adults,Sense_a,Residential Placements - Private Contractors Payment,9017.44,0.00,COMMERCIAL SUPPLIER 
 02-06-2023,Adults,Outlook Care - 1A Hulse Avenue,Residential Placements - Private Contractors Payment,6006.60,0.00,COMMERCIAL SUPPLIER 
 02-06-2023,Adults,Outlook Care - 1A Hulse Avenue,Residential Placements - Private Contractors Payment,6006.60,0.00,COMMERCIAL SUPPLIER 
 02-06-2023,Adults,Outlook Care - 1A Hulse Avenue,Residential Placements - Private Contractors Payment,9240.64,0.00,COMMERCIAL SUPPLIER 
 02-06-2023,Adults,Outlook Care - 1A Hulse Avenue,Residential Placements - Private Contractors Payment,6006.60,0.00,COMMERCIAL SUPPLIER 
 02-06-2023,Adults,Oakley Carehomes Ltd t/a Abbey Care Home,Residential Placements - Private Contractors Payment,2802.40,0.00,COMMERCIAL SUPPLIER 
 02-06-2023,Adults,Masumin Ltd t/s Abbeleigh House,Residential Placements - Private Contractors Payment,3085.80,0.00,COMMERCIAL SUPPLIER 
 02-06-2023,Adults,Masumin Ltd t/s Abbeleigh House,Residential Placements - Private Contractors Payment,3085.80,0.00,COMMERCIAL SUPPLIER 
 02-06-2023,Adults,Masumin Ltd t/s Abbeleigh House,Residential Placements - Private Contractors Payment,3303.44,0.00,COMMERCIAL SUPPLIER 
 02-06-2023,Adults,Masumin Ltd t/s Abbeleigh House,Respite Care - Private Contractors Payment,771.45,0.00,COMMERCIAL SUPPLIER 
 02-06-2023,Adults,Masumin Ltd t/s Abbeleigh House,Respite Care - Private Contractors Payment,1212.28,0.00,COMMERCIAL SUPPLIER 
 02-06-2023,Adults,Masumin Ltd t/s Abbeleigh House,Residential Placements - Private Contractors Payment,3400.00,0.00,COMMERCIAL SUPPLIER 
 02-06-2023,Adults,Masumin Ltd t/s Abbeleigh House,Residential Placements - Private Contractors Payment,3085.80,0.00,COMMERCIAL SUPPLIER 
 02-06-2023,Adults,Masumin Ltd t/s Abbeleigh House,Residential Placements - Private Contractors Payment,3085.80,0.00,COMMERCIAL SUPPLIER 
 02-06-2023,Adults,Masumin Ltd t/s Abbeleigh House,Residential Placements - Private Contractors Payment,3502.24,0.00,COMMERCIAL SUPPLIER 
 02-06-2023,Adults,Masumin Ltd t/s Abbeleigh House,Residential Placements - Private Contractors Payment,3085.80,0.00,COMMERCIAL SUPPLIER 
 02-06-2023,Adults,Masumin Ltd t/s Abbeleigh House,Residential Placements - Private Contractors Payment,1588.57,0.00,COMMERCIAL SUPPLIER 
 02-06-2023,Adults,Masumin Ltd t/s Abbeleigh House,Residential Placements - Private Contractors Payment,2780.00,0.00,COMMERCIAL SUPPLIER 
 02-06-2023,Adults,Masumin Ltd t/s Abbeleigh House,Residential Placements - Private Contractors Payment,2780.00,0.00,COMMERCIAL SUPPLIER 
 02-06-2023,Adults,Masumin Ltd t/s Abbeleigh House,Residential Placements - Private Contractors Payment,2780.00,0.00,COMMERCIAL SUPPLIER 
 02-06-2023,Adults,Masumin Ltd t/s Abbeleigh House,Residential Placements - Private Contractors Payment,3500.00,0.00,COMMERCIAL SUPPLIER 
 02-06-2023,Adults,Masumin Ltd t/s Abbeleigh House,Residential Placements - Private Contractors Payment,3085.80,0.00,COMMERCIAL SUPPLIER 
 02-06-2023,Adults,Masumin Ltd t/s Abbeleigh House,Residential Placements - Private Contractors Payment,3400.00,0.00,COMMERCIAL SUPPLIER 
 02-06-2023,Adults,Masumin Ltd t/s Abbeleigh House,Residential Placements - Private Contractors Payment,3646.40,0.00,COMMERCIAL SUPPLIER 
 02-06-2023,Adults,Masumin Ltd t/s Abbeleigh House,Residential Placements - Private Contractors Payment,3085.80,0.00,COMMERCIAL SUPPLIER 
 02-06-2023,Adults,Masumin Ltd t/s Abbeleigh House,Residential Placements - Private Contractors Payment,3085.80,0.00,COMMERCIAL SUPPLIER 
 02-06-2023,Adults,Masumin Ltd t/s Abbeleigh House,Residential Placements - Private Contractors Payment,3085.80,0.00,COMMERCIAL SUPPLIER 
 02-06-2023,Adults,Masumin Ltd t/s Abbeleigh House,Residential Placements - Private Contractors Payment,3085.80,0.00,COMMERCIAL SUPPLIER 
 02-06-2023,Adults,Masumin Ltd t/s Abbeleigh House,Residential Placements - Private Contractors Payment,3085.80,0.00,COMMERCIAL SUPPLIER 
 02-06-2023,Adults,Masumin Ltd t/s Abbeleigh House,Residential Placements - Private Contractors Payment,3085.80,0.00,COMMERCIAL SUPPLIER 
 02-06-2023,Adults,Masumin Ltd t/s Abbeleigh House,Residential Placements - Private Contractors Payment,3085.80,0.00,COMMERCIAL SUPPLIER 
 02-06-2023,Adults,Masumin Ltd t/s Abbeleigh House,Residential Placements - Private Contractors Payment,3085.80,0.00,COMMERCIAL SUPPLIER 
 02-06-2023,Adults,EC Romford Holdings Ltd,Residential Placements - Private Contractors Payment,4121.28,0.00,COMMERCIAL SUPPLIER 
 02-06-2023,Adults,EC Romford Holdings Ltd,Residential Placements - Private Contractors Payment,4033.08,0.00,COMMERCIAL SUPPLIER 
 02-06-2023,Adults,EC Romford Holdings Ltd,Residential Placements - Private Contractors Payment,4267.20,0.00,COMMERCIAL SUPPLIER 
 02-06-2023,Adults,Clover Cottage Ltd,Residential Placements - Private Contractors Payment,3085.80,0.00,COMMERCIAL SUPPLIER 
 02-06-2023,Adults,Clover Cottage Ltd,Residential Placements - Private Contractors Payment,2802.40,0.00,COMMERCIAL SUPPLIER 
 02-06-2023,Adults,Clover Cottage Ltd,Residential Placements - Private Contractors Payment,4960.80,0.00,COMMERCIAL SUPPLIER 
 02-06-2023,Adults,Clover Cottage Ltd,Residential Placements - Private Contractors Payment,2802.40,0.00,COMMERCIAL SUPPLIER 
 02-06-2023,Adults,Clover Cottage Ltd,Residential Placements - Private Contractors Payment,2802.40,0.00,COMMERCIAL SUPPLIER 
 02-06-2023,Adults,Clover Cottage Ltd,Residential Placements - Private Contractors Payment,3085.80,0.00,COMMERCIAL SUPPLIER 
 02-06-2023,Adults,Clover Cottage Ltd,Residential Placements - Private Contractors Payment,3085.80,0.00,COMMERCIAL SUPPLIER 
 02-06-2023,Adults,Clover Cottage Ltd,Residential Placements - Private Contractors Payment,3085.80,0.00,COMMERCIAL SUPPLIER 
 02-06-2023,Adults,Clover Cottage Ltd,Residential Placements - Private Contractors Payment,4960.80,0.00,COMMERCIAL SUPPLIER 
 02-06-2023,Adults,Ebury Court_a,Residential Placements - Private Contractors Payment,3085.80,0.00,COMMERCIAL SUPPLIER 
 02-06-2023,Adults,Ebury Court_a,Residential Placements - Private Contractors Payment,3085.80,0.00,COMMERCIAL SUPPLIER 
 02-06-2023,Adults,Ebury Court_a,Residential Placements - Private Contractors Payment,4808.16,0.00,COMMERCIAL SUPPLIER 
 02-06-2023,Adults,Ebury Court_a,Residential Placements - Private Contractors Payment,3085.80,0.00,COMMERCIAL SUPPLIER 
 02-06-2023,Adults,Ebury Court_a,Residential Placements - Private Contractors Payment,4808.16,0.00,COMMERCIAL SUPPLIER 
 02-06-2023,Adults,Ebury Court_a,Residential Placements - Private Contractors Payment,4800.00,0.00,COMMERCIAL SUPPLIER 
 02-06-2023,Adults,May Residential Homes Ltd,Residential Placements - Private Contractors Payment,3932.28,0.00,COMMERCIAL SUPPLIER 
 02-06-2023,Adults,May Residential Homes Ltd,Residential Placements - Private Contractors Payment,3694.12,0.00,COMMERCIAL SUPPLIER 
 02-06-2023,Adults,May Residential Homes Ltd,Residential Placements - Private Contractors Payment,3085.80,0.00,COMMERCIAL SUPPLIER 
 02-06-2023,Adults,May Residential Homes Ltd,Residential Placements - Private Contractors Payment,3085.80,0.00,COMMERCIAL SUPPLIER 
 02-06-2023,Adults,May Residential Homes Ltd,Residential Placements - Private Contractors Payment,4091.60,0.00,COMMERCIAL SUPPLIER 
 02-06-2023,Adults,May Residential Homes Ltd,Residential Placements - Private Contractors Payment,4056.00,0.00,COMMERCIAL SUPPLIER 
 02-06-2023,Adults,May Residential Homes Ltd,Respite Care - Private Contractors Payment,1542.90,0.00,COMMERCIAL SUPPLIER 
 02-06-2023,Adults,May Residential Homes Ltd,Residential Placements - Private Contractors Payment,3085.80,0.00,COMMERCIAL SUPPLIER 
 02-06-2023,Adults,May Residential Homes Ltd,Residential Placements - Private Contractors Payment,3085.80,0.00,COMMERCIAL SUPPLIER 
 02-06-2023,Adults,EC Romford Holdings Ltd,Residential Placements - Private Contractors Payment,4267.20,0.00,COMMERCIAL SUPPLIER 
 02-06-2023,Adults,EC Romford Holdings Ltd,Residential Placements - Private Contractors Payment,4121.28,0.00,COMMERCIAL SUPPLIER 
 02-06-2023,Adults,EC Romford Holdings Ltd,Residential Placements - Private Contractors Payment,3085.80,0.00,COMMERCIAL SUPPLIER 
 02-06-2023,Adults,EC Romford Holdings Ltd,Residential Placements - Private Contractors Payment,4186.24,0.00,COMMERCIAL SUPPLIER 
 02-06-2023,Adults,Lodge Group Care UK Ltd,Supported Other Accommodation - Private Contractors Payment,9325.24,0.00,COMMERCIAL SUPPLIER 
 02-06-2023,Adults,Lodge Group Care UK Ltd,Supported Other Accommodation - Private Contractors Payment,9017.04,0.00,COMMERCIAL SUPPLIER 
 02-06-2023,Adults,Lodge Group Care UK Ltd,Supported Other Accommodation - Private Contractors Payment,9619.72,0.00,COMMERCIAL SUPPLIER 
 02-06-2023,Adults,Lodge Group Care UK Ltd,Supported Other Accommodation - Private Contractors Payment,9325.24,0.00,COMMERCIAL SUPPLIER 
 02-06-2023,Adults,Langley House,Residential Placements - Private Contractors Payment,3085.80,0.00,COMMERCIAL SUPPLIER 
 02-06-2023,Adults,Langley House,Residential Placements - Private Contractors Payment,2802.40,0.00,COMMERCIAL SUPPLIER 
 02-06-2023,Adults,Langley House,Residential Placements - Private Contractors Payment,3085.80,0.00,COMMERCIAL SUPPLIER 
 02-06-2023,Adults,Langley House,Respite Care - Private Contractors Payment,1457.14,0.00,COMMERCIAL SUPPLIER 
 02-06-2023,Adults,Langley House,Respite Care - Private Contractors Payment,1214.29,0.00,COMMERCIAL SUPPLIER 
 02-06-2023,Adults,Langley House,Residential Placements - Private Contractors Payment,3085.80,0.00,COMMERCIAL SUPPLIER 
 02-06-2023,Adults,Langley House,Residential Placements - Private Contractors Payment,3085.80,0.00,COMMERCIAL SUPPLIER 
 02-06-2023,Adults,Langley House,Residential Placements - Private Contractors Payment,2792.86,0.00,COMMERCIAL SUPPLIER 
 02-06-2023,Adults,Langley House,Residential Placements - Private Contractors Payment,3400.00,0.00,COMMERCIAL SUPPLIER 
 02-06-2023,Adults,Langley House,Residential Placements - Private Contractors Payment,3085.80,0.00,COMMERCIAL SUPPLIER 
 02-06-2023,Adults,Langley House,Residential Placements - Private Contractors Payment,3085.80,0.00,COMMERCIAL SUPPLIER 
 02-06-2023,Adults,Langley House,Residential Placements - Private Contractors Payment,3085.80,0.00,COMMERCIAL SUPPLIER 
 02-06-2023,Adults,Langley House,Residential Placements - Private Contractors Payment,2802.40,0.00,COMMERCIAL SUPPLIER 
 02-06-2023,Adults,Langley House,Residential Placements - Private Contractors Payment,3085.80,0.00,COMMERCIAL SUPPLIER 
 02-06-2023,Adults,Langley House,Residential Placements - Private Contractors Payment,3604.00,0.00,COMMERCIAL SUPPLIER 
 02-06-2023,Adults,Langley House,Residential Placements - Private Contractors Payment,3085.80,0.00,COMMERCIAL SUPPLIER 
 02-06-2023,Adults,Little Gaynes,Residential Placements - Private Contractors Payment,3703.56,0.00,COMMERCIAL SUPPLIER 
 02-06-2023,Adults,Little Gaynes,Residential Placements - Private Contractors Payment,1142.86,0.00,COMMERCIAL SUPPLIER 
 02-06-2023,Adults,Little Gaynes,Residential Placements - Private Contractors Payment,4000.00,0.00,COMMERCIAL SUPPLIER 
 02-06-2023,Adults,Little Gaynes,Residential Placements - Private Contractors Payment,3731.20,0.00,COMMERCIAL SUPPLIER 
 02-06-2023,Adults,Little Gaynes,Residential Placements - Private Contractors Payment,3731.20,0.00,COMMERCIAL SUPPLIER 
 02-06-2023,Adults,Little Gaynes,Respite Care - Private Contractors Payment,2000.00,0.00,COMMERCIAL SUPPLIER 
 02-06-2023,Adults,Little Gaynes,Respite Care - Private Contractors Payment,1000.00,0.00,COMMERCIAL SUPPLIER 
 02-06-2023,Adults,Little Gaynes,Residential Placements - Private Contractors Payment,3085.80,0.00,COMMERCIAL SUPPLIER 
 02-06-2023,Adults,Moreland House_a,Nursing Homes - Private Contractors Payment,3010.32,0.00,COMMERCIAL SUPPLIER 
 02-06-2023,Adults,Moreland House_a,Nursing Homes - Private Contractors Payment,3010.32,0.00,COMMERCIAL SUPPLIER 
 02-06-2023,Adults,Moreland House_a,Nursing Homes - Private Contractors Payment,3010.32,0.00,COMMERCIAL SUPPLIER 
 02-06-2023,Adults,Moreland House_a,Nursing Homes - Private Contractors Payment,3237.08,0.00,COMMERCIAL SUPPLIER 
 02-06-2023,Adults,Moreland House_a,Nursing Homes - Private Contractors Payment,3010.32,0.00,COMMERCIAL SUPPLIER 
 02-06-2023,Adults,Moreland House_a,Nursing Homes - Private Contractors Payment,3010.32,0.00,COMMERCIAL SUPPLIER 
 02-06-2023,Adults,Moreland House_a,Nursing Homes - Private Contractors Payment,2856.64,0.00,COMMERCIAL SUPPLIER 
 02-06-2023,Adults,Moreland House_a,Nursing Homes - Private Contractors Payment,3010.32,0.00,COMMERCIAL SUPPLIER 
 02-06-2023,Adults,Moreland House_a,Nursing Homes - Private Contractors Payment,9600.00,0.00,COMMERCIAL SUPPLIER 
 02-06-2023,Adults,Moreland House_a,Nursing Homes - Private Contractors Payment,4320.00,0.00,COMMERCIAL SUPPLIER 
 02-06-2023,Adults,Moreland House_a,Nursing Homes - Private Contractors Payment,3010.32,0.00,COMMERCIAL SUPPLIER 
 02-06-2023,Adults,Moreland House_a,Residential Placements - Private Contractors Payment,4134.00,0.00,COMMERCIAL SUPPLIER 
 02-06-2023,Adults,Ladyville Lodge_a,Nursing Homes - Private Contractors Payment,3911.40,0.00,COMMERCIAL SUPPLIER 
 02-06-2023,Adults,Ladyville Lodge_a,Residential Placements - Private Contractors Payment,5184.00,0.00,COMMERCIAL SUPPLIER 
 02-06-2023,Adults,Ladyville Lodge_a,Residential Placements - Private Contractors Payment,4240.00,0.00,COMMERCIAL SUPPLIER 
 02-06-2023,Adults,Ladyville Lodge_a,Residential Placements - Private Contractors Payment,4240.00,0.00,COMMERCIAL SUPPLIER 
 02-06-2023,Adults,Ladyville Lodge_a,Nursing Homes - Private Contractors Payment,3965.28,0.00,COMMERCIAL SUPPLIER 
 02-06-2023,Adults,Ladyville Lodge_a,Residential Placements - Private Contractors Payment,4697.08,0.00,COMMERCIAL SUPPLIER 
 02-06-2023,Adults,Ladyville Lodge_a,Residential Placements - Private Contractors Payment,5088.00,0.00,COMMERCIAL SUPPLIER 
 02-06-2023,Adults,Nightingale Residential Care Home Ltd,Residential Placements - Private Contractors Payment,3476.80,0.00,COMMERCIAL SUPPLIER 
 02-06-2023,Adults,Nightingale Residential Care Home Ltd,Residential Placements - Private Contractors Payment,4664.00,0.00,COMMERCIAL SUPPLIER 
 02-06-2023,Adults,Nightingale Residential Care Home Ltd,Residential Placements - Private Contractors Payment,3085.80,0.00,COMMERCIAL SUPPLIER 
 02-06-2023,Adults,Nightingale Residential Care Home Ltd,Residential Placements - Private Contractors Payment,3816.00,0.00,COMMERCIAL SUPPLIER 
 02-06-2023,Adults,Nightingale Residential Care Home Ltd,Residential Placements - Private Contractors Payment,3816.00,0.00,COMMERCIAL SUPPLIER 
 02-06-2023,Adults,Nightingale Residential Care Home Ltd,Residential Placements - Private Contractors Payment,3085.80,0.00,COMMERCIAL SUPPLIER 
 02-06-2023,Adults,Nightingale Residential Care Home Ltd,Residential Placements - Private Contractors Payment,3816.00,0.00,COMMERCIAL SUPPLIER 
 02-06-2023,Adults,Nightingale Residential Care Home Ltd,Residential Placements - Private Contractors Payment,4240.00,0.00,COMMERCIAL SUPPLIER 
 02-06-2023,Adults,Nightingale Residential Care Home Ltd,Residential Placements - Private Contractors Payment,3604.00,0.00,COMMERCIAL SUPPLIER 
 02-06-2023,Adults,Nightingale Residential Care Home Ltd,Residential Placements - Private Contractors Payment,3085.80,0.00,COMMERCIAL SUPPLIER 
 02-06-2023,Adults,Nightingale Residential Care Home Ltd,Residential Placements - Private Contractors Payment,4134.00,0.00,COMMERCIAL SUPPLIER 
 02-06-2023,Adults,Nightingale Residential Care Home Ltd,Residential Placements - Private Contractors Payment,3085.80,0.00,COMMERCIAL SUPPLIER 
 02-06-2023,Adults,Oaks Residential Home,Residential Placements - Private Contractors Payment,3085.80,0.00,COMMERCIAL SUPPLIER 
 02-06-2023,Adults,Oaks Residential Home,Residential Placements - Private Contractors Payment,4876.00,0.00,COMMERCIAL SUPPLIER 
 02-06-2023,Adults,Oaks Residential Home,Residential Placements - Private Contractors Payment,4876.00,0.00,COMMERCIAL SUPPLIER 
 02-06-2023,Adults,Oaks Residential Home,Respite Care - Private Contractors Payment,2600.00,0.00,COMMERCIAL SUPPLIER 
 02-06-2023,Adults,Oaks Residential Home,Residential Placements - Private Contractors Payment,3085.80,0.00,COMMERCIAL SUPPLIER 
 02-06-2023,Adults,Oaks Residential Home,Residential Placements - Private Contractors Payment,2802.40,0.00,COMMERCIAL SUPPLIER 
 02-06-2023,Adults,Parkside_a,Residential Placements - Private Contractors Payment,3816.00,0.00,COMMERCIAL SUPPLIER 
 02-06-2023,Adults,Parkside_a,Residential Placements - Private Contractors Payment,3085.80,0.00,COMMERCIAL SUPPLIER 
 02-06-2023,Adults,Parkside_a,Residential Placements - Private Contractors Payment,3085.80,0.00,COMMERCIAL SUPPLIER 
 02-06-2023,Adults,Priory Supporting Care Ltd,Respite Care - Private Contractors Payment,4000.00,0.00,COMMERCIAL SUPPLIER 
 02-06-2023,Adults,Priory Supporting Care Ltd,Residential Placements - Private Contractors Payment,3994.08,0.00,COMMERCIAL SUPPLIER 
 02-06-2023,Adults,Priory Supporting Care Ltd,Residential Placements - Private Contractors Payment,3085.80,0.00,COMMERCIAL SUPPLIER 
 02-06-2023,Adults,Priory Supporting Care Ltd,Residential Placements - Private Contractors Payment,3335.68,0.00,COMMERCIAL SUPPLIER 
 02-06-2023,Adults,Priory Supporting Care Ltd,Residential Placements - Private Contractors Payment,4104.00,0.00,COMMERCIAL SUPPLIER 
 02-06-2023,Adults,Priory Supporting Care Ltd,Residential Placements - Private Contractors Payment,3816.00,0.00,COMMERCIAL SUPPLIER 
 02-06-2023,Adults,Priory Supporting Care Ltd,Residential Placements - Private Contractors Payment,628.57,0.00,COMMERCIAL SUPPLIER 
 02-06-2023,Adults,Priory Supporting Care Ltd,Residential Placements - Private Contractors Payment,4400.00,0.00,COMMERCIAL SUPPLIER 
 02-06-2023,Adults,Priory Supporting Care Ltd,Residential Placements - Private Contractors Payment,3085.80,0.00,COMMERCIAL SUPPLIER 
 02-06-2023,Adults,Priory Supporting Care Ltd,Residential Placements - Private Contractors Payment,3085.80,0.00,COMMERCIAL SUPPLIER 
 02-06-2023,Adults,Priory Supporting Care Ltd,Residential Placements - Private Contractors Payment,4968.00,0.00,COMMERCIAL SUPPLIER 
 02-06-2023,Adults,Priory Supporting Care Ltd,Residential Placements - Private Contractors Payment,3085.80,0.00,COMMERCIAL SUPPLIER 
 02-06-2023,Adults,Priory Supporting Care Ltd,Residential Placements - Private Contractors Payment,3259.52,0.00,COMMERCIAL SUPPLIER 
 02-06-2023,Adults,Ash Grove Residential Care Home,Residential Placements - Private Contractors Payment,4000.00,0.00,COMMERCIAL SUPPLIER 
 02-06-2023,Adults,Ash Grove Residential Care Home,Residential Placements - Private Contractors Payment,4320.00,0.00,COMMERCIAL SUPPLIER 
 02-06-2023,Adults,Ash Grove Residential Care Home,Residential Placements - Private Contractors Payment,4028.00,0.00,COMMERCIAL SUPPLIER 
 02-06-2023,Adults,Ash Grove Residential Care Home,Residential Placements - Private Contractors Payment,2802.40,0.00,COMMERCIAL SUPPLIER 
 02-06-2023,Adults,Ash Grove Residential Care Home,Residential Placements - Private Contractors Payment,3085.80,0.00,COMMERCIAL SUPPLIER 
 02-06-2023,Adults,Ash Grove Residential Care Home,Residential Placements - Private Contractors Payment,3600.00,0.00,COMMERCIAL SUPPLIER 
 02-06-2023,Adults,Ash Grove Residential Care Home,Residential Care Income,614.52,0.00,COMMERCIAL SUPPLIER 
 02-06-2023,Adults,Ash Grove Residential Care Home,Residential Placements - Private Contractors Payment,3085.80,0.00,COMMERCIAL SUPPLIER 
 02-06-2023,Adults,Ash Grove Residential Care Home,Residential Placements - Private Contractors Payment,3085.80,0.00,COMMERCIAL SUPPLIER 
 02-06-2023,Adults,Ash Grove Residential Care Home,Residential Placements - Private Contractors Payment,3392.00,0.00,COMMERCIAL SUPPLIER 
 02-06-2023,Adults,Ash Grove Residential Care Home,Residential Placements - Private Contractors Payment,3392.00,0.00,COMMERCIAL SUPPLIER 
 02-06-2023,Adults,Ash Grove Residential Care Home,Residential Placements - Private Contractors Payment,3392.00,0.00,COMMERCIAL SUPPLIER 
 02-06-2023,Adults,Ash Grove Residential Care Home,Residential Placements - Private Contractors Payment,3392.00,0.00,COMMERCIAL SUPPLIER 
 02-06-2023,Adults,Ash Grove Residential Care Home,Residential Placements - Private Contractors Payment,3392.00,0.00,COMMERCIAL SUPPLIER 
 02-06-2023,Adults,Ash Grove Residential Care Home,Residential Placements - Private Contractors Payment,2802.40,0.00,COMMERCIAL SUPPLIER 
 02-06-2023,Adults,Ash Grove Residential Care Home,Residential Placements - Private Contractors Payment,3142.86,0.00,COMMERCIAL SUPPLIER 
 02-06-2023,Adults,Voyage Ltd - 89 Mawney Road,Residential Placements - Private Contractors Payment,6467.96,0.00,COMMERCIAL SUPPLIER 
 02-06-2023,Adults,Voyage Ltd - 89 Mawney Road,Residential Placements - Private Contractors Payment,6467.96,0.00,COMMERCIAL SUPPLIER 
 02-06-2023,Adults,Voyage Ltd - 89 Mawney Road,Residential Placements - Private Contractors Payment,6467.96,0.00,COMMERCIAL SUPPLIER 
 02-06-2023,Adults,Voyage Ltd - 89 Mawney Road,Residential Placements - Private Contractors Payment,6467.96,0.00,COMMERCIAL SUPPLIER 
 02-06-2023,Adults,Voyage Ltd - 89 Mawney Road,Residential Care Income,756.16,0.00,COMMERCIAL SUPPLIER 
 02-06-2023,Adults,Voyage Ltd - 89 Mawney Road,Residential Care Income,783.17,0.00,COMMERCIAL SUPPLIER 
 02-06-2023,Adults,Voyage Ltd - 89 Mawney Road,Residential Care Income,784.25,0.00,COMMERCIAL SUPPLIER 
 02-06-2023,Adults,Voyage Ltd - 89 Mawney Road,Residential Care Income,797.56,0.00,COMMERCIAL SUPPLIER 
 02-06-2023,Adults,GCH - Hillside Nursing Home,Nursing Homes - Private Contractors Payment,4600.00,0.00,COMMERCIAL SUPPLIER 
 02-06-2023,Adults,GCH - Hillside Nursing Home,Residential Placements - Private Contractors Payment,714.29,0.00,COMMERCIAL SUPPLIER 
 02-06-2023,Adults,GCH - Hillside Nursing Home,Nursing Homes - Private Contractors Payment,5088.00,0.00,COMMERCIAL SUPPLIER 
 02-06-2023,Adults,GCH - Hillside Nursing Home,Residential Placements - Private Contractors Payment,5000.00,0.00,COMMERCIAL SUPPLIER 
 02-06-2023,Adults,GCH - Hillside Nursing Home,Nursing Homes - Private Contractors Payment,821.43,0.00,COMMERCIAL SUPPLIER 
 02-06-2023,Adults,GCH - Hillside Nursing Home,Nursing Homes - Private Contractors Payment,4600.00,0.00,COMMERCIAL SUPPLIER 
 02-06-2023,Adults,GCH - Hillside Nursing Home,Residential Placements - Private Contractors Payment,2802.40,0.00,COMMERCIAL SUPPLIER 
 02-06-2023,Adults,GCH - Hillside Nursing Home,Nursing Homes - Private Contractors Payment,4600.00,0.00,COMMERCIAL SUPPLIER 
 02-06-2023,Adults,GCH - Hillside Nursing Home,Residential Placements - Private Contractors Payment,3085.80,0.00,COMMERCIAL SUPPLIER 
 02-06-2023,Adults,GCH - Hillside Nursing Home,Nursing Homes - Private Contractors Payment,3010.32,0.00,COMMERCIAL SUPPLIER 
 02-06-2023,Adults,GCH - Hillside Nursing Home,Residential Placements - Private Contractors Payment,4876.00,0.00,COMMERCIAL SUPPLIER 
 02-06-2023,Adults,GCH - Hillside Nursing Home,Nursing Homes - Private Contractors Payment,4876.00,0.00,COMMERCIAL SUPPLIER 
 02-06-2023,Adults,GCH - Hillside Nursing Home,Nursing Homes - Private Contractors Payment,3900.00,0.00,COMMERCIAL SUPPLIER 
 02-06-2023,Adults,GCH - Hillside Nursing Home,Nursing Homes - Private Contractors Payment,3900.00,0.00,COMMERCIAL SUPPLIER 
 02-06-2023,Adults,GCH - Hillside Nursing Home,Nursing Homes - Private Contractors Payment,2507.14,0.00,COMMERCIAL SUPPLIER 
 02-06-2023,Adults,GCH - Hillside Nursing Home,Residential Placements - Private Contractors Payment,3085.80,0.00,COMMERCIAL SUPPLIER 
 02-06-2023,Adults,GCH - Hillside Nursing Home,Nursing Homes - Private Contractors Payment,4600.00,0.00,COMMERCIAL SUPPLIER 
 02-06-2023,Adults,GCH - Hillside Nursing Home,Nursing Homes - Private Contractors Payment,4247.64,0.00,COMMERCIAL SUPPLIER 
 02-06-2023,Adults,GCH - Hillside Nursing Home,Nursing Homes - Private Contractors Payment,3816.00,0.00,COMMERCIAL SUPPLIER 
 02-06-2023,Adults,GCH - Hillside Nursing Home,Nursing Homes - Private Contractors Payment,4218.80,0.00,COMMERCIAL SUPPLIER 
 02-06-2023,Adults,GCH - Hillside Nursing Home,Nursing Homes - Private Contractors Payment,528.00,0.00,COMMERCIAL SUPPLIER 
 02-06-2023,Adults,GCH - Hillside Nursing Home,Nursing Homes - Private Contractors Payment,1964.29,0.00,COMMERCIAL SUPPLIER 
 02-06-2023,Adults,GCH - Hillside Nursing Home,Nursing Homes - Private Contractors Payment,3010.32,0.00,COMMERCIAL SUPPLIER 
 02-06-2023,Adults,GCH - Hillside Nursing Home,Nursing Homes - Private Contractors Payment,3010.32,0.00,COMMERCIAL SUPPLIER 
 02-06-2023,Adults,GCH - Hillside Nursing Home,Residential Placements - Private Contractors Payment,7392.00,0.00,COMMERCIAL SUPPLIER 
 02-06-2023,Adults,GCH - Hillside Nursing Home,Residential Placements - Private Contractors Payment,3899.88,0.00,COMMERCIAL SUPPLIER 
 02-06-2023,Adults,GCH - Hillside Nursing Home,Nursing Homes - Private Contractors Payment,14784.00,0.00,COMMERCIAL SUPPLIER 
 02-06-2023,Adults,GCH - Hillside Nursing Home,Nursing Homes - Private Contractors Payment,3509.88,0.00,COMMERCIAL SUPPLIER 
 02-06-2023,Adults,Outlook Care - 86 Veronica Close,Residential Placements - Private Contractors Payment,4875.52,0.00,COMMERCIAL SUPPLIER 
 02-06-2023,Adults,Outlook Care - 86 Veronica Close,Residential Placements - Private Contractors Payment,4875.52,0.00,COMMERCIAL SUPPLIER 
 02-06-2023,Adults,Outlook Care - 86 Veronica Close,Residential Placements - Private Contractors Payment,4875.52,0.00,COMMERCIAL SUPPLIER 
 02-06-2023,Adults,Outlook Care - 86 Veronica Close,Residential Placements - Private Contractors Payment,1565.56,0.00,COMMERCIAL SUPPLIER 
 02-06-2023,Adults,Outlook Care - 86 Veronica Close,Residential Placements - Private Contractors Payment,4875.52,0.00,COMMERCIAL SUPPLIER 
 02-06-2023,Adults,Outlook Care - 86 Veronica Close,Residential Placements - Private Contractors Payment,4875.52,0.00,COMMERCIAL SUPPLIER 
 02-06-2023,Adults,Outlook Care - 86 Veronica Close,Residential Placements - Private Contractors Payment,4875.52,0.00,COMMERCIAL SUPPLIER 
 02-06-2023,Adults,Outlook Care - 86 Veronica Close,Residential Placements - Private Contractors Payment,4875.52,0.00,COMMERCIAL SUPPLIER 
 02-06-2023,Adults,Outlook Care - 86 Veronica Close,Residential Placements - Private Contractors Payment,4875.52,0.00,COMMERCIAL SUPPLIER 
 02-06-2023,Adults,Outlook Care - 86 Veronica Close,Residential Placements - Private Contractors Payment,4875.52,0.00,COMMERCIAL SUPPLIER 
 02-06-2023,Adults,Outlook Care - 86 Veronica Close,Residential Placements - Private Contractors Payment,4875.52,0.00,COMMERCIAL SUPPLIER 
 02-06-2023,Adults,Lodge Lane Care Home Limited,Respite Care - Private Contractors Payment,612.00,0.00,COMMERCIAL SUPPLIER 
 02-06-2023,Adults,Lodge Lane Care Home Limited,Respite Care - Private Contractors Payment,1873.52,0.00,COMMERCIAL SUPPLIER 
 02-06-2023,Adults,Lodge Lane Care Home Limited,Respite Care - Private Contractors Payment,2755.18,0.00,COMMERCIAL SUPPLIER 
 02-06-2023,Adults,Lodge Lane Care Home Limited,Respite Care - Private Contractors Payment,2244.00,0.00,COMMERCIAL SUPPLIER 
 02-06-2023,Adults,Lodge Lane Care Home Limited,Residential Placements - Private Contractors Payment,3085.80,0.00,COMMERCIAL SUPPLIER 
 02-06-2023,Adults,Lodge Lane Care Home Limited,Residential Placements - Private Contractors Payment,1064.00,0.00,COMMERCIAL SUPPLIER 
 02-06-2023,Adults,Lodge Lane Care Home Limited,Residential Placements - Private Contractors Payment,3085.80,0.00,COMMERCIAL SUPPLIER 
 02-06-2023,Adults,Lodge Lane Care Home Limited,Residential Placements - Private Contractors Payment,3085.80,0.00,COMMERCIAL SUPPLIER 
 02-06-2023,Adults,Lodge Lane Care Home Limited,Residential Placements - Private Contractors Payment,3085.80,0.00,COMMERCIAL SUPPLIER 
 02-06-2023,Adults,Lodge Lane Care Home Limited,Residential Placements - Private Contractors Payment,3085.80,0.00,COMMERCIAL SUPPLIER 
 02-06-2023,Adults,Lodge Lane Care Home Limited,Residential Placements - Private Contractors Payment,3085.80,0.00,COMMERCIAL SUPPLIER 
 02-06-2023,Adults,Lodge Lane Care Home Limited,Residential Placements - Private Contractors Payment,3085.80,0.00,COMMERCIAL SUPPLIER 
 02-06-2023,Adults,Lodge Lane Care Home Limited,Residential Placements - Private Contractors Payment,1653.11,0.00,COMMERCIAL SUPPLIER 
 02-06-2023,Adults,Lodge Lane Care Home Limited,Residential Placements - Private Contractors Payment,3085.80,0.00,COMMERCIAL SUPPLIER 
 02-06-2023,Adults,Lodge Lane Care Home Limited,Residential Placements - Private Contractors Payment,1212.28,0.00,COMMERCIAL SUPPLIER 
 02-06-2023,Adults,Lodge Lane Care Home Limited,Residential Placements - Private Contractors Payment,1212.28,0.00,COMMERCIAL SUPPLIER 
 02-06-2023,Adults,Lodge Lane Care Home Limited,Residential Placements - Private Contractors Payment,3085.80,0.00,COMMERCIAL SUPPLIER 
 02-06-2023,Adults,Lodge Lane Care Home Limited,Residential Placements - Private Contractors Payment,3085.80,0.00,COMMERCIAL SUPPLIER 
 02-06-2023,Adults,Lodge Lane Care Home Limited,Residential Placements - Private Contractors Payment,3085.80,0.00,COMMERCIAL SUPPLIER 
 02-06-2023,Adults,Lodge Lane Care Home Limited,Residential Placements - Private Contractors Payment,3085.80,0.00,COMMERCIAL SUPPLIER 
 02-06-2023,Adults,Lodge Lane Care Home Limited,Residential Placements - Private Contractors Payment,3085.80,0.00,COMMERCIAL SUPPLIER 
 02-06-2023,Adults,Lodge Lane Care Home Limited,Residential Placements - Private Contractors Payment,3085.80,0.00,COMMERCIAL SUPPLIER 
 02-06-2023,Adults,Lodge Lane Care Home Limited,Residential Placements - Private Contractors Payment,3085.80,0.00,COMMERCIAL SUPPLIER 
 02-06-2023,Adults,Lodge Lane Care Home Limited,Residential Placements - Private Contractors Payment,3085.80,0.00,COMMERCIAL SUPPLIER 
 02-06-2023,Adults,Lodge Lane Care Home Limited,Residential Placements - Private Contractors Payment,3085.80,0.00,COMMERCIAL SUPPLIER 
 02-06-2023,Adults,Lodge Lane Care Home Limited,Residential Placements - Private Contractors Payment,3085.80,0.00,COMMERCIAL SUPPLIER 
 02-06-2023,Adults,Lodge Lane Care Home Limited,Residential Placements - Private Contractors Payment,3085.80,0.00,COMMERCIAL SUPPLIER 
 02-06-2023,Adults,Lodge Lane Care Home Limited,Residential Placements - Private Contractors Payment,3085.80,0.00,COMMERCIAL SUPPLIER 
 02-06-2023,Adults,Lodge Lane Care Home Limited,Residential Placements - Private Contractors Payment,1653.11,0.00,COMMERCIAL SUPPLIER 
 02-06-2023,Adults,Lodge Lane Care Home Limited,Residential Placements - Private Contractors Payment,3085.80,0.00,COMMERCIAL SUPPLIER 
 02-06-2023,Adults,Lodge Lane Care Home Limited,Residential Placements - Private Contractors Payment,3085.80,0.00,COMMERCIAL SUPPLIER 
 02-06-2023,Adults,Lodge Lane Care Home Limited,Residential Placements - Private Contractors Payment,3085.80,0.00,COMMERCIAL SUPPLIER 
 02-06-2023,Adults,Lodge Lane Care Home Limited,Residential Placements - Private Contractors Payment,3085.80,0.00,COMMERCIAL SUPPLIER 
 02-06-2023,Adults,Lodge Lane Care Home Limited,Residential Placements - Private Contractors Payment,3085.80,0.00,COMMERCIAL SUPPLIER 
 02-06-2023,Adults,Lodge Lane Care Home Limited,Residential Placements - Private Contractors Payment,3085.80,0.00,COMMERCIAL SUPPLIER 
 02-06-2023,Adults,Lodge Lane Care Home Limited,Residential Placements - Private Contractors Payment,3085.80,0.00,COMMERCIAL SUPPLIER 
 02-06-2023,Adults,Lodge Lane Care Home Limited,Residential Placements - Private Contractors Payment,3085.80,0.00,COMMERCIAL SUPPLIER 
 02-06-2023,Adults,Lodge Lane Care Home Limited,Residential Placements - Private Contractors Payment,3085.80,0.00,COMMERCIAL SUPPLIER 
 02-06-2023,Adults,Lodge Lane Care Home Limited,Residential Placements - Private Contractors Payment,3085.80,0.00,COMMERCIAL SUPPLIER 
 02-06-2023,Adults,Lodge Lane Care Home Limited,Respite Care - Private Contractors Payment,1414.29,0.00,COMMERCIAL SUPPLIER 
 02-06-2023,Adults,Lodge Lane Care Home Limited,Residential Placements - Private Contractors Payment,3085.80,0.00,COMMERCIAL SUPPLIER 
 02-06-2023,Adults,Lodge Lane Care Home Limited,Residential Placements - Private Contractors Payment,3085.80,0.00,COMMERCIAL SUPPLIER 
 02-06-2023,Adults,Lodge Lane Care Home Limited,Residential Placements - Private Contractors Payment,3400.00,0.00,COMMERCIAL SUPPLIER 
 02-06-2023,Adults,Lodge Lane Care Home Limited,Residential Placements - Private Contractors Payment,3085.80,0.00,COMMERCIAL SUPPLIER 
 02-06-2023,Adults,Lodge Lane Care Home Limited,Residential Placements - Private Contractors Payment,3085.80,0.00,COMMERCIAL SUPPLIER 
 02-06-2023,Adults,Lodge Lane Care Home Limited,Residential Placements - Private Contractors Payment,3085.80,0.00,COMMERCIAL SUPPLIER 
 02-06-2023,Adults,Lodge Lane Care Home Limited,Residential Placements - Private Contractors Payment,3085.80,0.00,COMMERCIAL SUPPLIER 
 02-06-2023,Adults,Lodge Lane Care Home Limited,Residential Placements - Private Contractors Payment,3085.80,0.00,COMMERCIAL SUPPLIER 
 02-06-2023,Adults,Lodge Lane Care Home Limited,Residential Placements - Private Contractors Payment,3085.80,0.00,COMMERCIAL SUPPLIER 
 02-06-2023,Adults,Lodge Lane Care Home Limited,Residential Placements - Private Contractors Payment,3085.80,0.00,COMMERCIAL SUPPLIER 
 02-06-2023,Adults,Lodge Lane Care Home Limited,Respite Care - Private Contractors Payment,1322.49,0.00,COMMERCIAL SUPPLIER 
 02-06-2023,Adults,Lodge Lane Care Home Limited,Respite Care - Private Contractors Payment,1763.31,0.00,COMMERCIAL SUPPLIER 
 02-06-2023,Adults,Lodge Lane Care Home Limited,Respite Care - Private Contractors Payment,3085.80,0.00,COMMERCIAL SUPPLIER 
 02-06-2023,Adults,Lodge Lane Care Home Limited,Residential Placements - Private Contractors Payment,3085.80,0.00,COMMERCIAL SUPPLIER 
 02-06-2023,Adults,Lodge Lane Care Home Limited,Residential Placements - Private Contractors Payment,3085.80,0.00,COMMERCIAL SUPPLIER 
 02-06-2023,Adults,Lodge Lane Care Home Limited,Residential Placements - Private Contractors Payment,3085.80,0.00,COMMERCIAL SUPPLIER 
 02-06-2023,Adults,Lodge Lane Care Home Limited,Residential Placements - Private Contractors Payment,3085.80,0.00,COMMERCIAL SUPPLIER 
 02-06-2023,Adults,Lodge Lane Care Home Limited,Residential Placements - Private Contractors Payment,3085.80,0.00,COMMERCIAL SUPPLIER 
 02-06-2023,Adults,Lodge Lane Care Home Limited,Residential Placements - Private Contractors Payment,3085.80,0.00,COMMERCIAL SUPPLIER 
 02-06-2023,Adults,Lodge Lane Care Home Limited,Residential Placements - Private Contractors Payment,3085.80,0.00,COMMERCIAL SUPPLIER 
 02-06-2023,Adults,Lodge Lane Care Home Limited,Residential Placements - Private Contractors Payment,3085.80,0.00,COMMERCIAL SUPPLIER 
 02-06-2023,Adults,Lodge Lane Care Home Limited,Residential Placements - Private Contractors Payment,3085.80,0.00,COMMERCIAL SUPPLIER 
 02-06-2023,Adults,Lodge Lane Care Home Limited,Respite Care - Private Contractors Payment,2914.29,0.00,COMMERCIAL SUPPLIER 
 02-06-2023,Adults,Lodge Lane Care Home Limited,Residential Placements - Private Contractors Payment,3085.80,0.00,COMMERCIAL SUPPLIER 
 02-06-2023,Adults,Lodge Lane Care Home Limited,Respite Care - Private Contractors Payment,661.24,0.00,COMMERCIAL SUPPLIER 
 02-06-2023,Adults,Lodge Lane Care Home Limited,Residential Placements - Private Contractors Payment,3600.00,0.00,COMMERCIAL SUPPLIER 
 02-06-2023,Adults,Lodge Lane Care Home Limited,Respite Care - Private Contractors Payment,1700.00,0.00,COMMERCIAL SUPPLIER 
 02-06-2023,Adults,Lodge Lane Care Home Limited,Residential Placements - Private Contractors Payment,3085.80,0.00,COMMERCIAL SUPPLIER 
 02-06-2023,Adults,Lodge Lane Care Home Limited,Residential Placements - Private Contractors Payment,3085.80,0.00,COMMERCIAL SUPPLIER 
 02-06-2023,Adults,Lodge Lane Care Home Limited,Residential Placements - Private Contractors Payment,3085.80,0.00,COMMERCIAL SUPPLIER 
 02-06-2023,Adults,Rose House_a,Residential Placements - Private Contractors Payment,7101.16,0.00,COMMERCIAL SUPPLIER 
 02-06-2023,Adults,Melody Lodge_a,Residential Placements - Private Contractors Payment,5067.56,0.00,COMMERCIAL SUPPLIER 
 02-06-2023,Adults,Outlook Care_a,Supported Other Accommodation - Private Contractors Payment,2433.72,0.00,COMMERCIAL SUPPLIER 
 02-06-2023,Adults,Abbottswood Lodge,Residential Placements - Private Contractors Payment,1904.88,0.00,COMMERCIAL SUPPLIER 
 02-06-2023,Adults,Autism Initiatives,Residential Placements - Private Contractors Payment,6010.88,0.00,COMMERCIAL SUPPLIER 
 02-06-2023,Adults,The Cottage Residential Care Home,Residential Placements - Private Contractors Payment,1123.52,0.00,COMMERCIAL SUPPLIER 
 02-06-2023,Adults,The Cottage Residential Care Home,Residential Placements - Private Contractors Payment,3204.32,0.00,COMMERCIAL SUPPLIER 
 02-06-2023,Adults,Ashgate House Ltd_a,Residential Placements - Private Contractors Payment,1408.12,0.00,COMMERCIAL SUPPLIER 
 02-06-2023,Adults,Ashgate House Ltd_a,Residential Placements - Private Contractors Payment,5080.32,0.00,COMMERCIAL SUPPLIER 
 02-06-2023,Adults,Ashgate House Ltd_a,Residential Placements - Private Contractors Payment,1269.24,0.00,COMMERCIAL SUPPLIER 
 02-06-2023,Adults,Ashgate House Ltd_a,Residential Placements - Private Contractors Payment,3953.36,0.00,COMMERCIAL SUPPLIER 
 02-06-2023,Adults,Ashgate House Ltd_a,Residential Placements - Private Contractors Payment,5146.20,0.00,COMMERCIAL SUPPLIER 
 02-06-2023,Adults,Ashgate House Ltd_a,Residential Placements - Private Contractors Payment,5514.16,0.00,COMMERCIAL SUPPLIER 
 02-06-2023,Adults,Ashgate House Ltd_a,Residential Placements - Private Contractors Payment,2280.96,0.00,COMMERCIAL SUPPLIER 
 02-06-2023,Adults,Ashgate House Ltd_a,Residential Placements - Private Contractors Payment,4282.72,0.00,COMMERCIAL SUPPLIER 
 02-06-2023,Adults,Ashgate House Ltd_a,Residential Placements - Private Contractors Payment,805.84,0.00,COMMERCIAL SUPPLIER 
 02-06-2023,Adults,Ashgate House Ltd_a,Residential Placements - Private Contractors Payment,4072.48,0.00,COMMERCIAL SUPPLIER 
 02-06-2023,Adults,Voyage Ltd - Drakes Place,Residential Placements - Private Contractors Payment,4995.96,0.00,COMMERCIAL SUPPLIER 
 02-06-2023,Adults,Acorn Village_a,Residential Placements - Private Contractors Payment,3739.92,0.00,COMMERCIAL SUPPLIER 
 02-06-2023,Adults,Acorn Village_a,Residential Placements - Private Contractors Payment,774.92,0.00,COMMERCIAL SUPPLIER 
 02-06-2023,Adults,Hilton House,Residential Placements - Private Contractors Payment,4626.80,0.00,COMMERCIAL SUPPLIER 
 02-06-2023,Adults,Churchill House_a,Residential Placements - Private Contractors Payment,3197.80,0.00,COMMERCIAL SUPPLIER 
 02-06-2023,Adults,Churchill House_a,Residential Placements - Private Contractors Payment,4295.52,0.00,COMMERCIAL SUPPLIER 
 02-06-2023,Adults,Churchill House_a,Residential Placements - Private Contractors Payment,4551.64,0.00,COMMERCIAL SUPPLIER 
 02-06-2023,Adults,Ashking House Ltd,Residential Placements - Private Contractors Payment,1746.20,0.00,COMMERCIAL SUPPLIER 
 02-06-2023,Adults,Ashking House Ltd,Residential Placements - Private Contractors Payment,4438.56,0.00,COMMERCIAL SUPPLIER 
 02-06-2023,Adults,Ashking House Ltd,Residential Placements - Private Contractors Payment,6750.60,0.00,COMMERCIAL SUPPLIER 
 02-06-2023,Adults,Community Care Mission 2000 Ltd,Residential Placements - Private Contractors Payment,11721.84,0.00,COMMERCIAL SUPPLIER 
 02-06-2023,Adults,Community Care Mission 2000 Ltd,Residential Placements - Private Contractors Payment,9979.16,0.00,COMMERCIAL SUPPLIER 
 02-06-2023,Adults,Genesis Residential Homes Ltd - Dothan House,Residential Placements - Private Contractors Payment,3085.80,0.00,COMMERCIAL SUPPLIER 
 02-06-2023,Adults,Genesis Residential Homes Ltd - Dothan House,Residential Placements - Private Contractors Payment,3085.80,0.00,COMMERCIAL SUPPLIER 
 02-06-2023,Adults,Genesis Residential Homes Ltd - Dothan House,Residential Placements - Private Contractors Payment,551.04,0.00,COMMERCIAL SUPPLIER 
 02-06-2023,Adults,Genesis Residential Homes Ltd - Dothan House,Residential Placements - Private Contractors Payment,3085.80,0.00,COMMERCIAL SUPPLIER 
 02-06-2023,Adults,Genesis Residential Homes Ltd - Dothan House,Residential Placements - Private Contractors Payment,3085.80,0.00,COMMERCIAL SUPPLIER 
 02-06-2023,Adults,Genesis Residential Homes Ltd - Dothan House,Residential Placements - Private Contractors Payment,3085.80,0.00,COMMERCIAL SUPPLIER 
 02-06-2023,Adults,Genesis Residential Homes Ltd - Dothan House,Residential Placements - Private Contractors Payment,3085.80,0.00,COMMERCIAL SUPPLIER 
 02-06-2023,Adults,Genesis Residential Homes Ltd - Dothan House,Residential Placements - Private Contractors Payment,3085.80,0.00,COMMERCIAL SUPPLIER 
 02-06-2023,Adults,Genesis Residential Homes Ltd - Dothan House,Residential Placements - Private Contractors Payment,3085.80,0.00,COMMERCIAL SUPPLIER 
 02-06-2023,Adults,Genesis Residential Homes Ltd - Dothan House,Residential Placements - Private Contractors Payment,3085.80,0.00,COMMERCIAL SUPPLIER 
 02-06-2023,Adults,DMP Healthcare (Cherry Orchard) Ltd,Nursing Homes - Private Contractors Payment,8568.00,0.00,COMMERCIAL SUPPLIER 
 02-06-2023,Adults,DMP Healthcare (Cherry Orchard) Ltd,Nursing Homes - Private Contractors Payment,4625.04,0.00,COMMERCIAL SUPPLIER 
 02-06-2023,Adults,DMP Healthcare (Cherry Orchard) Ltd,Nursing Homes - Private Contractors Payment,3010.32,0.00,COMMERCIAL SUPPLIER 
 02-06-2023,Adults,DMP Healthcare (Cherry Orchard) Ltd,Nursing Homes - Private Contractors Payment,2878.80,0.00,COMMERCIAL SUPPLIER 
 02-06-2023,Adults,DMP Healthcare (Cherry Orchard) Ltd,Nursing Homes - Private Contractors Payment,3577.72,0.00,COMMERCIAL SUPPLIER 
 02-06-2023,Adults,DMP Healthcare (Cherry Orchard) Ltd,Nursing Homes - Private Contractors Payment,3259.52,0.00,COMMERCIAL SUPPLIER 
 02-06-2023,Adults,DMP Healthcare (Cherry Orchard) Ltd,Nursing Homes - Private Contractors Payment,4400.00,0.00,COMMERCIAL SUPPLIER 
 02-06-2023,Adults,DMP Healthcare (Cherry Orchard) Ltd,Nursing Homes - Private Contractors Payment,4741.84,0.00,COMMERCIAL SUPPLIER 
 02-06-2023,Adults,DMP Healthcare (Cherry Orchard) Ltd,Residential Placements - Private Contractors Payment,2484.12,0.00,COMMERCIAL SUPPLIER 
 02-06-2023,Adults,DMP Healthcare (Cherry Orchard) Ltd,Nursing Homes - Private Contractors Payment,4060.92,0.00,COMMERCIAL SUPPLIER 
 02-06-2023,Adults,DMP Healthcare (Cherry Orchard) Ltd,Nursing Homes - Private Contractors Payment,9744.00,0.00,COMMERCIAL SUPPLIER 
 02-06-2023,Adults,DMP Healthcare (Cherry Orchard) Ltd,Nursing Homes - Private Contractors Payment,3816.00,0.00,COMMERCIAL SUPPLIER 
 02-06-2023,Adults,DMP Healthcare (Cherry Orchard) Ltd,Nursing Homes - Private Contractors Payment,5541.48,0.00,COMMERCIAL SUPPLIER 
 02-06-2023,Adults,DMP Healthcare (Cherry Orchard) Ltd,Nursing Homes - Private Contractors Payment,5541.48,0.00,COMMERCIAL SUPPLIER 
 02-06-2023,Adults,DMP Healthcare (Cherry Orchard) Ltd,Nursing Homes - Private Contractors Payment,1385.37,0.00,COMMERCIAL SUPPLIER 
 02-06-2023,Adults,DMP Healthcare (Cherry Orchard) Ltd,Nursing Homes - Private Contractors Payment,3150.76,0.00,COMMERCIAL SUPPLIER 
 02-06-2023,Adults,Whiteheather Ltd,Residential Placements - Private Contractors Payment,10402.00,0.00,COMMERCIAL SUPPLIER 
 02-06-2023,Adults,Brook Care Home_a,Residential Placements - Private Contractors Payment,3258.00,0.00,COMMERCIAL SUPPLIER 
 02-06-2023,Adults,Castle Care UK Ltd,Nursing Homes - Private Contractors Payment,2992.56,0.00,COMMERCIAL SUPPLIER 
 02-06-2023,Adults,Castle Care UK Ltd,Nursing Homes - Private Contractors Payment,5712.00,0.00,COMMERCIAL SUPPLIER 
 02-06-2023,Adults,Castle Care UK Ltd,Nursing Homes - Private Contractors Payment,3010.32,0.00,COMMERCIAL SUPPLIER 
 02-06-2023,Adults,Castle Care UK Ltd,Nursing Homes - Private Contractors Payment,5712.00,0.00,COMMERCIAL SUPPLIER 
 02-06-2023,Adults,Castle Care UK Ltd,Nursing Homes - Private Contractors Payment,5712.00,0.00,COMMERCIAL SUPPLIER 
 02-06-2023,Adults,Barleycroft Care Home Ltd,Residential Placements - Private Contractors Payment,2802.40,0.00,COMMERCIAL SUPPLIER 
 02-06-2023,Adults,Barleycroft Care Home Ltd,Nursing Homes - Private Contractors Payment,3010.32,0.00,COMMERCIAL SUPPLIER 
 02-06-2023,Adults,Barleycroft Care Home Ltd,Nursing Homes - Private Contractors Payment,3800.00,0.00,COMMERCIAL SUPPLIER 
 02-06-2023,Adults,Barleycroft Care Home Ltd,Nursing Homes - Private Contractors Payment,3800.00,0.00,COMMERCIAL SUPPLIER 
 02-06-2023,Adults,Barleycroft Care Home Ltd,Residential Placements - Private Contractors Payment,3085.80,0.00,COMMERCIAL SUPPLIER 
 02-06-2023,Adults,Barleycroft Care Home Ltd,Nursing Homes - Private Contractors Payment,2856.64,0.00,COMMERCIAL SUPPLIER 
 02-06-2023,Adults,Barleycroft Care Home Ltd,Residential Placements - Private Contractors Payment,3085.80,0.00,COMMERCIAL SUPPLIER 
 02-06-2023,Adults,Barleycroft Care Home Ltd,Residential Placements - Private Contractors Payment,3085.80,0.00,COMMERCIAL SUPPLIER 
 02-06-2023,Adults,Barleycroft Care Home Ltd,Nursing Homes - Private Contractors Payment,3010.32,0.00,COMMERCIAL SUPPLIER 
 02-06-2023,Adults,Barleycroft Care Home Ltd,Nursing Homes - Private Contractors Payment,3243.84,0.00,COMMERCIAL SUPPLIER 
 02-06-2023,Adults,Barleycroft Care Home Ltd,Nursing Homes - Private Contractors Payment,3010.32,0.00,COMMERCIAL SUPPLIER 
 02-06-2023,Adults,Barleycroft Care Home Ltd,Residential Placements - Private Contractors Payment,2802.40,0.00,COMMERCIAL SUPPLIER 
 02-06-2023,Adults,Barleycroft Care Home Ltd,Nursing Homes - Private Contractors Payment,2856.64,0.00,COMMERCIAL SUPPLIER 
 02-06-2023,Adults,Barleycroft Care Home Ltd,Nursing Homes - Private Contractors Payment,3010.32,0.00,COMMERCIAL SUPPLIER 
 02-06-2023,Adults,Barleycroft Care Home Ltd,Nursing Homes - Private Contractors Payment,3010.32,0.00,COMMERCIAL SUPPLIER 
 02-06-2023,Adults,Barleycroft Care Home Ltd,Residential Placements - Private Contractors Payment,3960.16,0.00,COMMERCIAL SUPPLIER 
 02-06-2023,Adults,Barleycroft Care Home Ltd,Residential Placements - Private Contractors Payment,2802.40,0.00,COMMERCIAL SUPPLIER 
 02-06-2023,Adults,Barleycroft Care Home Ltd,Residential Placements - Private Contractors Payment,3085.80,0.00,COMMERCIAL SUPPLIER 
 02-06-2023,Adults,Barleycroft Care Home Ltd,Nursing Homes - Private Contractors Payment,3010.32,0.00,COMMERCIAL SUPPLIER 
 02-06-2023,Adults,Barleycroft Care Home Ltd,Residential Placements - Private Contractors Payment,3085.80,0.00,COMMERCIAL SUPPLIER 
 02-06-2023,Adults,Barleycroft Care Home Ltd,Residential Placements - Private Contractors Payment,3085.80,0.00,COMMERCIAL SUPPLIER 
 02-06-2023,Adults,Barleycroft Care Home Ltd,Residential Placements - Private Contractors Payment,3085.80,0.00,COMMERCIAL SUPPLIER 
 02-06-2023,Adults,Barleycroft Care Home Ltd,Nursing Homes - Private Contractors Payment,3010.32,0.00,COMMERCIAL SUPPLIER 
 02-06-2023,Adults,Barleycroft Care Home Ltd,Residential Placements - Private Contractors Payment,3085.80,0.00,COMMERCIAL SUPPLIER 
 02-06-2023,Adults,Barleycroft Care Home Ltd,Nursing Homes - Private Contractors Payment,3600.00,0.00,COMMERCIAL SUPPLIER 
 02-06-2023,Adults,Barleycroft Care Home Ltd,Nursing Homes - Private Contractors Payment,1680.00,0.00,COMMERCIAL SUPPLIER 
 02-06-2023,Adults,Barleycroft Care Home Ltd,Nursing Homes - Private Contractors Payment,1920.00,0.00,COMMERCIAL SUPPLIER 
 02-06-2023,Adults,Barleycroft Care Home Ltd,Nursing Homes - Private Contractors Payment,3010.32,0.00,COMMERCIAL SUPPLIER 
 02-06-2023,Adults,Barleycroft Care Home Ltd,Nursing Homes - Private Contractors Payment,3010.32,0.00,COMMERCIAL SUPPLIER 
 02-06-2023,Adults,Barleycroft Care Home Ltd,Nursing Homes - Private Contractors Payment,3010.32,0.00,COMMERCIAL SUPPLIER 
 02-06-2023,Adults,Barleycroft Care Home Ltd,Nursing Homes - Private Contractors Payment,2780.00,0.00,COMMERCIAL SUPPLIER 
 02-06-2023,Adults,Barleycroft Care Home Ltd,Nursing Homes - Private Contractors Payment,3010.32,0.00,COMMERCIAL SUPPLIER 
 02-06-2023,Adults,Barleycroft Care Home Ltd,Residential Placements - Private Contractors Payment,3085.80,0.00,COMMERCIAL SUPPLIER 
 02-06-2023,Adults,The Avenues Trust - 73A Neave Crescent,Residential Placements - Private Contractors Payment,6659.24,0.00,COMMERCIAL SUPPLIER 
 02-06-2023,Adults,The Avenues Trust - 73A Neave Crescent,Residential Placements - Private Contractors Payment,6143.52,0.00,COMMERCIAL SUPPLIER 
 02-06-2023,Adults,The Avenues Trust - 73A Neave Crescent,Residential Placements - Private Contractors Payment,6928.20,0.00,COMMERCIAL SUPPLIER 
 02-06-2023,Adults,The Avenues Trust - 73A Neave Crescent,Residential Placements - Private Contractors Payment,6789.48,0.00,COMMERCIAL SUPPLIER 
 02-06-2023,Adults,The Avenues Trust - 73A Neave Crescent,Residential Placements - Private Contractors Payment,6792.36,0.00,COMMERCIAL SUPPLIER 
 02-06-2023,Adults,The Avenues Trust_a,Residential Placements - Private Contractors Payment,6792.36,0.00,COMMERCIAL SUPPLIER 
 02-06-2023,Adults,The Avenues Trust_a,Residential Placements - Private Contractors Payment,6792.36,0.00,COMMERCIAL SUPPLIER 
 02-06-2023,Adults,The Avenues Trust_a,Residential Placements - Private Contractors Payment,6792.36,0.00,COMMERCIAL SUPPLIER 
 02-06-2023,Adults,The Avenues Trust - 13A Repton Drive,Residential Placements - Private Contractors Payment,6959.84,0.00,COMMERCIAL SUPPLIER 
 02-06-2023,Adults,The Avenues Trust - 13A Repton Drive,Residential Placements - Private Contractors Payment,6959.84,0.00,COMMERCIAL SUPPLIER 
 02-06-2023,Adults,The Avenues Trust - 13A Repton Drive,Residential Placements - Private Contractors Payment,6959.84,0.00,COMMERCIAL SUPPLIER 
 02-06-2023,Adults,The Avenues Trust - 13A Repton Drive,Residential Placements - Private Contractors Payment,6959.84,0.00,COMMERCIAL SUPPLIER 
 02-06-2023,Adults,The Avenues Trust - 13A Repton Drive,Residential Placements - Private Contractors Payment,6959.84,0.00,COMMERCIAL SUPPLIER 
 02-06-2023,Adults,The Avenues Trust - 13A Repton Drive,Residential Placements - Private Contractors Payment,6959.84,0.00,COMMERCIAL SUPPLIER 
 02-06-2023,Adults,Consensus Support Services Ltd - Southwold House,Residential Placements - Private Contractors Payment,9068.16,0.00,COMMERCIAL SUPPLIER 
 02-06-2023,Adults,Palm Care Ltd,Residential Placements - Private Contractors Payment,6390.36,0.00,COMMERCIAL SUPPLIER 
 02-06-2023,Adults,The Meath,Residential Placements - Private Contractors Payment,6179.04,0.00,COMMERCIAL SUPPLIER 
 02-06-2023,Adults,The Meath,Residential Placements - Private Contractors Payment,6179.04,0.00,COMMERCIAL SUPPLIER 
 02-06-2023,Adults,Runwood Homes Plc - Woodbury Court,Residential Placements - Private Contractors Payment,2890.84,0.00,COMMERCIAL SUPPLIER 
 02-06-2023,Adults,Consensus Support Services Ltd - Rowan House,Residential Placements - Private Contractors Payment,9224.20,0.00,COMMERCIAL SUPPLIER 
 02-06-2023,Adults,Runwood Homes Ltd - Kathryn Court,Residential Placements - Private Contractors Payment,3085.80,0.00,COMMERCIAL SUPPLIER 
 02-06-2023,Adults,Oaks Health Ltd,Residential Placements - Private Contractors Payment,9505.68,0.00,COMMERCIAL SUPPLIER 
 02-06-2023,Adults,Clearwater Care (Hackney) Ltd - Searsons Way,Residential Placements - Private Contractors Payment,13129.64,0.00,COMMERCIAL SUPPLIER 
 02-06-2023,Adults,Clearwater Care (Hackney) Ltd - Searsons Way,Residential Placements - Private Contractors Payment,7665.88,0.00,COMMERCIAL SUPPLIER 
 02-06-2023,Adults,Clearwater Care (Hackney) Ltd - Searsons Way,Residential Placements - Private Contractors Payment,7186.76,0.00,COMMERCIAL SUPPLIER 
 02-06-2023,Adults,Outlook Care - 76 Neave Crescent,Supported Other Accommodation - Private Contractors Payment,1686.96,0.00,COMMERCIAL SUPPLIER 
 02-06-2023,Adults,Outlook Care - 76 Neave Crescent,Supported Other Accommodation - Private Contractors Payment,1725.76,0.00,COMMERCIAL SUPPLIER 
 02-06-2023,Adults,Outlook Care - 76 Neave Crescent,Supported Other Accommodation - Private Contractors Payment,860.72,0.00,COMMERCIAL SUPPLIER 
 02-06-2023,Adults,Outlook Care - 76 Neave Crescent,Supported Other Accommodation - Private Contractors Payment,1812.16,0.00,COMMERCIAL SUPPLIER 
 02-06-2023,Adults,Outlook Care - 76 Neave Crescent,Supported Other Accommodation - Private Contractors Payment,1686.96,0.00,COMMERCIAL SUPPLIER 
 02-06-2023,Adults,Outlook Care - 76 Neave Crescent,Supported Other Accommodation - Private Contractors Payment,1686.96,0.00,COMMERCIAL SUPPLIER 
 02-06-2023,Adults,Outlook Care - 76 Neave Crescent,Supported Other Accommodation - Private Contractors Payment,1686.96,0.00,COMMERCIAL SUPPLIER 
 02-06-2023,Adults,Outlook Care - 76 Neave Crescent,Supported Other Accommodation - Private Contractors Payment,1686.96,0.00,COMMERCIAL SUPPLIER 
 02-06-2023,Adults,Outlook Care - 76 Neave Crescent,Supported Other Accommodation - Private Contractors Payment,1857.48,0.00,COMMERCIAL SUPPLIER 
 02-06-2023,Adults,Outlook Care - 76 Neave Crescent,Supported Other Accommodation - Private Contractors Payment,1857.48,0.00,COMMERCIAL SUPPLIER 
 02-06-2023,Adults,Outlook Care - 76 Neave Crescent,Supported Other Accommodation - Private Contractors Payment,586.80,0.00,COMMERCIAL SUPPLIER 
 02-06-2023,Adults,Outlook Care - 76 Neave Crescent,Supported Other Accommodation - Private Contractors Payment,1725.76,0.00,COMMERCIAL SUPPLIER 
 02-06-2023,Adults,Outlook Care - 76 Neave Crescent,Supported Other Accommodation - Private Contractors Payment,1686.96,0.00,COMMERCIAL SUPPLIER 
 02-06-2023,Adults,Outlook Care - 76 Neave Crescent,Supported Other Accommodation - Private Contractors Payment,1686.96,0.00,COMMERCIAL SUPPLIER 
 02-06-2023,Adults,Outlook Care - 76 Neave Crescent,Supported Other Accommodation - Private Contractors Payment,1691.92,0.00,COMMERCIAL SUPPLIER 
 02-06-2023,Adults,Outlook Care - 76 Neave Crescent,Supported Other Accommodation - Private Contractors Payment,1686.96,0.00,COMMERCIAL SUPPLIER 
 02-06-2023,Adults,Outlook Care - 76 Neave Crescent,Supported Other Accommodation - Private Contractors Payment,1691.92,0.00,COMMERCIAL SUPPLIER 
 02-06-2023,Adults,Outlook Care - 76 Neave Crescent,Supported Other Accommodation - Private Contractors Payment,760.76,0.00,COMMERCIAL SUPPLIER 
 02-06-2023,Adults,Outlook Care - 76 Neave Crescent,Supported Other Accommodation - Private Contractors Payment,1725.76,0.00,COMMERCIAL SUPPLIER 
 02-06-2023,Adults,Outlook Care - 76 Neave Crescent,Supported Other Accommodation - Private Contractors Payment,1725.76,0.00,COMMERCIAL SUPPLIER 
 02-06-2023,Adults,Outlook Care - 74 Neave Crescent,Respite Care - Private Contractors Payment,4963.41,0.00,COMMERCIAL SUPPLIER 
 02-06-2023,Adults,Outlook Care - 74 Neave Crescent,Residential Placements - Private Contractors Payment,28779.12,0.00,COMMERCIAL SUPPLIER 
 02-06-2023,Adults,Achieve Together  Ltd - Cherrycroft,Residential Placements - Private Contractors Payment,8234.40,0.00,COMMERCIAL SUPPLIER 
 02-06-2023,Adults,Black Swan International Ltd - Mid Meadows,Residential Placements - Private Contractors Payment,4146.20,0.00,COMMERCIAL SUPPLIER 
 02-06-2023,Adults,Ranc Care Homes Ltd - Brentwood Care Centre,Nursing Homes - Private Contractors Payment,4925.72,0.00,COMMERCIAL SUPPLIER 
 02-06-2023,Adults,CAS Learning Disabilities Ltd,Residential Placements - Private Contractors Payment,10157.32,0.00,COMMERCIAL SUPPLIER 
 02-06-2023,Adults,Roselock Ltd_a,Residential Placements - Private Contractors Payment,7814.36,0.00,COMMERCIAL SUPPLIER 
 02-06-2023,Adults,Roselock Ltd_a,Residential Placements - Private Contractors Payment,7814.36,0.00,COMMERCIAL SUPPLIER 
 02-06-2023,Adults,Acer Healthcare Operation Ltd,Nursing Homes - Private Contractors Payment,6300.00,0.00,COMMERCIAL SUPPLIER 
 02-06-2023,Adults,Acer Healthcare Operation Ltd,Nursing Homes - Private Contractors Payment,4134.00,0.00,COMMERCIAL SUPPLIER 
 02-06-2023,Adults,Acer Healthcare Operation Ltd,Nursing Homes - Private Contractors Payment,2667.76,0.00,COMMERCIAL SUPPLIER 
 02-06-2023,Adults,Acer Healthcare Operation Ltd,Nursing Homes - Private Contractors Payment,3833.76,0.00,COMMERCIAL SUPPLIER 
 02-06-2023,Adults,Acer Healthcare Operation Ltd,Nursing Homes - Private Contractors Payment,2842.28,0.00,COMMERCIAL SUPPLIER 
 02-06-2023,Adults,Acer Healthcare Operation Ltd,Nursing Homes - Private Contractors Payment,2794.48,0.00,COMMERCIAL SUPPLIER 
 02-06-2023,Adults,Endsleigh Care Ltd,Residential Placements - Private Contractors Payment,2096.12,0.00,COMMERCIAL SUPPLIER 
 02-06-2023,Adults,Endsleigh Care Ltd,Residential Placements - Private Contractors Payment,3144.20,0.00,COMMERCIAL SUPPLIER 
 02-06-2023,Adults,Endsleigh Care Ltd,Residential Placements - Private Contractors Payment,3810.88,0.00,COMMERCIAL SUPPLIER 
 02-06-2023,Adults,North London Care (Havering) Ltd_a,Residential Placements - Private Contractors Payment,8673.00,0.00,COMMERCIAL SUPPLIER 
 02-06-2023,Adults,North London Care (Havering) Ltd_a,Residential Placements - Private Contractors Payment,8998.92,0.00,COMMERCIAL SUPPLIER 
 02-06-2023,Adults,North London Care (Havering) Ltd_a,Residential Placements - Private Contractors Payment,10197.36,0.00,COMMERCIAL SUPPLIER 
 02-06-2023,Adults,North London Care (Havering) Ltd_a,Residential Placements - Private Contractors Payment,8149.68,0.00,COMMERCIAL SUPPLIER 
 02-06-2023,Adults,Ranc Care Homes Ltd - Romford Care Centre,Nursing Homes - Private Contractors Payment,4876.20,0.00,COMMERCIAL SUPPLIER 
 02-06-2023,Adults,Ranc Care Homes Ltd - Romford Care Centre,Respite Care - Private Contractors Payment,800.00,0.00,COMMERCIAL SUPPLIER 
 02-06-2023,Adults,Ranc Care Homes Ltd - Romford Care Centre,Respite Care - Private Contractors Payment,2000.00,0.00,COMMERCIAL SUPPLIER 
 02-06-2023,Adults,Ranc Care Homes Ltd - Romford Care Centre,Residential Placements - Private Contractors Payment,4812.40,0.00,COMMERCIAL SUPPLIER 
 02-06-2023,Adults,Ranc Care Homes Ltd - Romford Care Centre,Respite Care - Private Contractors Payment,1542.90,0.00,COMMERCIAL SUPPLIER 
 02-06-2023,Adults,Ranc Care Homes Ltd - Romford Care Centre,Nursing Homes - Private Contractors Payment,3010.32,0.00,COMMERCIAL SUPPLIER 
 02-06-2023,Adults,Ranc Care Homes Ltd - Romford Care Centre,Nursing Care Income,957.65,0.00,COMMERCIAL SUPPLIER 
 02-06-2023,Adults,Ranc Care Homes Ltd - Romford Care Centre,Residential Placements - Private Contractors Payment,3085.80,0.00,COMMERCIAL SUPPLIER 
 02-06-2023,Adults,Ranc Care Homes Ltd - Romford Care Centre,Residential Placements - Private Contractors Payment,1857.14,0.00,COMMERCIAL SUPPLIER 
 02-06-2023,Adults,Ranc Care Homes Ltd - Romford Care Centre,Residential Placements - Private Contractors Payment,5200.00,0.00,COMMERCIAL SUPPLIER 
 02-06-2023,Adults,Ranc Care Homes Ltd - Romford Care Centre,Residential Placements - Private Contractors Payment,4211.28,0.00,COMMERCIAL SUPPLIER 
 02-06-2023,Adults,Ranc Care Homes Ltd - Romford Care Centre,Residential Placements - Private Contractors Payment,5200.00,0.00,COMMERCIAL SUPPLIER 
 02-06-2023,Adults,Ranc Care Homes Ltd - Romford Care Centre,Residential Placements - Private Contractors Payment,3392.00,0.00,COMMERCIAL SUPPLIER 
 02-06-2023,Adults,Ranc Care Homes Ltd - Romford Care Centre,Residential Placements - Private Contractors Payment,5088.00,0.00,COMMERCIAL SUPPLIER 
 02-06-2023,Adults,Ranc Care Homes Ltd - Romford Care Centre,Residential Placements - Private Contractors Payment,5724.00,0.00,COMMERCIAL SUPPLIER 
 02-06-2023,Adults,Ranc Care Homes Ltd - Romford Care Centre,Residential Placements - Private Contractors Payment,5512.00,0.00,COMMERCIAL SUPPLIER 
 02-06-2023,Adults,Ranc Care Homes Ltd - Romford Care Centre,Respite Care - Private Contractors Payment,2600.00,0.00,COMMERCIAL SUPPLIER 
 02-06-2023,Adults,Ranc Care Homes Ltd - Romford Care Centre,Residential Placements - Private Contractors Payment,5300.00,0.00,COMMERCIAL SUPPLIER 
 02-06-2023,Adults,Ranc Care Homes Ltd - Romford Care Centre,Residential Placements - Private Contractors Payment,2712.00,0.00,COMMERCIAL SUPPLIER 
 02-06-2023,Adults,Ranc Care Homes Ltd - Romford Care Centre,Residential Placements - Private Contractors Payment,3085.80,0.00,COMMERCIAL SUPPLIER 
 02-06-2023,Adults,Ranc Care Homes Ltd - Romford Care Centre,Nursing Homes - Private Contractors Payment,2727.32,0.00,COMMERCIAL SUPPLIER 
 02-06-2023,Adults,Ranc Care Homes Ltd - Romford Care Centre,Nursing Homes - Private Contractors Payment,5088.00,0.00,COMMERCIAL SUPPLIER 
 02-06-2023,Adults,Ranc Care Homes Ltd - Romford Care Centre,Residential Placements - Private Contractors Payment,5512.00,0.00,COMMERCIAL SUPPLIER 
 02-06-2023,Adults,Ranc Care Homes Ltd - Romford Care Centre,Nursing Homes - Private Contractors Payment,3010.32,0.00,COMMERCIAL SUPPLIER 
 02-06-2023,Adults,Ranc Care Homes Ltd - Romford Care Centre,Residential Placements - Private Contractors Payment,4220.00,0.00,COMMERCIAL SUPPLIER 
 02-06-2023,Adults,Ranc Care Homes Ltd - Romford Care Centre,Residential Placements - Private Contractors Payment,3085.80,0.00,COMMERCIAL SUPPLIER 
 02-06-2023,Adults,Affinia Healthcare Ltd_a,Supported Other Accommodation - Private Contractors Payment,1963.24,0.00,COMMERCIAL SUPPLIER 
 02-06-2023,Adults,Affinia Healthcare Ltd_a,Supported Other Accommodation - Private Contractors Payment,1782.84,0.00,COMMERCIAL SUPPLIER 
 02-06-2023,Adults,Affinia Healthcare Ltd_a,Supported Other Accommodation - Private Contractors Payment,2403.00,0.00,COMMERCIAL SUPPLIER 
 02-06-2023,Adults,Affinia Healthcare Ltd_a,Supported Other Accommodation - Private Contractors Payment,1732.76,0.00,COMMERCIAL SUPPLIER 
 02-06-2023,Adults,Affinia Healthcare Ltd_a,Supported Other Accommodation - Private Contractors Payment,1869.80,0.00,COMMERCIAL SUPPLIER 
 02-06-2023,Adults,Affinia Healthcare Ltd_a,Supported Other Accommodation - Private Contractors Payment,3332.48,0.00,COMMERCIAL SUPPLIER 
 02-06-2023,Adults,Affinia Healthcare Ltd_a,Supported Other Accommodation - Private Contractors Payment,1891.20,0.00,COMMERCIAL SUPPLIER 
 02-06-2023,Adults,Affinia Healthcare Ltd_a,Supported Other Accommodation - Private Contractors Payment,4655.24,0.00,COMMERCIAL SUPPLIER 
 02-06-2023,Adults,Affinia Healthcare Ltd_a,Supported Other Accommodation - Private Contractors Payment,1891.20,0.00,COMMERCIAL SUPPLIER 
 02-06-2023,Adults,Affinia Healthcare Ltd_a,Supported Other Accommodation - Private Contractors Payment,2053.12,0.00,COMMERCIAL SUPPLIER 
 02-06-2023,Adults,Affinia Healthcare Ltd_a,Supported Other Accommodation - Private Contractors Payment,2146.72,0.00,COMMERCIAL SUPPLIER 
 02-06-2023,Adults,Affinia Healthcare Ltd_a,Supported Other Accommodation - Private Contractors Payment,733.28,0.00,COMMERCIAL SUPPLIER 
 02-06-2023,Adults,Affinia Healthcare Ltd_a,Supported Other Accommodation - Private Contractors Payment,1892.68,0.00,COMMERCIAL SUPPLIER 
 02-06-2023,Adults,Affinia Healthcare Ltd_a,Supported Other Accommodation - Private Contractors Payment,1674.24,0.00,COMMERCIAL SUPPLIER 
 02-06-2023,Adults,Affinia Healthcare Ltd_a,Supported Other Accommodation - Private Contractors Payment,2905.12,0.00,COMMERCIAL SUPPLIER 
 02-06-2023,Adults,Affinia Healthcare Ltd_a,Supported Other Accommodation - Private Contractors Payment,3044.88,0.00,COMMERCIAL SUPPLIER 
 02-06-2023,Adults,Affinia Healthcare Ltd_a,Supported Other Accommodation - Private Contractors Payment,6026.80,0.00,COMMERCIAL SUPPLIER 
 02-06-2023,Adults,Affinia Healthcare Ltd_a,Supported Other Accommodation - Private Contractors Payment,2217.96,0.00,COMMERCIAL SUPPLIER 
 02-06-2023,Adults,Affinia Healthcare Ltd_a,Supported Other Accommodation - Private Contractors Payment,1840.52,0.00,COMMERCIAL SUPPLIER 
 02-06-2023,Adults,Affinia Healthcare Ltd_a,Supported Other Accommodation - Private Contractors Payment,3183.16,0.00,COMMERCIAL SUPPLIER 
 02-06-2023,Adults,Affinia Healthcare Ltd_a,Supported Other Accommodation - Private Contractors Payment,586.64,0.00,COMMERCIAL SUPPLIER 
 02-06-2023,Adults,Affinia Healthcare Ltd_a,Supported Other Accommodation - Private Contractors Payment,1891.20,0.00,COMMERCIAL SUPPLIER 
 02-06-2023,Adults,Affinia Healthcare Ltd_a,Supported Other Accommodation - Private Contractors Payment,2689.56,0.00,COMMERCIAL SUPPLIER 
 02-06-2023,Adults,Affinia Healthcare Ltd_a,Supported Other Accommodation - Private Contractors Payment,2939.92,0.00,COMMERCIAL SUPPLIER 
 02-06-2023,Adults,Satash Community Care Project Ltd,Residential Placements - Private Contractors Payment,6851.36,0.00,COMMERCIAL SUPPLIER 
 02-06-2023,Adults,Runwood Homes - Windle Court,Residential Placements - Private Contractors Payment,2792.28,0.00,COMMERCIAL SUPPLIER 
 02-06-2023,Adults,Two Trees Caring Home,Residential Placements - Private Contractors Payment,3057.80,0.00,COMMERCIAL SUPPLIER 
 02-06-2023,Adults,Leonard Cheshire Disability_a.,Residential Placements - Private Contractors Payment,4839.04,0.00,COMMERCIAL SUPPLIER 
 02-06-2023,Adults,Leonard Cheshire Disability_a.,Residential Placements - Private Contractors Payment,567.36,0.00,COMMERCIAL SUPPLIER 
 02-06-2023,Adults,Kathryn Homes Ltd_a,Residential Placements - Private Contractors Payment,3085.80,0.00,COMMERCIAL SUPPLIER 
 02-06-2023,Adults,Care Management Group Ltd - Meesons Lodge,Residential Placements - Private Contractors Payment,7636.04,0.00,COMMERCIAL SUPPLIER 
 02-06-2023,Adults,Care Management Group Ltd - Meesons Lodge,Residential Placements - Private Contractors Payment,7186.76,0.00,COMMERCIAL SUPPLIER 
 02-06-2023,Adults,Acorn Lodge Care Home,Residential Placements - Private Contractors Payment,4695.88,0.00,NON COMMERCIAL SUPPLIER 
 02-06-2023,Adults,Lily Close-Partnerships in Care,Residential Placements - Private Contractors Payment,6447.68,0.00,COMMERCIAL SUPPLIER 
 02-06-2023,Adults,Livingspring Group Ltd t/a Kadmiel Projects_a,Supported Other Accommodation - Private Contractors Payment,5544.28,0.00,COMMERCIAL SUPPLIER 
 02-06-2023,Adults,Livingspring Group Ltd t/a Kadmiel Projects_a,Supported Other Accommodation - Private Contractors Payment,3996.40,0.00,COMMERCIAL SUPPLIER 
 02-06-2023,Adults,Livingspring Group Ltd t/a Kadmiel Projects_a,Supported Other Accommodation - Private Contractors Payment,3241.72,0.00,COMMERCIAL SUPPLIER 
 02-06-2023,Adults,Ashchurch House,Residential Placements - Private Contractors Payment,5034.88,0.00,COMMERCIAL SUPPLIER 
 02-06-2023,Adults,Sunnyside Home Care,Residential Placements - Private Contractors Payment,6075.16,0.00,COMMERCIAL SUPPLIER 
 02-06-2023,Adults,Sunnyside Home Care,Residential Placements - Private Contractors Payment,6238.08,0.00,COMMERCIAL SUPPLIER 
 02-06-2023,Adults,Sunnyside Home Care,Residential Placements - Private Contractors Payment,7148.40,0.00,COMMERCIAL SUPPLIER 
 02-06-2023,Adults,Meadowbanks,Residential Placements - Private Contractors Payment,5936.00,0.00,COMMERCIAL SUPPLIER 
 02-06-2023,Adults,Honeywood,Supported Other Accommodation - Private Contractors Payment,7482.24,0.00,COMMERCIAL SUPPLIER 
 02-06-2023,Adults,Florijn Care Ltd,Residential Placements - Private Contractors Payment,10816.96,0.00,COMMERCIAL SUPPLIER 
 02-06-2023,Adults,Larkfield Hall Ltd_a,Residential Placements - Private Contractors Payment,7707.44,0.00,COMMERCIAL SUPPLIER 
 02-06-2023,Adults,The Avenues Trust Support Services Glebe House,Nursing Homes - Private Contractors Payment,4818.48,0.00,COMMERCIAL SUPPLIER 
 02-06-2023,Adults,The Avenues Trust Support Services Glebe House,Nursing Homes - Private Contractors Payment,2686.32,0.00,COMMERCIAL SUPPLIER 
 02-06-2023,Adults,The Avenues Trust Support Services Glebe House,Nursing Homes - Private Contractors Payment,4629.84,0.00,COMMERCIAL SUPPLIER 
 02-06-2023,Adults,The Avenues Trust Support Services Glebe House,Nursing Homes - Private Contractors Payment,6086.84,0.00,COMMERCIAL SUPPLIER 
 02-06-2023,Adults,The Avenues Trust Support Services Glebe House,Nursing Homes - Private Contractors Payment,3116.64,0.00,COMMERCIAL SUPPLIER 
 02-06-2023,Adults,The Avenues Trust Support Services Glebe House,Nursing Homes - Private Contractors Payment,4539.04,0.00,COMMERCIAL SUPPLIER 
 02-06-2023,Adults,L & Q Living (SWIFT Payments),Supported Other Accommodation - Private Contractors Payment,1424.20,0.00,COMMERCIAL SUPPLIER 
 02-06-2023,Adults,Brenalwood Care Home,Residential Placements - Private Contractors Payment,2803.40,0.00,COMMERCIAL SUPPLIER 
 02-06-2023,Adults,Feore Support Ltd,Supported Other Accommodation - Private Contractors Payment,5565.72,0.00,COMMERCIAL SUPPLIER 
 02-06-2023,Adults,Feore Support Ltd,Supported Other Accommodation - Private Contractors Payment,9963.24,0.00,COMMERCIAL SUPPLIER 
 02-06-2023,Adults,Feore Support Ltd,Supported Other Accommodation - Private Contractors Payment,6365.32,0.00,COMMERCIAL SUPPLIER 
 02-06-2023,Adults,CIC Central Support Services,Supported Other Accommodation - Private Contractors Payment,6345.84,0.00,COMMERCIAL SUPPLIER 
 02-06-2023,Adults,Bishops Croft - Craegmoor FCL New Directions,Residential Placements - Private Contractors Payment,6641.32,0.00,COMMERCIAL SUPPLIER 
 02-06-2023,Adults,The Cedars,Supported Other Accommodation - Private Contractors Payment,1653.48,0.00,COMMERCIAL SUPPLIER 
 02-06-2023,Adults,The Cedars,Supported Other Accommodation - Private Contractors Payment,3114.88,0.00,COMMERCIAL SUPPLIER 
 02-06-2023,Adults,The Cedars,Supported Other Accommodation - Private Contractors Payment,4171.84,0.00,COMMERCIAL SUPPLIER 
 02-06-2023,Adults,The Cedars,Supported Other Accommodation - Private Contractors Payment,4220.96,0.00,COMMERCIAL SUPPLIER 
 02-06-2023,Adults,The Cedars,Supported Other Accommodation - Private Contractors Payment,3118.48,0.00,COMMERCIAL SUPPLIER 
 02-06-2023,Adults,The Cedars,Supported Other Accommodation - Private Contractors Payment,3118.48,0.00,COMMERCIAL SUPPLIER 
 02-06-2023,Adults,The Cedars,Supported Other Accommodation - Private Contractors Payment,4171.84,0.00,COMMERCIAL SUPPLIER 
 02-06-2023,Adults,The Cedars,Supported Other Accommodation - Private Contractors Payment,4220.96,0.00,COMMERCIAL SUPPLIER 
 02-06-2023,Adults,The Cedars,Supported Other Accommodation - Private Contractors Payment,1102.48,0.00,COMMERCIAL SUPPLIER 
 02-06-2023,Adults,The Cedars,Supported Other Accommodation - Private Contractors Payment,1597.56,0.00,COMMERCIAL SUPPLIER 
 02-06-2023,Adults,The Cedars,Supported Other Accommodation - Private Contractors Payment,4171.84,0.00,COMMERCIAL SUPPLIER 
 02-06-2023,Adults,The Cedars,Supported Other Accommodation - Private Contractors Payment,988.40,0.00,COMMERCIAL SUPPLIER 
 02-06-2023,Adults,Faris Lodge,Supported Other Accommodation - Private Contractors Payment,2449.12,0.00,COMMERCIAL SUPPLIER 
 02-06-2023,Adults,Clearwater Care (Hackney) Ltd - Craigdale,Supported Other Accommodation - Private Contractors Payment,2606.08,0.00,COMMERCIAL SUPPLIER 
 02-06-2023,Adults,Clearwater Care (Hackney) Ltd - Craigdale,Supported Other Accommodation - Private Contractors Payment,4319.04,0.00,COMMERCIAL SUPPLIER 
 02-06-2023,Adults,Clearwater Care (Hackney) Ltd - Craigdale,Supported Other Accommodation - Private Contractors Payment,2619.56,0.00,COMMERCIAL SUPPLIER 
 02-06-2023,Adults,Care Management Group Ltd - The Ridgeway,Supported Other Accommodation - Private Contractors Payment,6871.20,0.00,COMMERCIAL SUPPLIER 
 02-06-2023,Adults,Care Management Group Ltd - The Ridgeway,Supported Other Accommodation - Private Contractors Payment,7504.40,0.00,COMMERCIAL SUPPLIER 
 02-06-2023,Adults,Care Management Group Ltd - The Ridgeway,Supported Other Accommodation - Private Contractors Payment,8343.64,0.00,COMMERCIAL SUPPLIER 
 02-06-2023,Adults,Care Management Group Ltd - The Ridgeway,Supported Other Accommodation - Private Contractors Payment,7519.08,0.00,COMMERCIAL SUPPLIER 
 02-06-2023,Adults,Care Management Group Ltd - The Ridgeway,Supported Other Accommodation - Private Contractors Payment,1131.60,0.00,COMMERCIAL SUPPLIER 
 02-06-2023,Adults,Overzest Community Services,Supported Other Accommodation - Private Contractors Payment,17680.24,0.00,COMMERCIAL SUPPLIER 
 02-06-2023,Adults,Footsteps Support Ltd_a,Supported Other Accommodation - Private Contractors Payment,6246.08,0.00,COMMERCIAL SUPPLIER 
 02-06-2023,Adults,Footsteps Support Ltd_a,Supported Other Accommodation - Private Contractors Payment,1270.08,0.00,COMMERCIAL SUPPLIER 
 02-06-2023,Adults,Footsteps Support Ltd_a,Supported Other Accommodation - Private Contractors Payment,2937.08,0.00,COMMERCIAL SUPPLIER 
 02-06-2023,Adults,Consensus Support Services Ltd - Kingston House,Residential Placements - Private Contractors Payment,7258.60,0.00,COMMERCIAL SUPPLIER 
 02-06-2023,Adults,Bluebell & Hawthorn,Nursing Homes - Private Contractors Payment,5645.72,0.00,COMMERCIAL SUPPLIER 
 02-06-2023,Adults,Bluebell & Hawthorn,Residential Placements - Private Contractors Payment,5873.76,0.00,COMMERCIAL SUPPLIER 
 02-06-2023,Adults,Bluebell & Hawthorn,Residential Placements - Private Contractors Payment,5758.60,0.00,COMMERCIAL SUPPLIER 
 02-06-2023,Adults,St Georges Supported Living Ltd,Supported Other Accommodation - Private Contractors Payment,2851.56,0.00,COMMERCIAL SUPPLIER 
 02-06-2023,Adults,St Georges Supported Living Ltd,Supported Other Accommodation - Private Contractors Payment,3470.04,0.00,COMMERCIAL SUPPLIER 
 02-06-2023,Adults,Axcelence Limited,Supported Other Accommodation - Private Contractors Payment,6479.96,0.00,COMMERCIAL SUPPLIER 
 02-06-2023,Adults,Axcelence Limited,Supported Other Accommodation - Private Contractors Payment,6390.84,0.00,COMMERCIAL SUPPLIER 
 02-06-2023,Adults,Axcelence Limited,Supported Other Accommodation - Private Contractors Payment,4378.44,0.00,COMMERCIAL SUPPLIER 
 02-06-2023,Adults,Newnton House Residential Care Home,Residential Placements - Private Contractors Payment,3785.00,0.00,COMMERCIAL SUPPLIER 
 02-06-2023,Adults,Autism Anglia_a,Supported Other Accommodation - Private Contractors Payment,6017.64,0.00,COMMERCIAL SUPPLIER 
 02-06-2023,Adults,Livability - John Grooms Court,Residential Placements - Private Contractors Payment,2496.20,0.00,COMMERCIAL SUPPLIER 
 02-06-2023,Adults,Livability - John Grooms Court,Residential Placements - Private Contractors Payment,2496.20,0.00,COMMERCIAL SUPPLIER 
 02-06-2023,Adults,Maple Health UK Limited - Maple Manor,Residential Placements - Private Contractors Payment,7905.44,0.00,COMMERCIAL SUPPLIER 
 02-06-2023,Adults,Voyage 1 Ltd - Quite Waters,Residential Placements - Private Contractors Payment,6597.40,0.00,COMMERCIAL SUPPLIER 
 02-06-2023,Adults,Willows Care Home - Churchgate Healthcare (Willows) Ltd,Nursing Homes - Private Contractors Payment,4415.88,0.00,COMMERCIAL SUPPLIER 
 02-06-2023,Adults,Willows Care Home - Churchgate Healthcare (Willows) Ltd,Residential Placements - Private Contractors Payment,4752.00,0.00,COMMERCIAL SUPPLIER 
 02-06-2023,Adults,Willows Care Home - Churchgate Healthcare (Willows) Ltd,Nursing Homes - Private Contractors Payment,3010.32,0.00,COMMERCIAL SUPPLIER 
 02-06-2023,Adults,Willows Care Home - Churchgate Healthcare (Willows) Ltd,Nursing Homes - Private Contractors Payment,4134.00,0.00,COMMERCIAL SUPPLIER 
 02-06-2023,Adults,Willows Care Home - Churchgate Healthcare (Willows) Ltd,Nursing Homes - Private Contractors Payment,5936.00,0.00,COMMERCIAL SUPPLIER 
 02-06-2023,Adults,Willows Care Home - Churchgate Healthcare (Willows) Ltd,Residential Placements - Private Contractors Payment,5649.80,0.00,COMMERCIAL SUPPLIER 
 02-06-2023,Adults,Willows Care Home - Churchgate Healthcare (Willows) Ltd,Nursing Homes - Private Contractors Payment,5049.04,0.00,COMMERCIAL SUPPLIER 
 02-06-2023,Adults,Willows Care Home - Churchgate Healthcare (Willows) Ltd,Nursing Homes - Private Contractors Payment,5049.04,0.00,COMMERCIAL SUPPLIER 
 02-06-2023,Adults,Ebony Health Care Services Limited,Supported Other Accommodation - Private Contractors Payment,2611.08,0.00,COMMERCIAL SUPPLIER 
 02-06-2023,Adults,Runwood Homes Ltd - Longview,Residential Placements - Private Contractors Payment,3085.80,0.00,COMMERCIAL SUPPLIER 
 02-06-2023,Adults,Paradise Independent Living,Supported Other Accommodation - Private Contractors Payment,589.92,0.00,NON COMMERCIAL SUPPLIER 
 02-06-2023,Adults,Paradise Independent Living,Supported Other Accommodation - Private Contractors Payment,4695.68,0.00,NON COMMERCIAL SUPPLIER 
 02-06-2023,Adults,Inclusive Care Support Limited,Supported Other Accommodation - Private Contractors Payment,4644.00,0.00,COMMERCIAL SUPPLIER 
 02-06-2023,Adults,Inclusive Care Support Limited,Supported Other Accommodation - Private Contractors Payment,5006.20,0.00,COMMERCIAL SUPPLIER 
 02-06-2023,Adults,Inclusive Care Support Limited,Supported Other Accommodation - Private Contractors Payment,3770.80,0.00,COMMERCIAL SUPPLIER 
 02-06-2023,Adults,Inclusive Care Support Limited,Supported Other Accommodation - Private Contractors Payment,8164.80,0.00,COMMERCIAL SUPPLIER 
 02-06-2023,Adults,Florijn Care Ltd,Residential Placements - Private Contractors Payment,7206.16,0.00,COMMERCIAL SUPPLIER 
 02-06-2023,Adults,Florijn Care Ltd,Residential Placements - Private Contractors Payment,3636.00,0.00,COMMERCIAL SUPPLIER 
 02-06-2023,Adults,Florijn Care Ltd,Supported Other Accommodation - Private Contractors Payment,6275.16,0.00,COMMERCIAL SUPPLIER 
 02-06-2023,Adults,BeTo Solutions Ltd,Supported Other Accommodation - Private Contractors Payment,7808.80,0.00,COMMERCIAL SUPPLIER 
 02-06-2023,Adults,BeTo Solutions Ltd,Supported Other Accommodation - Private Contractors Payment,6540.28,0.00,COMMERCIAL SUPPLIER 
 02-06-2023,Adults,BeTo Solutions Ltd,Supported Other Accommodation - Private Contractors Payment,7283.36,0.00,COMMERCIAL SUPPLIER 
 02-06-2023,Adults,BeTo Solutions Ltd,Supported Other Accommodation - Private Contractors Payment,6686.80,0.00,COMMERCIAL SUPPLIER 
 02-06-2023,Adults,Black Swan International Ltd - Drummonds,Residential Placements - Private Contractors Payment,2666.32,0.00,COMMERCIAL SUPPLIER 
 02-06-2023,Adults,Black Swan International Ltd - Drummonds,Residential Placements - Private Contractors Payment,2666.32,0.00,COMMERCIAL SUPPLIER 
 02-06-2023,Adults,Black Swan International Ltd - Drummonds,Residential Placements - Private Contractors Payment,2044.00,0.00,COMMERCIAL SUPPLIER 
 02-06-2023,Adults,Black Swan International Ltd - Drummonds,Residential Placements - Private Contractors Payment,1470.00,0.00,COMMERCIAL SUPPLIER 
 02-06-2023,Adults,Black Swan International Ltd - Drummonds,Residential Placements - Private Contractors Payment,4601.96,0.00,COMMERCIAL SUPPLIER 
 02-06-2023,Adults,Black Swan International Ltd - Drummonds,Residential Placements - Private Contractors Payment,3168.52,0.00,COMMERCIAL SUPPLIER 
 02-06-2023,Adults,Black Swan International Ltd - Drummonds,Residential Placements - Private Contractors Payment,4601.96,0.00,COMMERCIAL SUPPLIER 
 02-06-2023,Adults,TLC Care Homes Ltd - Point Clear,Residential Placements - Private Contractors Payment,8240.84,0.00,COMMERCIAL SUPPLIER 
 02-06-2023,Adults,Shalom Community Support Services,Supported Other Accommodation - Private Contractors Payment,6500.56,0.00,COMMERCIAL SUPPLIER 
 02-06-2023,Adults,Shalom Community Support Services,Supported Other Accommodation - Private Contractors Payment,3265.92,0.00,COMMERCIAL SUPPLIER 
 02-06-2023,Adults,Shalom Community Support Services,Supported Other Accommodation - Private Contractors Payment,3300.48,0.00,COMMERCIAL SUPPLIER 
 02-06-2023,Adults,Shalom Community Support Services,Supported Other Accommodation - Private Contractors Payment,5760.28,0.00,COMMERCIAL SUPPLIER 
 02-06-2023,Adults,Shalom Community Support Services,Supported Other Accommodation - Private Contractors Payment,1451.52,0.00,COMMERCIAL SUPPLIER 
 02-06-2023,Adults,Independant Community Support Ltd T/A Heaton Lodge,Supported Other Accommodation - Private Contractors Payment,2665.71,0.00,COMMERCIAL SUPPLIER 
 02-06-2023,Adults,Independant Community Support Ltd T/A Heaton Lodge,Supported Other Accommodation - Private Contractors Payment,3456.00,0.00,COMMERCIAL SUPPLIER 
 02-06-2023,Adults,Independant Community Support Ltd T/A Heaton Lodge,Supported Other Accommodation - Private Contractors Payment,1399.68,0.00,COMMERCIAL SUPPLIER 
 02-06-2023,Adults,Independant Community Support Ltd T/A Heaton Lodge,Supported Other Accommodation - Private Contractors Payment,4976.00,0.00,COMMERCIAL SUPPLIER 
 02-06-2023,Adults,Bethany House Care Home,Nursing Homes - Private Contractors Payment,4506.20,0.00,COMMERCIAL SUPPLIER 
 02-06-2023,Adults,St Mary's House,Residential Placements - Private Contractors Payment,3180.00,0.00,COMMERCIAL SUPPLIER 
 02-06-2023,Adults,Bettertogether Limited,Supported Other Accommodation - Private Contractors Payment,2056.00,0.00,NON COMMERCIAL SUPPLIER 
 02-06-2023,Adults,Bettertogether Limited,Supported Other Accommodation - Private Contractors Payment,1832.00,0.00,NON COMMERCIAL SUPPLIER 
 02-06-2023,Adults,Bettertogether Limited,Supported Other Accommodation - Private Contractors Payment,1832.00,0.00,NON COMMERCIAL SUPPLIER 
 02-06-2023,Adults,Bettertogether Limited,Supported Other Accommodation - Private Contractors Payment,1832.00,0.00,NON COMMERCIAL SUPPLIER 
 02-06-2023,Adults,Bettertogether Limited,Supported Other Accommodation - Private Contractors Payment,1832.00,0.00,NON COMMERCIAL SUPPLIER 
 02-06-2023,Adults,Bettertogether Limited,Supported Other Accommodation - Private Contractors Payment,2056.00,0.00,NON COMMERCIAL SUPPLIER 
 02-06-2023,Adults,Bettertogether Limited,Supported Other Accommodation - Private Contractors Payment,1776.00,0.00,NON COMMERCIAL SUPPLIER 
 02-06-2023,Adults,Bettertogether Limited,Supported Other Accommodation - Private Contractors Payment,1832.00,0.00,NON COMMERCIAL SUPPLIER 
 02-06-2023,Adults,Bettertogether Limited,Supported Other Accommodation - Private Contractors Payment,1832.00,0.00,NON COMMERCIAL SUPPLIER 
 02-06-2023,Adults,Bettertogether Limited,Supported Other Accommodation - Private Contractors Payment,1612.00,0.00,NON COMMERCIAL SUPPLIER 
 02-06-2023,Adults,Bettertogether Limited,Supported Other Accommodation - Private Contractors Payment,1440.00,0.00,NON COMMERCIAL SUPPLIER 
 02-06-2023,Adults,Bettertogether Limited,Supported Other Accommodation - Private Contractors Payment,1832.00,0.00,NON COMMERCIAL SUPPLIER 
 02-06-2023,Adults,Bettertogether Limited,Supported Other Accommodation - Private Contractors Payment,2236.00,0.00,NON COMMERCIAL SUPPLIER 
 02-06-2023,Adults,Bettertogether Limited,Supported Other Accommodation - Private Contractors Payment,2056.00,0.00,NON COMMERCIAL SUPPLIER 
 02-06-2023,Adults,IECC Care,Supported Other Accommodation - Private Contractors Payment,1041.48,0.00,COMMERCIAL SUPPLIER 
 02-06-2023,Adults,IECC Care,Supported Other Accommodation - Private Contractors Payment,10154.28,0.00,COMMERCIAL SUPPLIER 
 02-06-2023,Adults,North Court Care Home,Residential Placements - Private Contractors Payment,3085.80,0.00,COMMERCIAL SUPPLIER 
 02-06-2023,Adults,Axcelence Limited,Supported Other Accommodation - Private Contractors Payment,8466.72,0.00,COMMERCIAL SUPPLIER 
 02-06-2023,Adults,Axcelence Limited,Supported Other Accommodation - Private Contractors Payment,5937.96,0.00,COMMERCIAL SUPPLIER 
 02-06-2023,Adults,Axcelence Limited,Supported Other Accommodation - Private Contractors Payment,6777.64,0.00,COMMERCIAL SUPPLIER 
 02-06-2023,Adults,Axcelence Limited,Supported Other Accommodation - Private Contractors Payment,6652.40,0.00,COMMERCIAL SUPPLIER 
 02-06-2023,Adults,Sanctuary Home Care Ltd - Shaftesbury Court,Supported Other Accommodation - Private Contractors Payment,7108.92,0.00,COMMERCIAL SUPPLIER 
 02-06-2023,Adults,Lodge Group Care UK Ltd,Supported Other Accommodation - Private Contractors Payment,5829.68,0.00,COMMERCIAL SUPPLIER 
 02-06-2023,Adults,Lodge Group Care UK Ltd,Supported Other Accommodation - Private Contractors Payment,3157.76,0.00,COMMERCIAL SUPPLIER 
 02-06-2023,Adults,Axcelence Limited,Supported Other Accommodation - Private Contractors Payment,8368.72,0.00,COMMERCIAL SUPPLIER 
 02-06-2023,Adults,Axcelence Limited,Supported Other Accommodation - Private Contractors Payment,6177.04,0.00,COMMERCIAL SUPPLIER 
 02-06-2023,Adults,Axcelence Limited,Supported Other Accommodation - Private Contractors Payment,5982.24,0.00,COMMERCIAL SUPPLIER 
 02-06-2023,Adults,Axcelence Limited,Supported Other Accommodation - Private Contractors Payment,6603.72,0.00,COMMERCIAL SUPPLIER 
 02-06-2023,Adults,Independence Homes Ltd,Supported Other Accommodation - Private Contractors Payment,4214.24,0.00,COMMERCIAL SUPPLIER 
 02-06-2023,Adults,Independence Homes Ltd,Supported Other Accommodation - Private Contractors Payment,6156.00,0.00,COMMERCIAL SUPPLIER 
 02-06-2023,Adults,Richardson Partnership for Care,Residential Placements - Private Contractors Payment,5397.24,0.00,COMMERCIAL SUPPLIER 
 02-06-2023,Adults,Voyage Care Ltd - Wey House,Nursing Homes - Private Contractors Payment,4628.84,0.00,COMMERCIAL SUPPLIER 
 02-06-2023,Adults,Kadmiel Projects Ltd,Supported Other Accommodation - Private Contractors Payment,1957.92,0.00,COMMERCIAL SUPPLIER 
 02-06-2023,Adults,Kadmiel Projects Ltd,Supported Other Accommodation - Private Contractors Payment,5157.52,0.00,COMMERCIAL SUPPLIER 
 02-06-2023,Adults,Kadmiel Projects Ltd,Supported Other Accommodation - Private Contractors Payment,1947.64,0.00,COMMERCIAL SUPPLIER 
 02-06-2023,Adults,Kadmiel Projects Ltd,Supported Other Accommodation - Private Contractors Payment,2529.44,0.00,COMMERCIAL SUPPLIER 
 02-06-2023,Adults,Kadmiel Projects Ltd,Supported Other Accommodation - Private Contractors Payment,6776.80,0.00,COMMERCIAL SUPPLIER 
 02-06-2023,Adults,Topaz Care and Support Co Ltd,Supported Other Accommodation - Private Contractors Payment,5398.84,0.00,COMMERCIAL SUPPLIER 
 02-06-2023,Adults,Topaz Care and Support Co Ltd,Supported Other Accommodation - Private Contractors Payment,555.20,0.00,COMMERCIAL SUPPLIER 
 02-06-2023,Adults,Topaz Care and Support Co Ltd,Supported Other Accommodation - Private Contractors Payment,854.20,0.00,COMMERCIAL SUPPLIER 
 02-06-2023,Adults,Look Ahead Housing Care Support and Housing,Supported Other Accommodation - Private Contractors Payment,3136.24,0.00,COMMERCIAL SUPPLIER 
 02-06-2023,Adults,Focus Care Agency Ltd,Supported Other Accommodation - Private Contractors Payment,8742.36,0.00,COMMERCIAL SUPPLIER 
 02-06-2023,Adults,Zero Three Care Homes LLP_a,Residential Placements - Private Contractors Payment,13287.24,0.00,COMMERCIAL SUPPLIER 
 02-06-2023,Adults,Axcelence Limited,Supported Other Accommodation - Private Contractors Payment,6155.84,0.00,COMMERCIAL SUPPLIER 
 02-06-2023,Adults,Axcelence Limited,Supported Other Accommodation - Private Contractors Payment,6021.20,0.00,COMMERCIAL SUPPLIER 
 02-06-2023,Adults,Axcelence Limited,Supported Other Accommodation - Private Contractors Payment,6488.68,0.00,COMMERCIAL SUPPLIER 
 02-06-2023,Adults,Kadmiel Projects Ltd,Supported Other Accommodation - Private Contractors Payment,4694.04,0.00,COMMERCIAL SUPPLIER 
 02-06-2023,Adults,Kadmiel Projects Ltd,Supported Other Accommodation - Private Contractors Payment,922.40,0.00,COMMERCIAL SUPPLIER 
 02-06-2023,Adults,Kadmiel Projects Ltd,Supported Other Accommodation - Private Contractors Payment,14122.40,0.00,COMMERCIAL SUPPLIER 
 02-06-2023,Adults,Tealk Services Ltd,Residential Placements - Private Contractors Payment,3391.20,0.00,NON COMMERCIAL SUPPLIER 
 02-06-2023,Adults,Supported Care and Accommodation Ltd,Supported Other Accommodation - Private Contractors Payment,4388.92,0.00,COMMERCIAL SUPPLIER 
 02-06-2023,Adults,Supported Care and Accommodation Ltd,Supported Other Accommodation - Private Contractors Payment,7332.72,0.00,COMMERCIAL SUPPLIER 
 02-06-2023,Adults,Millard House Care Home,Residential Placements - Private Contractors Payment,3085.80,0.00,COMMERCIAL SUPPLIER 
 02-06-2023,Adults,The Vine Residential Services Ltd,Supported Other Accommodation - Private Contractors Payment,7451.68,0.00,COMMERCIAL SUPPLIER 
 02-06-2023,Adults,The Vine Residential Services Ltd,Supported Other Accommodation - Private Contractors Payment,6995.60,0.00,COMMERCIAL SUPPLIER 
 02-06-2023,Adults,Blessday Services Ltd,Supported Other Accommodation - Private Contractors Payment,697.68,0.00,COMMERCIAL SUPPLIER 
 02-06-2023,Adults,Blessday Services Ltd,Supported Other Accommodation - Private Contractors Payment,3893.40,0.00,COMMERCIAL SUPPLIER 
 02-06-2023,Adults,Blessday Services Ltd,Supported Other Accommodation - Private Contractors Payment,3235.68,0.00,COMMERCIAL SUPPLIER 
 02-06-2023,Adults,Parkcare Homes (No 2) Ltd t/as Windsor House,Residential Placements - Private Contractors Payment,6359.64,0.00,COMMERCIAL SUPPLIER 
 02-06-2023,Adults,Lancam Care Services Ltd,Nursing Homes - Private Contractors Payment,3010.32,0.00,COMMERCIAL SUPPLIER 
 02-06-2023,Adults,Lancam Care Services Ltd,Nursing Homes - Private Contractors Payment,3685.52,0.00,COMMERCIAL SUPPLIER 
 02-06-2023,Adults,The Laurels Nursing Home Hastings,Nursing Homes - Private Contractors Payment,3650.64,0.00,NON COMMERCIAL SUPPLIER 
 02-06-2023,Adults,Outreach Support Services Ltd,Supported Other Accommodation - Private Contractors Payment,1143.08,0.00,COMMERCIAL SUPPLIER 
 02-06-2023,Adults,Outreach Support Services Ltd,Supported Other Accommodation - Private Contractors Payment,648.00,0.00,COMMERCIAL SUPPLIER 
 02-06-2023,Adults,Outreach Support Services Ltd,Supported Other Accommodation - Private Contractors Payment,1728.00,0.00,COMMERCIAL SUPPLIER 
 02-06-2023,Adults,Outreach Support Services Ltd,Supported Other Accommodation - Private Contractors Payment,2290.68,0.00,COMMERCIAL SUPPLIER 
 02-06-2023,Adults,Step Ahead Care Services Ltd,Supported Other Accommodation - Private Contractors Payment,6444.16,0.00,COMMERCIAL SUPPLIER 
 02-06-2023,Adults,Fern Leaf Care Ltd,Supported Other Accommodation - Private Contractors Payment,3775.44,0.00,COMMERCIAL SUPPLIER 
 02-06-2023,Adults,Platform Support Services,Supported Other Accommodation - Private Contractors Payment,3296.56,0.00,COMMERCIAL SUPPLIER 
 02-06-2023,Adults,Gemini Assisted Living Ltd,Supported Other Accommodation - Private Contractors Payment,3392.08,0.00,COMMERCIAL SUPPLIER 
 02-06-2023,Adults,Gemini Assisted Living Ltd,Supported Other Accommodation - Private Contractors Payment,686.40,0.00,COMMERCIAL SUPPLIER 
 02-06-2023,Adults,Epilepsy Society,Residential Placements - Private Contractors Payment,6570.00,0.00,COMMERCIAL SUPPLIER 
 02-06-2023,Adults,Cygnet Health Care,Residential Placements - Private Contractors Payment,4626.72,0.00,COMMERCIAL SUPPLIER 
 02-06-2023,Adults,Cygnet Health Care,Residential Placements - Private Contractors Payment,630.00,0.00,COMMERCIAL SUPPLIER 
 02-06-2023,Adults,Cygnet Health Care,Residential Placements - Private Contractors Payment,2205.00,0.00,COMMERCIAL SUPPLIER 
 02-06-2023,Adults,Havering Care Services Ltd,Supported Other Accommodation - Private Contractors Payment,7265.76,0.00,COMMERCIAL SUPPLIER 
 02-06-2023,Adults,Havering Care Services Ltd,Supported Other Accommodation - Private Contractors Payment,6013.04,0.00,COMMERCIAL SUPPLIER 
 02-06-2023,Adults,Havering Care Services Ltd,Supported Other Accommodation - Private Contractors Payment,5209.32,0.00,COMMERCIAL SUPPLIER 
 02-06-2023,Adults,Havering Care Services Ltd,Supported Other Accommodation - Private Contractors Payment,6341.28,0.00,COMMERCIAL SUPPLIER 
 02-06-2023,Adults,Havering Care Services Ltd,Supported Other Accommodation - Private Contractors Payment,3541.56,0.00,COMMERCIAL SUPPLIER 
 02-06-2023,Adults,Havering Care Services Ltd,Supported Other Accommodation - Private Contractors Payment,3712.08,0.00,COMMERCIAL SUPPLIER 
 02-06-2023,Adults,Maison Moti Ltd,Supported Other Accommodation - Private Contractors Payment,3169.32,0.00,COMMERCIAL SUPPLIER 
 02-06-2023,Adults,Maison Moti Ltd,Supported Other Accommodation - Private Contractors Payment,2041.20,0.00,COMMERCIAL SUPPLIER 
 02-06-2023,Adults,Black Swan International Ltd - Drummonds,Residential Placements - Private Contractors Payment,3085.80,0.00,COMMERCIAL SUPPLIER 
 02-06-2023,Adults,Gims Care Solution Ltd_a,Supported Other Accommodation - Private Contractors Payment,35547.08,0.00,NON COMMERCIAL SUPPLIER 
 02-06-2023,Adults,Raynet Recruitment Agency Ltd,Supported Other Accommodation - Private Contractors Payment,4309.20,0.00,COMMERCIAL SUPPLIER 
 02-06-2023,Adults,Raynet Recruitment Agency Ltd,Supported Other Accommodation - Private Contractors Payment,614.04,0.00,COMMERCIAL SUPPLIER 
 02-06-2023,Adults,Raynet Recruitment Agency Ltd,Supported Other Accommodation - Private Contractors Payment,3321.72,0.00,COMMERCIAL SUPPLIER 
 02-06-2023,Adults,The Riverside Group,Supported Other Accommodation - Private Contractors Payment,1160.00,0.00, 
 02-06-2023,Adults,The Riverside Group,Supported Other Accommodation - Private Contractors Payment,1160.00,0.00, 
 02-06-2023,Adults,The Riverside Group,Supported Other Accommodation - Private Contractors Payment,1160.00,0.00, 
 02-06-2023,Adults,The Riverside Group,Supported Other Accommodation - Private Contractors Payment,1160.00,0.00, 
 02-06-2023,Adults,The Riverside Group,Supported Other Accommodation - Private Contractors Payment,1160.00,0.00, 
 02-06-2023,Adults,The Riverside Group,Supported Other Accommodation - Private Contractors Payment,1160.00,0.00, 
 02-06-2023,Adults,The Riverside Group,Supported Other Accommodation - Private Contractors Payment,1160.00,0.00, 
 02-06-2023,Adults,The Riverside Group,Supported Other Accommodation - Private Contractors Payment,1160.00,0.00, 
 02-06-2023,Adults,The Riverside Group,Supported Other Accommodation - Private Contractors Payment,1623.12,0.00, 
 02-06-2023,Adults,Gims Care Solution Ltd_a,Supported Other Accommodation - Private Contractors Payment,4924.80,0.00,NON COMMERCIAL SUPPLIER 
 02-06-2023,Adults,Gims Care Solution Ltd_a,Supported Other Accommodation - Private Contractors Payment,8981.28,0.00,NON COMMERCIAL SUPPLIER 
 02-06-2023,Adults,Adjuvo Care and Support Ltd,Supported Other Accommodation - Private Contractors Payment,2660.76,0.00,COMMERCIAL SUPPLIER 
 02-06-2023,Adults,Adjuvo Care and Support Ltd,Supported Other Accommodation - Private Contractors Payment,3876.84,0.00,COMMERCIAL SUPPLIER 
 02-06-2023,Adults,Heathcotes Group,Residential Placements - Private Contractors Payment,7068.20,0.00,COMMERCIAL SUPPLIER 
 02-06-2023,Adults,Down Hall Care Ltd,Residential Placements - Private Contractors Payment,3085.80,0.00,COMMERCIAL SUPPLIER 
 02-06-2023,Adults,Inclusive Care Support Ltd_a,Supported Other Accommodation - Private Contractors Payment,4915.92,0.00,COMMERCIAL SUPPLIER 
 02-06-2023,Adults,Green Arrow Care Providers Ltd,Supported Other Accommodation - Private Contractors Payment,9008.24,0.00,COMMERCIAL SUPPLIER 
 02-06-2023,Adults,B & M Care,Residential Placements - Private Contractors Payment,3085.80,0.00,COMMERCIAL SUPPLIER 
 02-06-2023,Adults,Coastal Supported Living CIC,Supported Other Accommodation - Private Contractors Payment,4824.00,0.00,COMMERCIAL SUPPLIER 
 02-06-2023,Adults,Coastal Supported Living CIC,Supported Other Accommodation - Private Contractors Payment,5213.08,0.00,COMMERCIAL SUPPLIER 
 02-06-2023,Adults,Coastal Supported Living CIC,Supported Other Accommodation - Private Contractors Payment,725.77,0.00,COMMERCIAL SUPPLIER 
 02-06-2023,Adults,Coastal Supported Living CIC,Supported Other Accommodation - Private Contractors Payment,4479.43,0.00,COMMERCIAL SUPPLIER 
 02-06-2023,Adults,Coastal Supported Living CIC,Supported Other Accommodation - Private Contractors Payment,781.60,0.00,COMMERCIAL SUPPLIER 
 02-06-2023,Adults,Coastal Supported Living CIC,Supported Other Accommodation - Private Contractors Payment,1082.76,0.00,COMMERCIAL SUPPLIER 
 02-06-2023,Adults,Coastal Supported Living CIC,Supported Other Accommodation - Private Contractors Payment,4526.64,0.00,COMMERCIAL SUPPLIER 
 02-06-2023,Adults,Coastal Supported Living CIC,Supported Other Accommodation - Private Contractors Payment,816.04,0.00,COMMERCIAL SUPPLIER 
 02-06-2023,Adults,Coastal Supported Living CIC,Supported Other Accommodation - Private Contractors Payment,5300.00,0.00,COMMERCIAL SUPPLIER 
 02-06-2023,Adults,Ebony Health Care Services Limited,Supported Other Accommodation - Private Contractors Payment,3175.20,0.00,COMMERCIAL SUPPLIER 
 02-06-2023,Adults,Ebony Health Care Services Limited,Supported Other Accommodation - Private Contractors Payment,2831.56,0.00,COMMERCIAL SUPPLIER 
 02-06-2023,Adults,Ebony Health Care Services Limited,Supported Other Accommodation - Private Contractors Payment,4335.72,0.00,COMMERCIAL SUPPLIER 
 02-06-2023,Adults,Ebony Health Care Services Limited,Supported Other Accommodation - Private Contractors Payment,3670.24,0.00,COMMERCIAL SUPPLIER 
 02-06-2023,Adults,Ebony Health Care Services Limited,Supported Other Accommodation - Private Contractors Payment,2721.60,0.00,COMMERCIAL SUPPLIER 
 02-06-2023,Adults,Ebony Health Care Services Limited,Supported Other Accommodation - Private Contractors Payment,952.00,0.00,COMMERCIAL SUPPLIER 
 02-06-2023,Adults,R G Care Ltd ,Residential Placements - Private Contractors Payment,8553.60,0.00,COMMERCIAL SUPPLIER 
 02-06-2023,Adults,R G Care Ltd ,Residential Placements - Private Contractors Payment,2450.00,0.00,COMMERCIAL SUPPLIER 
 02-06-2023,Adults,R G Care Ltd ,Residential Placements - Private Contractors Payment,8725.52,0.00,COMMERCIAL SUPPLIER 
 02-06-2023,Adults,R G Care Ltd ,Residential Placements - Private Contractors Payment,10850.44,0.00,COMMERCIAL SUPPLIER 
 02-06-2023,Adults,R G Care Ltd ,Residential Placements - Private Contractors Payment,4354.24,0.00,COMMERCIAL SUPPLIER 
 02-06-2023,Adults,Outlook Care_a,Residential Placements - Private Contractors Payment,3285.72,0.00,COMMERCIAL SUPPLIER 
 02-06-2023,Adults,New Directions -Hill End 1 ,Supported Other Accommodation - Private Contractors Payment,4762.80,0.00,COMMERCIAL SUPPLIER 
 02-06-2023,Adults,Independent Community Support Ltd t/a Wingletye Lodge ,Supported Other Accommodation - Private Contractors Payment,4171.84,0.00,COMMERCIAL SUPPLIER 
 02-06-2023,Adults,Independent Community Support Ltd t/a Wingletye Lodge ,Supported Other Accommodation - Private Contractors Payment,3836.16,0.00,COMMERCIAL SUPPLIER 
 02-06-2023,Adults,Independent Community Support Ltd t/a Wingletye Lodge ,Supported Other Accommodation - Private Contractors Payment,1088.64,0.00,COMMERCIAL SUPPLIER 
 02-06-2023,Adults,Independent Community Support Ltd t/a Wingletye Lodge ,Supported Other Accommodation - Private Contractors Payment,3974.40,0.00,COMMERCIAL SUPPLIER 
 02-06-2023,Adults,Independent Community Support Ltd t/a Wingletye Lodge ,Supported Other Accommodation - Private Contractors Payment,1306.36,0.00,COMMERCIAL SUPPLIER 
 02-06-2023,Adults,Independent Community Support Ltd t/a Wingletye Lodge ,Supported Other Accommodation - Private Contractors Payment,2721.60,0.00,COMMERCIAL SUPPLIER 
 02-06-2023,Adults,Mayesbrook House Ltd ,Supported Other Accommodation - Private Contractors Payment,2707.76,0.00,COMMERCIAL SUPPLIER 
 02-06-2023,Adults,Mayesbrook House Ltd ,Supported Other Accommodation - Private Contractors Payment,4029.88,0.00,COMMERCIAL SUPPLIER 
 02-06-2023,Adults,Mayesbrook House Ltd ,Supported Other Accommodation - Private Contractors Payment,3476.88,0.00,COMMERCIAL SUPPLIER 
 02-06-2023,Adults,Gims Care Solution Ltd_a,Supported Other Accommodation - Private Contractors Payment,6761.68,0.00,NON COMMERCIAL SUPPLIER 
 02-06-2023,Adults,Gims Care Solution Ltd_a,Supported Other Accommodation - Private Contractors Payment,1134.00,0.00,NON COMMERCIAL SUPPLIER 
 02-06-2023,Adults,Gims Care Solution Ltd_a,Supported Other Accommodation - Private Contractors Payment,3027.04,0.00,NON COMMERCIAL SUPPLIER 
 02-06-2023,Adults,Fresh Tree Care Services,Supported Other Accommodation - Private Contractors Payment,2540.16,0.00,COMMERCIAL SUPPLIER 
 02-06-2023,Adults,Fresh Tree Care Services,Supported Other Accommodation - Private Contractors Payment,2540.16,0.00,COMMERCIAL SUPPLIER 
 02-06-2023,Adults,Fresh Tree Care Services,Supported Other Accommodation - Private Contractors Payment,967.68,0.00,COMMERCIAL SUPPLIER 
 02-06-2023,Adults,Omega Elifar Ltd,Residential Placements - Private Contractors Payment,918.40,0.00,COMMERCIAL SUPPLIER 
 02-06-2023,Adults,Omega Elifar Ltd,Residential Placements - Private Contractors Payment,9164.04,0.00,COMMERCIAL SUPPLIER 
 02-06-2023,Adults,The Abbeyfield Southend Society Ltd,Residential Placements - Private Contractors Payment,4449.72,0.00,COMMERCIAL SUPPLIER 
 02-06-2023,Adults,Adjuvo Care Essex Ltd ,Supported Other Accommodation - Private Contractors Payment,2196.40,0.00,COMMERCIAL SUPPLIER 
 02-06-2023,Adults,Achieve Together Ltd - Hedera House ,Supported Other Accommodation - Private Contractors Payment,4029.16,0.00,COMMERCIAL SUPPLIER 
 02-06-2023,Adults,Pathways Care and Support Services Ltd,Supported Other Accommodation - Private Contractors Payment,1708.24,0.00,COMMERCIAL SUPPLIER 
 02-06-2023,Adults,Pathways Care and Support Services Ltd,Supported Other Accommodation - Private Contractors Payment,6284.92,0.00,COMMERCIAL SUPPLIER 
 02-06-2023,Adults,Eden Supported Services Ltd,Supported Other Accommodation - Private Contractors Payment,4773.04,0.00,COMMERCIAL SUPPLIER 
 02-06-2023,Adults,Blueboard Care Services Ltd,Supported Other Accommodation - Private Contractors Payment,1596.68,0.00,COMMERCIAL SUPPLIER 
 02-06-2023,Adults,Blueboard Care Services Ltd,Supported Other Accommodation - Private Contractors Payment,2159.12,0.00,COMMERCIAL SUPPLIER 
 02-06-2023,Adults,Blueboard Care Services Ltd,Supported Other Accommodation - Private Contractors Payment,1596.68,0.00,COMMERCIAL SUPPLIER 
 02-06-2023,Adults,Blueboard Care Services Ltd,Supported Other Accommodation - Private Contractors Payment,4588.20,0.00,COMMERCIAL SUPPLIER 
 02-06-2023,Adults,Blueboard Care Services Ltd,Supported Other Accommodation - Private Contractors Payment,3697.92,0.00,COMMERCIAL SUPPLIER 
 02-06-2023,Adults,Blueboard Care Services Ltd,Supported Other Accommodation - Private Contractors Payment,3084.48,0.00,COMMERCIAL SUPPLIER 
 02-06-2023,Adults,CFT Care Ltd ,Supported Other Accommodation - Private Contractors Payment,3040.60,0.00,COMMERCIAL SUPPLIER 
 02-06-2023,Adults,CFT Care Ltd ,Supported Other Accommodation - Private Contractors Payment,4560.84,0.00,COMMERCIAL SUPPLIER 
 02-06-2023,Adults,Protecthand Care Ltd ,Supported Other Accommodation - Private Contractors Payment,7538.28,0.00,COMMERCIAL SUPPLIER 
 02-06-2023,Adults,Protecthand Care Ltd ,Supported Other Accommodation - Private Contractors Payment,4498.20,0.00,COMMERCIAL SUPPLIER 
 02-06-2023,Adults,Protecthand Care Ltd ,Supported Other Accommodation - Private Contractors Payment,1814.40,0.00,COMMERCIAL SUPPLIER 
 02-06-2023,Adults,Protecthand Care Ltd ,Supported Other Accommodation - Private Contractors Payment,1134.00,0.00,COMMERCIAL SUPPLIER 
 02-06-2023,Adults,Vibrance ,Residential Placements - Private Contractors Payment,1720.76,0.00,COMMERCIAL SUPPLIER 
 02-06-2023,Adults,Vibrance ,Residential Placements - Private Contractors Payment,5926.08,0.00,COMMERCIAL SUPPLIER 
 02-06-2023,Adults,Personal Information - Redacted,Supported Other Accommodation - Private Contractors Payment,2667.00,0.00,INDIVIDUALS 
 02-06-2023,Adults,Personal Information - Redacted,Supported Other Accommodation - Private Contractors Payment,7620.48,0.00,INDIVIDUALS 
 02-06-2023,Adults,Personal Information - Redacted,Supported Other Accommodation - Private Contractors Payment,3696.84,0.00,INDIVIDUALS 
 02-06-2023,Adults,Personal Information - Redacted,Supported Other Accommodation - Private Contractors Payment,5544.00,0.00,INDIVIDUALS 
 02-06-2023,Adults,Personal Information - Redacted,Supported Other Accommodation - Private Contractors Payment,1088.64,0.00,INDIVIDUALS 
 02-06-2023,Adults,Achieve Together Ltd - Kingscroft,Supported Other Accommodation - Private Contractors Payment,5218.08,0.00,COMMERCIAL SUPPLIER 
 02-06-2023,Adults,Achieve Together Ltd - Kingscroft,Supported Other Accommodation - Private Contractors Payment,1310.24,0.00,COMMERCIAL SUPPLIER 
 02-06-2023,Adults,Achieve Together Ltd - Kingscroft,Supported Other Accommodation - Private Contractors Payment,931.80,0.00,COMMERCIAL SUPPLIER 
 02-06-2023,Adults,Zero Three Care Homes LLP,Residential Placements - Private Contractors Payment,14680.80,0.00,COMMERCIAL SUPPLIER 
 02-06-2023,Adults,Sunnyside Home Care,Supported Other Accommodation - Private Contractors Payment,3275.00,0.00,COMMERCIAL SUPPLIER 
 02-06-2023,Adults,Pathways Care Group Ltd,Residential Placements - Private Contractors Payment,904.04,0.00,COMMERCIAL SUPPLIER 
 02-06-2023,Adults,Pathways Care Group Ltd,Residential Placements - Private Contractors Payment,2468.40,0.00,COMMERCIAL SUPPLIER 
 02-06-2023,Adults,Pathways Care Group Ltd,Residential Placements - Private Contractors Payment,2486.16,0.00,COMMERCIAL SUPPLIER 
 02-06-2023,Adults,Ebony Health Care Services Limited,Supported Other Accommodation - Private Contractors Payment,2150.92,0.00,COMMERCIAL SUPPLIER 
 02-06-2023,Adults,Ebony Health Care Services Limited,Supported Other Accommodation - Private Contractors Payment,1615.92,0.00,COMMERCIAL SUPPLIER 
 02-06-2023,Adults,Ebony Health Care Services Limited,Supported Other Accommodation - Private Contractors Payment,1071.60,0.00,COMMERCIAL SUPPLIER 
 02-06-2023,Adults,Flourishgate Care Services Ltd,Supported Other Accommodation - Private Contractors Payment,2903.04,0.00,COMMERCIAL SUPPLIER 
 02-06-2023,Adults,Flourishgate Care Services Ltd,Supported Other Accommodation - Private Contractors Payment,3175.84,0.00,COMMERCIAL SUPPLIER 
 02-06-2023,Adults,Flourishgate Care Services Ltd,Supported Other Accommodation - Private Contractors Payment,12096.00,0.00,COMMERCIAL SUPPLIER 
 02-06-2023,Adults,St Giles Homes Ltd T/A Forest Home,Residential Placements - Private Contractors Payment,2697.52,0.00,COMMERCIAL SUPPLIER 
 02-06-2023,Adults,Christies Care Ltd_a,Home Care - Private Contractors Payment,7134.12,0.00,COMMERCIAL SUPPLIER 
 02-06-2023,Adults,Christies Care Ltd_a,Home Care - Private Contractors Payment,5475.68,0.00,COMMERCIAL SUPPLIER 
 02-06-2023,Adults,Heath Care Services Ltd ,Supported Other Accommodation - Private Contractors Payment,3464.64,0.00,COMMERCIAL SUPPLIER 
 02-06-2023,Adults,Heath Care Services Ltd ,Supported Other Accommodation - Private Contractors Payment,1632.96,0.00,COMMERCIAL SUPPLIER 
 02-06-2023,Adults,Heath Care Services Ltd ,Supported Other Accommodation - Private Contractors Payment,9180.00,0.00,COMMERCIAL SUPPLIER 
 02-06-2023,Adults,Infinite Healthcare Services Ltd.,Supported Other Accommodation - Private Contractors Payment,1101.60,0.00,COMMERCIAL SUPPLIER 
 02-06-2023,Adults,Infinite Healthcare Services Ltd.,Supported Other Accommodation - Private Contractors Payment,4069.88,0.00,COMMERCIAL SUPPLIER 
 02-06-2023,Adults,Loven Larchwood Ltd,Residential Placements - Private Contractors Payment,3604.00,0.00,COMMERCIAL SUPPLIER 
 02-06-2023,Adults,Quantum Case Ltd,Residential Placements - Private Contractors Payment,3050.28,0.00,COMMERCIAL SUPPLIER 
 02-06-2023,Adults,Sahara Care Ltd,Residential Placements - Private Contractors Payment,2829.60,0.00,COMMERCIAL SUPPLIER 
 02-06-2023,Adults,Sahara Care Ltd,Residential Placements - Private Contractors Payment,12432.00,0.00,COMMERCIAL SUPPLIER 
 02-06-2023,Adults,Sahara Care Ltd,Residential Placements - Private Contractors Payment,4144.00,0.00,COMMERCIAL SUPPLIER 
 02-06-2023,Adults,Sahara Care Ltd,Residential Placements - Private Contractors Payment,7128.00,0.00,COMMERCIAL SUPPLIER 
 02-06-2023,Adults,Care Square Ltd.,Supported Other Accommodation - Private Contractors Payment,3708.08,0.00,COMMERCIAL SUPPLIER 
 02-06-2023,Adults,Care Square Ltd.,Supported Other Accommodation - Private Contractors Payment,4877.12,0.00,COMMERCIAL SUPPLIER 
 02-06-2023,Adults,Care Square Ltd.,Supported Other Accommodation - Private Contractors Payment,629.60,0.00,COMMERCIAL SUPPLIER 
 02-06-2023,Adults,Care Square Ltd.,Supported Other Accommodation - Private Contractors Payment,1938.00,0.00,COMMERCIAL SUPPLIER 
 02-06-2023,Adults,Diagrama Healthcare Servcies Ltd ,Nursing Homes - Private Contractors Payment,3010.32,0.00,COMMERCIAL SUPPLIER 
 02-06-2023,Adults,Apace Support Services,Supported Other Accommodation - Private Contractors Payment,4104.00,0.00,COMMERCIAL SUPPLIER 
 02-06-2023,Adults,Apace Support Services,Supported Other Accommodation - Private Contractors Payment,558.00,0.00,COMMERCIAL SUPPLIER 
 02-06-2023,Adults,Apace Support Services,Supported Other Accommodation - Private Contractors Payment,3362.00,0.00,COMMERCIAL SUPPLIER 
 02-06-2023,Adults,Apace Support Services,Supported Other Accommodation - Private Contractors Payment,2916.00,0.00,COMMERCIAL SUPPLIER 
 02-06-2023,Adults,Home From Home Support Service Ltd ,Supported Other Accommodation - Private Contractors Payment,7096.88,0.00,COMMERCIAL SUPPLIER 
 02-06-2023,Adults,Home From Home Support Service Ltd ,Supported Other Accommodation - Private Contractors Payment,4731.28,0.00,COMMERCIAL SUPPLIER 
 02-06-2023,Adults,Cygnet (OE) Ltd ,Residential Placements - Private Contractors Payment,2100.00,0.00,COMMERCIAL SUPPLIER 
 02-06-2023,Adults,Cygnet (OE) Ltd ,Residential Placements - Private Contractors Payment,9737.28,0.00,COMMERCIAL SUPPLIER 
 02-06-2023,Adults,Silver Lake Care 2 Ltd ,Nursing Homes - Private Contractors Payment,12196.52,0.00,COMMERCIAL SUPPLIER 
 02-06-2023,Adults,Comfort Lodge Services (UK) Ltd,Supported Other Accommodation - Private Contractors Payment,2700.00,0.00,COMMERCIAL SUPPLIER 
 02-06-2023,Adults,Comfort Lodge Services (UK) Ltd,Supported Other Accommodation - Private Contractors Payment,3672.00,0.00,COMMERCIAL SUPPLIER 
 02-06-2023,Adults,Barchester Healthcare Homes Ltd - Ottley House ,Nursing Homes - Private Contractors Payment,4128.40,0.00,COMMERCIAL SUPPLIER 
 02-06-2023,Adults,Support by Heart Ltd,Supported Other Accommodation - Private Contractors Payment,3337.20,0.00,COMMERCIAL SUPPLIER 
 02-06-2023,Adults,Hillsview Care Services Ltd,Residential Placements - Private Contractors Payment,2079.00,0.00,COMMERCIAL SUPPLIER 
 02-06-2023,Adults,Hillsview Care Services Ltd,Residential Placements - Private Contractors Payment,4227.28,0.00,COMMERCIAL SUPPLIER 
 02-06-2023,Adults,Oakland Primecare Ltd,Nursing Homes - Private Contractors Payment,5184.00,0.00,COMMERCIAL SUPPLIER 
 02-06-2023,Adults,S & S Support Service Ltd   ,Supported Other Accommodation - Private Contractors Payment,9007.20,0.00,COMMERCIAL SUPPLIER 
 02-06-2023,Adults,S & S Support Service Ltd   ,Supported Other Accommodation - Private Contractors Payment,2056.32,0.00,COMMERCIAL SUPPLIER 
 02-06-2023,Adults,Thurrock Lifestyle Solutions CIC,Supported Other Accommodation - Private Contractors Payment,4300.64,0.00,COMMERCIAL SUPPLIER 
 02-06-2023,Adults,Gemstone Properties Ltd,Residential Placements - Private Contractors Payment,2244.72,0.00,COMMERCIAL SUPPLIER 
 02-06-2023,Adults,Achieve Together  Ltd - Westcliffe Villas,Residential Placements - Private Contractors Payment,6161.44,0.00,COMMERCIAL SUPPLIER 
 02-06-2023,Adults,Achieve Together  Ltd - Westcliffe Villas,Residential Placements - Private Contractors Payment,7086.12,0.00,COMMERCIAL SUPPLIER 
 02-06-2023,Adults,Forward Support Ltd ,Residential Placements - Private Contractors Payment,1976.40,0.00,COMMERCIAL SUPPLIER 
 02-06-2023,Adults,Wemyss Lodge Ltd,Residential Placements - Private Contractors Payment,4028.00,0.00,COMMERCIAL SUPPLIER 
 02-06-2023,Adults,S&A Care Services Ltd.,Supported Other Accommodation - Private Contractors Payment,7076.16,0.00,COMMERCIAL SUPPLIER 
 02-06-2023,Adults,S&A Care Services Ltd.,Supported Other Accommodation - Private Contractors Payment,4354.56,0.00,COMMERCIAL SUPPLIER 
 02-06-2023,Adults,S&A Care Services Ltd.,Supported Other Accommodation - Private Contractors Payment,2177.28,0.00,COMMERCIAL SUPPLIER 
 02-06-2023,Adults,S&A Care Services Ltd.,Supported Other Accommodation - Private Contractors Payment,4354.56,0.00,COMMERCIAL SUPPLIER 
 02-06-2023,Adults,Optimal Care Services Ltd,Supported Other Accommodation - Private Contractors Payment,1879.20,0.00,COMMERCIAL SUPPLIER 
 02-06-2023,Adults,Optimal Care Services Ltd,Supported Other Accommodation - Private Contractors Payment,7182.00,0.00,COMMERCIAL SUPPLIER 
 02-06-2023,Adults,Accomplish Group Support Ltd,Residential Placements - Private Contractors Payment,8444.00,0.00,COMMERCIAL SUPPLIER 
 02-06-2023,Adults,Rosebuds Supported Living Ltd,Supported Other Accommodation - Private Contractors Payment,7634.44,0.00,COMMERCIAL SUPPLIER 
 02-06-2023,Adults,Rosebuds Supported Living Ltd,Supported Other Accommodation - Private Contractors Payment,8567.88,0.00,COMMERCIAL SUPPLIER 
 02-06-2023,Adults,St Dominics Residential Home Ltd,Residential Placements - Private Contractors Payment,5512.00,0.00,COMMERCIAL SUPPLIER 
 02-06-2023,Adults,Efficiency - For Care,Supported Other Accommodation - Private Contractors Payment,3589.48,0.00,COMMERCIAL SUPPLIER 
 02-06-2023,Adults,Efficiency - For Care,Supported Other Accommodation - Private Contractors Payment,1085.00,0.00,COMMERCIAL SUPPLIER 
 02-06-2023,Adults,Royal Masonic Benevolent Institution,Residential Placements - Private Contractors Payment,2715.44,0.00,COMMERCIAL SUPPLIER 
 02-06-2023,Adults,MYRTLE HEATHCARE LTD,Supported Other Accommodation - Private Contractors Payment,13020.00,0.00,COMMERCIAL SUPPLIER 
 02-06-2023,Adults,Care UK,Nursing Homes - Private Contractors Payment,6020.00,0.00,COMMERCIAL SUPPLIER 
 02-06-2023,Adults,Five Stacks Residential Care Home Ltd,Residential Placements - Private Contractors Payment,3540.00,0.00,COMMERCIAL SUPPLIER 
 02-06-2023,Adults,Five Stacks Residential Care Home Ltd,Residential Placements - Private Contractors Payment,3878.80,0.00,COMMERCIAL SUPPLIER 
 02-06-2023,Adults,BeTo Solutions Ltd,Supported Other Accommodation - Private Contractors Payment,3906.00,0.00,COMMERCIAL SUPPLIER 
 02-06-2023,Adults,BeTo Solutions Ltd,Supported Other Accommodation - Private Contractors Payment,2646.00,0.00,COMMERCIAL SUPPLIER 
 02-06-2023,Adults,BeTo Solutions Ltd,Supported Other Accommodation - Private Contractors Payment,3888.00,0.00,COMMERCIAL SUPPLIER 
 02-06-2023,Adults,BeTo Solutions Ltd,Supported Other Accommodation - Private Contractors Payment,835.92,0.00,COMMERCIAL SUPPLIER 
 02-06-2023,Adults,BeTo Solutions Ltd,Supported Other Accommodation - Private Contractors Payment,3906.00,0.00,COMMERCIAL SUPPLIER 
 02-06-2023,Adults,BeTo Solutions Ltd,Supported Other Accommodation - Private Contractors Payment,972.00,0.00,COMMERCIAL SUPPLIER 
 02-06-2023,Adults,BeTo Solutions Ltd,Supported Other Accommodation - Private Contractors Payment,3906.00,0.00,COMMERCIAL SUPPLIER 
 02-06-2023,Adults,BeTo Solutions Ltd,Supported Other Accommodation - Private Contractors Payment,576.00,0.00,COMMERCIAL SUPPLIER 
 02-06-2023,Adults,Regal Care Ltd,Nursing Homes - Private Contractors Payment,4664.00,0.00,COMMERCIAL SUPPLIER 
 02-06-2023,Adults,Ebony Health Care Services Limited,Home Care - Private Contractors Payment,1091.96,0.00,COMMERCIAL SUPPLIER 
 02-06-2023,Adults,Rodwell House Ltd,Nursing Homes - Private Contractors Payment,3460.00,0.00,COMMERCIAL SUPPLIER 
 02-06-2023,Adults,Fari Care Ltd,Supported Other Accommodation - Private Contractors Payment,756.00,0.00,COMMERCIAL SUPPLIER 
 02-06-2023,Adults,Fari Care Ltd,Supported Other Accommodation - Private Contractors Payment,1596.00,0.00,COMMERCIAL SUPPLIER 
 02-06-2023,Adults,Bupa Care Homes (CFH Care) Ltd ,Nursing Homes - Private Contractors Payment,2949.32,0.00,COMMERCIAL SUPPLIER 
 02-06-2023,Adults,New Century Care (Borough Green) T/A Westbank Care Home,Nursing Homes - Private Contractors Payment,4968.00,0.00,COMMERCIAL SUPPLIER 
 02-06-2023,Adults,B&M Care ,Residential Placements - Private Contractors Payment,4660.00,0.00,COMMERCIAL SUPPLIER 
 02-06-2023,Adults,B&M Care ,Residential Placements - Private Contractors Payment,1997.14,0.00,COMMERCIAL SUPPLIER 
 02-06-2023,Adults,Crystalize Care Services Ltd,Home Care - Private Contractors Payment,917.31,0.00,COMMERCIAL SUPPLIER 
 02-06-2023,Adults,Crystalize Care Services Ltd,Home Care - Private Contractors Payment,1223.06,0.00,COMMERCIAL SUPPLIER 
 02-06-2023,Adults,Crystalize Care Services Ltd,Home Care - Private Contractors Payment,1223.06,0.00,COMMERCIAL SUPPLIER 
 02-06-2023,Adults,Crystalize Care Services Ltd,Home Care - Private Contractors Payment,1179.39,0.00,COMMERCIAL SUPPLIER 
 02-06-2023,Adults,Crystalize Care Services Ltd,Home Care - Private Contractors Payment,551.04,0.00,COMMERCIAL SUPPLIER 
 02-06-2023,Adults,Crystalize Care Services Ltd,Home Care - Private Contractors Payment,611.53,0.00,COMMERCIAL SUPPLIER 
 02-06-2023,Adults,Crystalize Care Services Ltd,Home Care - Private Contractors Payment,611.53,0.00,COMMERCIAL SUPPLIER 
 02-06-2023,Adults,Crystalize Care Services Ltd,Home Care - Private Contractors Payment,1572.52,0.00,COMMERCIAL SUPPLIER 
 02-06-2023,Adults,Crystalize Care Services Ltd,Home Care - Private Contractors Payment,1528.83,0.00,COMMERCIAL SUPPLIER 
 02-06-2023,Adults,Crystalize Care Services Ltd,Home Care - Private Contractors Payment,611.53,0.00,COMMERCIAL SUPPLIER 
 02-06-2023,Adults,Crystalize Care Services Ltd,Home Care - Private Contractors Payment,1375.96,0.00,COMMERCIAL SUPPLIER 
 02-06-2023,Adults,Crystalize Care Services Ltd,Home Care - Private Contractors Payment,1375.96,0.00,COMMERCIAL SUPPLIER 
 02-06-2023,Adults,Crystalize Care Services Ltd,Home Care - Private Contractors Payment,1416.96,0.00,COMMERCIAL SUPPLIER 
 02-06-2023,Adults,Home Sweet Home Care Ltd,Home Care - Private Contractors Payment,689.44,0.00,COMMERCIAL SUPPLIER 
 02-06-2023,Adults,Home Sweet Home Care Ltd,Home Care - Private Contractors Payment,1358.12,0.00,COMMERCIAL SUPPLIER 
 02-06-2023,Adults,Home Sweet Home Care Ltd,Home Care - Private Contractors Payment,890.01,0.00,COMMERCIAL SUPPLIER 
 02-06-2023,Adults,Home Sweet Home Care Ltd,Home Care - Private Contractors Payment,611.54,0.00,COMMERCIAL SUPPLIER 
 02-06-2023,Adults,Home Sweet Home Care Ltd,Home Care - Private Contractors Payment,1028.34,0.00,COMMERCIAL SUPPLIER 
 02-06-2023,Adults,Home Sweet Home Care Ltd,Home Care - Private Contractors Payment,3423.43,0.00,COMMERCIAL SUPPLIER 
 02-06-2023,Adults,Home Sweet Home Care Ltd,Home Care - Private Contractors Payment,1953.63,0.00,COMMERCIAL SUPPLIER 
 02-06-2023,Adults,Home Sweet Home Care Ltd,Home Care - Private Contractors Payment,1290.06,0.00,COMMERCIAL SUPPLIER 
 02-06-2023,Adults,Home Sweet Home Care Ltd,Home Care - Private Contractors Payment,1944.90,0.00,COMMERCIAL SUPPLIER 
 02-06-2023,Adults,Home Sweet Home Care Ltd,Home Care - Private Contractors Payment,1223.81,0.00,COMMERCIAL SUPPLIER 
 02-06-2023,Adults,Home Sweet Home Care Ltd,Home Care - Private Contractors Payment,1226.00,0.00,COMMERCIAL SUPPLIER 
 02-06-2023,Adults,Home Sweet Home Care Ltd,Home Care - Private Contractors Payment,1226.36,0.00,COMMERCIAL SUPPLIER 
 02-06-2023,Adults,Home Sweet Home Care Ltd,Home Care - Private Contractors Payment,890.38,0.00,COMMERCIAL SUPPLIER 
 02-06-2023,Adults,Home Sweet Home Care Ltd,Home Care - Private Contractors Payment,567.86,0.00,COMMERCIAL SUPPLIER 
 02-06-2023,Adults,Home Sweet Home Care Ltd,Home Care - Private Contractors Payment,1223.08,0.00,COMMERCIAL SUPPLIER 
 02-06-2023,Adults,Home Sweet Home Care Ltd,Home Care - Private Contractors Payment,626.10,0.00,COMMERCIAL SUPPLIER 
 02-06-2023,Adults,Home Sweet Home Care Ltd,Home Care - Private Contractors Payment,603.17,0.00,COMMERCIAL SUPPLIER 
 02-06-2023,Adults,Home Sweet Home Care Ltd,Home Care - Private Contractors Payment,1277.68,0.00,COMMERCIAL SUPPLIER 
 02-06-2023,Adults,Home Sweet Home Care Ltd,Home Care - Private Contractors Payment,551.84,0.00,COMMERCIAL SUPPLIER 
 02-06-2023,Adults,Home Sweet Home Care Ltd,Home Care - Private Contractors Payment,744.04,0.00,COMMERCIAL SUPPLIER 
 02-06-2023,Adults,Home Sweet Home Care Ltd,Home Care - Private Contractors Payment,645.03,0.00,COMMERCIAL SUPPLIER 
 02-06-2023,Adults,Home Sweet Home Care Ltd,Home Care - Private Contractors Payment,917.31,0.00,COMMERCIAL SUPPLIER 
 02-06-2023,Adults,Home Sweet Home Care Ltd,Home Care - Private Contractors Payment,614.45,0.00,COMMERCIAL SUPPLIER 
 02-06-2023,Adults,Home Sweet Home Care Ltd,Home Care - Private Contractors Payment,741.49,0.00,COMMERCIAL SUPPLIER 
 02-06-2023,Adults,Home Sweet Home Care Ltd,Home Care - Private Contractors Payment,1243.10,0.00,COMMERCIAL SUPPLIER 
 02-06-2023,Adults,Home Sweet Home Care Ltd,Home Care - Private Contractors Payment,1378.15,0.00,COMMERCIAL SUPPLIER 
 02-06-2023,Adults,Home Sweet Home Care Ltd,Home Care - Private Contractors Payment,617.00,0.00,COMMERCIAL SUPPLIER 
 02-06-2023,Adults,Home Sweet Home Care Ltd,Home Care - Private Contractors Payment,1234.73,0.00,COMMERCIAL SUPPLIER 
 02-06-2023,Adults,Home Sweet Home Care Ltd,Home Care - Private Contractors Payment,1201.97,0.00,COMMERCIAL SUPPLIER 
 02-06-2023,Adults,Home Sweet Home Care Ltd,Home Care - Private Contractors Payment,1301.34,0.00,COMMERCIAL SUPPLIER 
 02-06-2023,Adults,Home Sweet Home Care Ltd,Home Care - Private Contractors Payment,1157.93,0.00,COMMERCIAL SUPPLIER 
 02-06-2023,Adults,Home Sweet Home Care Ltd,Home Care - Private Contractors Payment,1179.77,0.00,COMMERCIAL SUPPLIER 
 02-06-2023,Adults,Home Sweet Home Care Ltd,Home Care - Private Contractors Payment,3619.48,0.00,COMMERCIAL SUPPLIER 
 02-06-2023,Adults,Home Sweet Home Care Ltd,Home Care - Private Contractors Payment,611.54,0.00,COMMERCIAL SUPPLIER 
 02-06-2023,Adults,Home Sweet Home Care Ltd,Home Care - Private Contractors Payment,799.00,0.00,COMMERCIAL SUPPLIER 
 02-06-2023,Adults,Home Sweet Home Care Ltd,Home Care - Private Contractors Payment,1078.57,0.00,COMMERCIAL SUPPLIER 
 02-06-2023,Adults,Home Sweet Home Care Ltd,Home Care - Private Contractors Payment,1092.40,0.00,COMMERCIAL SUPPLIER 
 02-06-2023,Adults,Home Sweet Home Care Ltd,Home Care - Private Contractors Payment,670.15,0.00,COMMERCIAL SUPPLIER 
 02-06-2023,Adults,Home Sweet Home Care Ltd,Home Care - Private Contractors Payment,801.91,0.00,COMMERCIAL SUPPLIER 
 02-06-2023,Adults,Home Sweet Home Care Ltd,Home Care - Private Contractors Payment,589.70,0.00,COMMERCIAL SUPPLIER 
 02-06-2023,Adults,Home Sweet Home Care Ltd,Home Care - Private Contractors Payment,882.73,0.00,COMMERCIAL SUPPLIER 
 02-06-2023,Adults,Home Sweet Home Care Ltd,Home Care - Private Contractors Payment,1263.12,0.00,COMMERCIAL SUPPLIER 
 02-06-2023,Adults,Home Sweet Home Care Ltd,Home Care - Private Contractors Payment,1298.43,0.00,COMMERCIAL SUPPLIER 
 02-06-2023,Adults,Home Sweet Home Care Ltd,Home Care - Private Contractors Payment,906.39,0.00,COMMERCIAL SUPPLIER 
 02-06-2023,Adults,Home Sweet Home Care Ltd,Home Care - Private Contractors Payment,1307.90,0.00,COMMERCIAL SUPPLIER 
 02-06-2023,Adults,Home Sweet Home Care Ltd,Home Care - Private Contractors Payment,1309.72,0.00,COMMERCIAL SUPPLIER 
 02-06-2023,Adults,Home Sweet Home Care Ltd,Home Care - Private Contractors Payment,1180.13,0.00,COMMERCIAL SUPPLIER 
 02-06-2023,Adults,Home Sweet Home Care Ltd,Home Care - Private Contractors Payment,1201.97,0.00,COMMERCIAL SUPPLIER 
 02-06-2023,Adults,Home Sweet Home Care Ltd,Home Care - Private Contractors Payment,611.54,0.00,COMMERCIAL SUPPLIER 
 02-06-2023,Adults,Home Sweet Home Care Ltd,Home Care - Private Contractors Payment,670.15,0.00,COMMERCIAL SUPPLIER 
 02-06-2023,Adults,Home Sweet Home Care Ltd,Home Care - Private Contractors Payment,660.32,0.00,COMMERCIAL SUPPLIER 
 02-06-2023,Adults,Home Sweet Home Care Ltd,Home Care - Private Contractors Payment,611.54,0.00,COMMERCIAL SUPPLIER 
 02-06-2023,Adults,Home Sweet Home Care Ltd,Home Care - Private Contractors Payment,673.06,0.00,COMMERCIAL SUPPLIER 
 02-06-2023,Adults,Home Sweet Home Care Ltd,Home Care - Private Contractors Payment,1005.40,0.00,COMMERCIAL SUPPLIER 
 02-06-2023,Adults,Home Sweet Home Care Ltd,Home Care - Private Contractors Payment,1005.40,0.00,COMMERCIAL SUPPLIER 
 02-06-2023,Adults,Home Sweet Home Care Ltd,Home Care - Private Contractors Payment,1213.98,0.00,COMMERCIAL SUPPLIER 
 02-06-2023,Adults,Home Sweet Home Care Ltd,Home Care - Private Contractors Payment,585.70,0.00,COMMERCIAL SUPPLIER 
 02-06-2023,Adults,Home Sweet Home Care Ltd,Home Care - Private Contractors Payment,1214.71,0.00,COMMERCIAL SUPPLIER 
 02-06-2023,Adults,Home Sweet Home Care Ltd,Home Care - Private Contractors Payment,1228.54,0.00,COMMERCIAL SUPPLIER 
 02-06-2023,Adults,Home Sweet Home Care Ltd,Home Care - Private Contractors Payment,1215.44,0.00,COMMERCIAL SUPPLIER 
 02-06-2023,Adults,Home Sweet Home Care Ltd,Home Care - Private Contractors Payment,1224.17,0.00,COMMERCIAL SUPPLIER 
 02-06-2023,Adults,Home Sweet Home Care Ltd,Home Care - Private Contractors Payment,917.31,0.00,COMMERCIAL SUPPLIER 
 02-06-2023,Adults,Home Sweet Home Care Ltd,Home Care - Private Contractors Payment,1183.41,0.00,COMMERCIAL SUPPLIER 
 02-06-2023,Adults,Home Sweet Home Care Ltd,Home Care - Private Contractors Payment,623.55,0.00,COMMERCIAL SUPPLIER 
 02-06-2023,Adults,Home Sweet Home Care Ltd,Home Care - Private Contractors Payment,1212.53,0.00,COMMERCIAL SUPPLIER 
 02-06-2023,Adults,Home Sweet Home Care Ltd,Home Care - Private Contractors Payment,942.79,0.00,COMMERCIAL SUPPLIER 
 02-06-2023,Adults,Home Sweet Home Care Ltd,Home Care - Private Contractors Payment,944.25,0.00,COMMERCIAL SUPPLIER 
 02-06-2023,Adults,Home Sweet Home Care Ltd,Home Care - Private Contractors Payment,1225.63,0.00,COMMERCIAL SUPPLIER 
 02-06-2023,Adults,Home Sweet Home Care Ltd,Home Care - Private Contractors Payment,1236.92,0.00,COMMERCIAL SUPPLIER 
 02-06-2023,Adults,Home Sweet Home Care Ltd,Home Care - Private Contractors Payment,1127.71,0.00,COMMERCIAL SUPPLIER 
 02-06-2023,Adults,Home Sweet Home Care Ltd,Home Care - Private Contractors Payment,1175.40,0.00,COMMERCIAL SUPPLIER 
 02-06-2023,Adults,Home Sweet Home Care Ltd,Home Care - Private Contractors Payment,724.02,0.00,COMMERCIAL SUPPLIER 
 02-06-2023,Adults,Home Sweet Home Care Ltd,Home Care - Private Contractors Payment,1256.57,0.00,COMMERCIAL SUPPLIER 
 02-06-2023,Adults,Home Sweet Home Care Ltd,Home Care - Private Contractors Payment,1268.58,0.00,COMMERCIAL SUPPLIER 
 02-06-2023,Adults,Home Sweet Home Care Ltd,Home Care - Private Contractors Payment,613.73,0.00,COMMERCIAL SUPPLIER 
 02-06-2023,Adults,Home Sweet Home Care Ltd,Home Care - Private Contractors Payment,929.69,0.00,COMMERCIAL SUPPLIER 
 02-06-2023,Adults,Home Sweet Home Care Ltd,Home Care - Private Contractors Payment,1223.08,0.00,COMMERCIAL SUPPLIER 
 02-06-2023,Adults,Home Sweet Home Care Ltd,Home Care - Private Contractors Payment,589.70,0.00,COMMERCIAL SUPPLIER 
 02-06-2023,Adults,Home Sweet Home Care Ltd,Home Care - Private Contractors Payment,1196.87,0.00,COMMERCIAL SUPPLIER 
 02-06-2023,Adults,Home Sweet Home Care Ltd,Home Care - Private Contractors Payment,1210.71,0.00,COMMERCIAL SUPPLIER 
 02-06-2023,Adults,Home Sweet Home Care Ltd,Home Care - Private Contractors Payment,1231.46,0.00,COMMERCIAL SUPPLIER 
 02-06-2023,Adults,Home Sweet Home Care Ltd,Home Care - Private Contractors Payment,1250.75,0.00,COMMERCIAL SUPPLIER 
 02-06-2023,Adults,Home Sweet Home Care Ltd,Home Care - Private Contractors Payment,1351.94,0.00,COMMERCIAL SUPPLIER 
 02-06-2023,Adults,Home Sweet Home Care Ltd,Home Care - Private Contractors Payment,600.62,0.00,COMMERCIAL SUPPLIER 
 02-06-2023,Adults,Home Sweet Home Care Ltd,Home Care - Private Contractors Payment,936.24,0.00,COMMERCIAL SUPPLIER 
 02-06-2023,Adults,Home Sweet Home Care Ltd,Home Care - Private Contractors Payment,988.29,0.00,COMMERCIAL SUPPLIER 
 02-06-2023,Adults,Home Sweet Home Care Ltd,Home Care - Private Contractors Payment,918.41,0.00,COMMERCIAL SUPPLIER 
 02-06-2023,Adults,Home Sweet Home Care Ltd,Home Care - Private Contractors Payment,920.95,0.00,COMMERCIAL SUPPLIER 
 02-06-2023,Adults,Home Sweet Home Care Ltd,Home Care - Private Contractors Payment,1228.18,0.00,COMMERCIAL SUPPLIER 
 02-06-2023,Adults,Home Sweet Home Care Ltd,Home Care - Private Contractors Payment,743.68,0.00,COMMERCIAL SUPPLIER 
 02-06-2023,Adults,Home Sweet Home Care Ltd,Home Care - Private Contractors Payment,1232.18,0.00,COMMERCIAL SUPPLIER 
 02-06-2023,Adults,Home Sweet Home Care Ltd,Home Care - Private Contractors Payment,567.86,0.00,COMMERCIAL SUPPLIER 
 02-06-2023,Adults,Home Sweet Home Care Ltd,Home Care - Private Contractors Payment,917.31,0.00,COMMERCIAL SUPPLIER 
 02-06-2023,Adults,Home Sweet Home Care Ltd,Home Care - Private Contractors Payment,1321.00,0.00,COMMERCIAL SUPPLIER 
 02-06-2023,Adults,Home Sweet Home Care Ltd,Home Care - Private Contractors Payment,1006.86,0.00,COMMERCIAL SUPPLIER 
 02-06-2023,Adults,Home Sweet Home Care Ltd,Home Care - Private Contractors Payment,615.91,0.00,COMMERCIAL SUPPLIER 
 02-06-2023,Adults,Home Sweet Home Care Ltd,Home Care - Private Contractors Payment,1232.55,0.00,COMMERCIAL SUPPLIER 
